{"text_format":"1","workbook":"xlsx","n_sheets":8,"sheets":["MPP","Tekening","Cetop02","Tables","BOM","Partlist","Calculations","Translations"],"not_rendered":{"charts":0,"images":131,"macros":1,"external_links":0,"defined_names":112,"comments":2,"pivot_tables":0},"unopened":[],"bounds":{"document_bytes":16777216,"sheet_cells":100000,"rows_first":2000,"rows_last":500,"rows_between":2000,"halvings":0,"cell_chars":16384,"cell_head_chars":4096},"cells_cut":0,"cells_raw":0,"read":"whole","date_system":"1900"}

{"sheet":"MPP","index":0,"n_rows":67,"n_cols":7,"rows_kept":67,"cut":false,"hidden":false,"merged":[[2,1,2,2],[62,4,65,5],[15,4,15,5]]}
[]
[]
[null,"Mini Power Pack"]
[]
[]
[]
[]
[]
[null,null,null,null,null,"v2019.1 CE"]
[]
[null,{"$f":"TextPerLanguage(SEL_LANGUAGE,2)","v":"Bedrijfsnaam:"},null,null,{"$f":"TextPerLanguage(SEL_LANGUAGE,5)","v":"Artikel:"},""]
[null,{"$f":"TextPerLanguage(SEL_LANGUAGE,3)","v":"Contactpersoon:"},null,null,{"$f":"TextPerLanguage(SEL_LANGUAGE,20)","v":"Aantal units:"},1]
[{"$f":"DoValidation(SEL_FINISH,SEL_LANGUAGE_INPUT)","v":""},{"$f":"TextPerLanguage(SEL_LANGUAGE,34)","v":"Referentie:"},null,null,{"$f":"TextPerLanguage(SEL_LANGUAGE,207)","v":"Afwerking:"},"<ongespoten>"]
[null,{"$f":"TextPerLanguage(SEL_LANGUAGE,1)","v":"Taal"},"Nederlands",null,null,null,{"$f":"IF(LEFT(C14,1)=\"N\",1,IF(LEFT(C14,1)=\"D\",3,IF(LEFT(C14,1)=\"F\",4,2)))","v":1}]
[]
[null,null,null,null,{"$f":"TODAY()","v":"2019-03-13"}]
[]
[]
[]
[{"$f":"DoValidation(C20:C35,SEL_LANGUAGE_INPUT)","v":""},{"$f":"TextPerLanguage(SEL_LANGUAGE,7)","v":"Tank:"},"C1 : Tank 5 liter horizontale opst. met voet",null,{"$f":"TextPerLanguage(SEL_LANGUAGE,12)","v":"Max. werkdruk:"},{"$f":"SYS_CLC_MAX_WP","v":"110 bar (4 min.)"}]
[null,{"$f":"TextPerLanguage(SEL_LANGUAGE,8)","v":"Pomp:"},"32 : Pomp 3.2 cc D gr.1",{"$f":"VLOOKUP(SEL_PUMP,DBS_PUMP,8,0)","v":1},{"$f":"TextPerLanguage(SEL_LANGUAGE,13)","v":"Flow:"},{"$f":"SYS_CLC_FLOW","v":"Niet van toepassing"}]
[null,{"$f":"TextPerLanguage(SEL_LANGUAGE,9)","v":"Motor:"},"B  : DC-motor 24 Volt, 2100 Watt",null,{"$f":"TextPerLanguage(SEL_LANGUAGE,15)&\" (x)\"","v":"Lengte (x)"},536]
[null,{"$f":"TextPerLanguage(SEL_LANGUAGE,19)","v":"Voltage opbouw:"},"024C",{"$f":"MATCH(SEL_VOLTAGE,LST_VOLTAGE,0)","v":2},{"$f":"TextPerLanguage(SEL_LANGUAGE,16)&\" (y)\"","v":"Breedte (y)"},234.5]
[null,{"$f":"TextPerLanguage(SEL_LANGUAGE,10)","v":"Opbouw:"},"00 : Zonder opbouw",{"$f":"IF(ISERROR(VALUE(LEFT(SEL_MOUNTING,1))),0,VALUE(LEFT(SEL_MOUNTING,1)))","v":0},{"$f":"TextPerLanguage(SEL_LANGUAGE,17)&\" (z)\"","v":"Hoogte (z)"},222.5]
[null,{"$f":"TextPerLanguage(SEL_LANGUAGE,156)","v":"Lantaarnstuk:"},"<Geen>",""]
[]
[]
[null,{"$f":"TextPerLanguage(SEL_LANGUAGE,14)&\" C0:\"","v":"Keuze C0:"},"1 : Terugslagklep"]
[null,{"$f":"TextPerLanguage(SEL_LANGUAGE,14)&\" C1:\"","v":"Keuze C1:"},"1 : Veiligheid 25 - 250 bar"]
[null,{"$f":"TextPerLanguage(SEL_LANGUAGE,14)&\" C2:\"","v":"Keuze C2:"},"A : Plug"]
[null,{"$f":"TextPerLanguage(SEL_LANGUAGE,14)&\" C2:\"","v":"Keuze C2:"},"A : 4/3 klep AB dicht"]
[null,{"$f":"TextPerLanguage(SEL_LANGUAGE,14)&\" C3:\"","v":"Keuze C3:"},"A : Plug"]
[null,{"$f":"TextPerLanguage(SEL_LANGUAGE,14)&\" C4:\"","v":"Keuze C4:"},"A : Plug"]
[null,{"$f":"TextPerLanguage(SEL_LANGUAGE,18)","v":"Manometer:"},"<Geen manometer>"]
[{"$f":"AND(IF(ISERROR(FIND(LEFT(SEL_MOTOR,1),\"ABCDG\")),FALSE,TRUE),IF(ISERROR(FIND(LEFT(SEL_CHOICE_3,1),\"DEHI\")),FALSE,TRUE))","v":false},{"$f":"TextPerLanguage(SEL_LANGUAGE,190)","v":"Afstandsbediening:"},"<Geen>"]
[]
[null,{"$f":"IF(SEL_MOUNT_COUNT>0,TextPerLanguage(SEL_LANGUAGE,21),\"\")","v":""}]
[]
[null,{"$f":"IF(SEL_MOUNT_COUNT>0,TextPerLanguage(SEL_LANGUAGE,143),\"\")","v":""},null,""]
[null,{"$f":"IF(SEL_MOUNT_COUNT>0,TextPerLanguage(SEL_LANGUAGE,142),\"\")","v":""},null,""]
[null,{"$f":"IF(SEL_MOUNT_COUNT>0,TextPerLanguage(SEL_LANGUAGE,141),\"\")","v":""},null,""]
[null,{"$f":"IF(SEL_MOUNT_COUNT>0,TextPerLanguage(SEL_LANGUAGE,140),\"\")","v":""},null,""]
[]
[]
[null,{"$f":"IF(SEL_MOUNT_COUNT>1,TextPerLanguage(SEL_LANGUAGE,147),\"\")","v":""},null,""]
[null,{"$f":"IF(SEL_MOUNT_COUNT>1,TextPerLanguage(SEL_LANGUAGE,146),\"\")","v":""},null,""]
[null,{"$f":"IF(SEL_MOUNT_COUNT>1,TextPerLanguage(SEL_LANGUAGE,145),\"\")","v":""},null,""]
[null,{"$f":"IF(SEL_MOUNT_COUNT>1,TextPerLanguage(SEL_LANGUAGE,144),\"\")","v":""},null,""]
[]
[]
[null,{"$f":"IF(SEL_MOUNT_COUNT>2,TextPerLanguage(SEL_LANGUAGE,151),\"\")","v":""},null,""]
[null,{"$f":"IF(SEL_MOUNT_COUNT>2,TextPerLanguage(SEL_LANGUAGE,150),\"\")","v":""},null,""]
[null,{"$f":"IF(SEL_MOUNT_COUNT>2,TextPerLanguage(SEL_LANGUAGE,149),\"\")","v":""},null,""]
[null,{"$f":"IF(SEL_MOUNT_COUNT>2,TextPerLanguage(SEL_LANGUAGE,148),\"\")","v":""},null,""]
[]
[]
[null,{"$f":"IF(SEL_MOUNT_COUNT>3,TextPerLanguage(SEL_LANGUAGE,155),\"\")","v":""},null,""]
[null,{"$f":"IF(SEL_MOUNT_COUNT>3,TextPerLanguage(SEL_LANGUAGE,154),\"\")","v":""},null,""]
[null,{"$f":"IF(SEL_MOUNT_COUNT>3,TextPerLanguage(SEL_LANGUAGE,153),\"\")","v":""},null,""]
[null,{"$f":"IF(SEL_MOUNT_COUNT>3,TextPerLanguage(SEL_LANGUAGE,152),\"\")","v":""},null,""]
[]
[null,null,null,null,{"$f":"TextPerLanguage(SEL_LANGUAGE,202)&\":\"","v":"Opmerkingen:"}]
[null,{"$f":"TextPerLanguage(SEL_LANGUAGE,26)","v":"De unit is compleet gemonteerd, getest op de max. werkdruk."}]
[null,{"$f":"TextPerLanguage(SEL_LANGUAGE,27)","v":"De unit is excl. olie en bekabeling."}]
[null,{"$f":"TextPerLanguage(SEL_LANGUAGE,207)&\" \"&SUBSTITUTE(SUBSTITUTE(SEL_FINISH,\"<\",\"\"),\">\",\"\")","v":"Afwerking: ongespoten"}]
[null,{"$f":"TextPerLanguage(SEL_LANGUAGE,32)","v":"Levering volgens onze algemene leverings- en montagevoorwaarden"}]
[null,{"$f":"LEFT(TextPerLanguage(SEL_LANGUAGE,24)&\" \"&TextPerLanguage(SEL_LANGUAGE,30),50+SEL_QUANTITY)","v":"Levertijd: gereed voor verzending in 3 dagen"}]

{"sheet":"Tekening","index":1,"n_rows":107,"n_cols":256,"rows_kept":107,"cut":false,"hidden":false,"merged":[[36,2,37,3]]}
[" ",null,null,null,null,null,null,null,null,null,null,null,null,null,null,null,null,null,null,null,null,null,null,null,null,null,null,null,null,null,null,null,null,null,null,null,null,null,null,null,null,null,null,null,null,null,null,null,null,null,null,null,null,null,null,null,null,null,null,null,null,null,null,null,null,null,null,null,null,null,null,null,null,null,null,null,null,null,null,null,null,null,null,null,null,null,null,null,null,null,null,null,null,null,null,null,null,null,null,null,null,null,null,null,null,null,null,null,null,null,null,null,null,null,null,null,null,null,null,null,null,null,null,null,null,null,null,null,null,null,null,null,null,null,null,null,null,null,null,null,null,null,null,null,null,null,null,null,null,null,null,null,null,null,null,null,null,null,null,null,null,null,null,null,null,null,null,null,null,null,null,null,null,null,null,null,null,null,null,null,null,null,null,null,null,null,null,null,null,null,null,null,null,null,null,null,null,null,null,null,null,null,null,null,null,null,null,null,null,null,null,null,null,null,null,null,null,null,null,null,null,null,null,null,null,null,null,null,null,null,null,null,null,null,null,null,null,null,null,null,null,null,null,null,null,null,null,null,null,null,null,null,null,null,null,"Basis"]
[]
[]
[]
[]
[]
[]
[]
[]
[]
[]
[]
[]
[null,null,null,null,null,null,null,null,null,null,null,null,null,null,null,null,null,null,null,null,null,null,null,null,null,null,null,null,null,null,null,null,null,null,null,null,null,null,null,null,null,null,null,null,null,null,null,null,null,null,null,null,null,null,null,null,null,null,null,null,null,null,null,null,null,null,null,null,null,null,null,null,null,null,null,null,null,null,null,null,null,null,null,null,null,null,null,null,null,null,null,null,null,null,null,null,null,null,null,null,null,null,null,null,null,null,null,null,null,null,null,null,null,null,null,null,null,null,null,null,null,null,null,null,null,null,null,null,null,null,null,null,null,null,null,null,null,null,null,null,null,null,null,null,null,null,null,null,null,null,null,null,null,null,null,null,null,null,null,null,null,null,null,null,null,null,null,null,null,null,null,null,null,null,null,null,null,null,null,null,null,null,null,null,null,null,null,null,null,null,null,null,null,null,null,null,null,null,null,null,null,null,null,null,null,null,null,null,null,null,null,null,null,null,null,null,null,null,null,null,null,null,null,null,null,null,null,null,null,null,null,null,null,null,null,null,null,null,null,null,null,null,null,null,null,null,null,null,null,null,null,null,null,null,null,"Basis: keuzes 1 t/m 5"]
[]
[]
[]
[]
[]
[]
[]
[]
[]
[]
[]
[]
[]
[]
[]
[]
[null,null,{"$f":"MPP!B20","v":"Tank:"},{"$f":"MID(SEL_TANK,6,40)","v":"Tank 5 liter horizontale opst. met voet"}," "]
[null,null,{"$f":"MPP!B21","v":"Pomp:"},{"$f":"MID(SEL_PUMP,6,40)","v":"Pomp 3.2 cc D gr.1"}," "]
[null,null,{"$f":"MPP!B22","v":"Motor:"},{"$f":"MID(SEL_MOTOR,6,40)","v":"DC-motor 24 Volt, 2100 Watt"}," "]
[null,null,{"$f":"MPP!E20","v":"Max. werkdruk:"},{"$f":"SEL_MAX_WP","v":"110 bar (4 min.)"}," "]
[null,null,{"$f":"MPP!E21","v":"Flow:"},{"$f":"SEL_FLOW","v":"Niet van toepassing"}," "]
[null,null,{"$f":"MPP!E13","v":"Afwerking:"},{"$f":"SEL_FINISH","v":"<ongespoten>"}]
[null,null,{"$f":"IF(TRIM(T(SEL_PARTNO))=\"\",\"- - -\",T(SEL_PARTNO))","v":"- - -"}]
[]
[null,null,{"$f":"MPP!B11","v":"Bedrijfsnaam:"},{"$f":"T(MPP!C11)","v":""}]
[null,null,{"$f":"MPP!B12","v":"Contactpersoon:"},{"$f":"T(MPP!C12)","v":""},null,null,null,null,null,null,null,null,null,null,null,null,null,null,null,null,null,null,null,null,null,null,null,null,null,null,null,null,null,null,null,null,null,null,null,null,null,null,null,null,null,null,null,null,null,null,null,null,null,null,null,null,null,null,null,null,null,null,null,null,null,null,null,null,null,null,null,null,null,null,null,null,null,null,null,null,null,null,null,null,null,null,null,null,null,null,null,null,null,null,null,null,null,null,null,null,null,null,null,null,null,null,null,null,null,null,null,null,null,null,null,null,null,null,null,null,null,null,null,null,null,null,null,null,null,null,null,null,null,null,null,null,null,null,null,null,null,null,null,null,null,null,null,null,null,null,null,null,null,null,null,null,null,null,null,null,null,null,null,null,null,null,null,null,null,null,null,null,null,null,null,null,null,null,null,null,null,null,null,null,null,null,null,null,null,null,null,null,null,null,null,null,null,null,null,null,null,null,null,null,null,null,null,null,null,null,null,null,null,null,null,null,null,null,null,null,null,null,null,null,null,null,null,null,null,null,null,null,null,null,null,null,null,null,null,null,null,null,null,null,null,null,null,null,null,null,null,null,null,null,null,"Opbouw: voetplaten"]
[null,null,{"$f":"MPP!E11","v":"Artikel:"},{"$f":"T(SEL_PARTNO)","v":""}]
[null,null,{"$f":"TextPerLanguage(SEL_LANGUAGE,6)","v":"Datum:"},{"$f":"MPP!E16","v":"2019-03-13"}]
[]
[]
[]
[]
[]
[null,null,null,null,null,null,null,null,null,null,null,null,null,null,null,null,null,null,null,null,null,null,null,null,null,null,null,null,null,null,null,null,null,null,null,null,null,null,null,null,null,null,null,null,null,null,null,null,null,null,null,null,null,null,null,null,null,null,null,null,null,null,null,null,null,null,null,null,null,null,null,null,null,null,null,null,null,null,null,null,null,null,null,null,null,null,null,null,null,null,null,null,null,null,null,null,null,null,null,null,null,null,null,null,null,null,null,null,null,null,null,null,null,null,null,null,null,null,null,null,null,null,null,null,null,null,null,null,null,null,null,null,null,null,null,null,null,null,null,null,null,null,null,null,null,null,null,null,null,null,null,null,null,null,null,null,null,null,null,null,null,null,null,null,null,null,null,null,null,null,null,null,null,null,null,null,null,null,null,null,null,null,null,null,null,null,null,null,null,null,null,null,null,null,null,null,null,null,null,null,null,null,null,null,null,null,null,null,null,null,null,null,null,null,null,null,null,null,null,null,null,null,null,null,null,null,null,null,null,null,null,null,null,null,null,null,null,null,null,null,null,null,null,null,null,null,null,null,null,null,null,null,null,null,null,"Opbouw: ventielen"]
[]
[]
[]
[]
[]
[]
[]
[]
[]
[]
[]
[]
[]
[]
[]
[]
[]
[]
[]
[]
[]
[]
[]
[]
[]
[]
[]
[]
[]
[]
[]
[]
[null,null,null,null,null,null,null,null,null,null,null,null,null,null,null,null,null,null,null,null,null,null,null,null,null,null,null,null,null,null,null,null,null,null,null,null,null,null,null,null,null,null,null,null,null,null,null,null,null,null,null,null,null,null,null,null,null,null,null,null,null,null,null,null,null,null,null,null,null,null,null,null,null,null,null,null,null,null,null,null,null,null,null,null,null,null,null,null,null,null,null,null,null,null,null,null,null,null,null,null,null,null,null,null,null,null,null,null,null,null,null,null,null,null,null,null,null,null,null,null,null,null,null,null,null,null,null,null,null,null,null,null,null,null,null,null,null,null,null,null,null,null,null,null,null,null,null,null,null,null,null,null,null,null,null,null,null,null,null,null,null,null,null,null,null,null,null,null,null,null,null,null,null,null,null,null,null,null,null,null,null,null,null,null,null,null,null,null,null,null,null,null,null,null,null,null,null,null,null,null,null,null,null,null,null,null,null,null,null,null,null,null,null,null,null,null,null,null,null,null,null,null,null,null,null,null,null,null,null,null,null,null,null,null,null,null,null,null,null,null,null,null,null,null,null,null,null,null,null,null,null,null,null,null,null,"Cetop02"]
[]
[]
[]
[]
[]
[]
[]
[]
[]
[]
[]
[]
[]
[]
[]
[]
[]
[]
[]
[]
[]
[]
[]
[]
[]
[null,null,null,null,null,null,null,null,null,null,null,null,null,null,null,null,null,null,null,null,null,null,null,null,null,null,null,null,null,null,null,null,null,null,null,null,null,null,null,null,null,null,null,null,null,null,null,null,null,null,null,null,null,null,null,null,null,null,null,null,null,null,null,null,null,null,null,null,null,null,null,null,null,null,null,null,null,null,null,null,null,null,null,null,null,null,null,null,null,null,null,null,null,null,null,null,null,null,null,null,null,null,null,null,null,null,null,null,null,null,null,null,null,null,null,null,null,null,null,null,null,null,null,null,null,null,null,null,null,null,null,null,null,null,null,null,null,null,null,null,null,null,null,null,null,null,null,null,null,null,null,null,null,null,null,null,null,null,null,null,null,null,null,null,null,null,null,null,null,null,null,null,null,null,null,null,null,null,null,null,null,null,null,null,null,null,null,null,null,null,null,null,null,null,null,null,null,null,null,null,null,null,null,null,null,null,null,null,null,null,null,null,null,null,null,null,null,null,null,null,null,null,null,null,null,null,null,null,null,null,null,null,null,null,null,null,null,null,null,null,null,null,null,null,null,null,null,null,null,null,null,null,null,null,null,"Configuratie informatie"]

{"sheet":"Cetop02","index":2,"n_rows":255,"n_cols":5,"rows_kept":255,"cut":false,"hidden":true,"merged":[]}
["Artikel","Aantal",null,"V.Links","V.Rechts"]
["-",0,null,"-","-"]
["-",0,null,"-","-"]
["-",0,null,"-","-"]
["-",0,null,"-","-"]
["-",0,null,"-","-"]
["-",0,null,"-","-"]
["-",0]
["-",0]
["-",0]
["-",0]
["-",0]
["-",0]
["-",0]
["-",0]
[]
[]
[]
[]
[]
[]
[]
[]
[]
[]
[]
[]
[]
[]
[]
[]
[]
[]
[]
[]
[]
[]
[]
[]
[]
[]
[]
[]
[]
[]
[]
[]
[]
[]
[]
[]
[]
[]
[]
[]
[]
[]
[]
[]
[]
[]
[]
[]
[]
[]
[]
[]
[]
[]
[]
[]
[]
[]
[]
[]
[]
[]
[]
[]
[]
[]
[]
[]
[]
[]
[]
[]
[]
[]
[]
[]
[]
[]
[]
[]
[]
[]
[]
[]
[]
[]
[]
[]
[]
[]
[]
[]
[]
[]
[]
[]
[]
[]
[]
[]
[]
[]
[]
[]
[]
[]
[]
[]
[]
[]
[]
[]
[]
[]
[]
[]
[]
[]
[]
[]
[]
[]
[]
[]
[]
[]
[]
[]
[]
[]
[]
[]
[]
[]
[]
[]
[]
[]
[]
[]
[]
[]
[]
[]
[]
[]
[]
[]
[]
[]
[]
[]
[]
[]
[]
[]
[]
[]
[]
[]
[]
[]
[]
[]
[]
[]
[]
[]
[]
[]
[]
[]
[]
[]
[]
[]
[]
[]
[]
[]
[]
[]
[]
[]
[]
[]
[]
[]
[]
[]
[]
[]
[]
[]
[]
[]
[]
[]
[]
[]
[]
[]
[]
[]
[]
[]
[]
[]
[]
[]
[]
[]
[]
[]
[]
[]
[]
[]
[]
[]
[]
[]
[]
[]
[]
[]
[]
[]
[]
[]
[]
[]
[]
[]
[]
[]
[]
[]
[]
["SEV902012C"]

{"sheet":"Tables","index":3,"n_rows":261,"n_cols":37,"rows_kept":261,"cut":false,"hidden":true,"merged":[]}
["LST_TANK & DBS_TANK & LDF_TANK","Artikel1","Artikel2","Artikel3","Artikel4","Artikel5","Artikel6","OpstellingVertHor","Material","PastOpHondaMotor",null,null,null,null,null,null,null,null,null,null,null,null,null,null,null,null,null,null,"Code","Oms_DUT","Oms_ENG","Oms_GER","Oms_FRE"]
[{"$f":"AC2&\" : \"&CHOOSE(SEL_LANGUAGE,AD2,AE2,AF2,AG2)","v":"A1 : Tank 1 liter horizontale opst. met voet"},"MPPT001","MPPBF","-","-","-","-","H","Steel",false,null,null,null,null,null,null,null,null,null,null,null,null,null,null,null,null,null,null,"A1","Tank 1 liter horizontale opst. met voet","Tank 1 litre hor. mounting with baseframe","Ölbehalter 1 Liter horiz. Anbau mit Fuss","Réservoir 1 litre montage horizontale avec pied"]
["A2 : Tank 1 liter horizontale opst. zonder voet","MPPT001","-","-","-","-","-","H","Steel",true,null,null,null,null,null,null,null,null,null,null,null,null,null,null,null,null,null,null,"A2","Tank 1 liter horizontale opst. zonder voet","Tank 1 litre hor. mounting without baseframe","Ölbehalter 1 Liter horiz. Anbau ohne Fuss","Réservoir 1 litre montage horizontale sans pied"]
["A3 : Tank 1 liter verticale opst. met voet","MPPT001","MPPBF","EMF12","MPPSFEP01D","-","-","V","Steel",false,null,null,null,null,null,null,null,null,null,null,null,null,null,null,null,null,null,null,"A3","Tank 1 liter verticale opst. met voet","Tank 1 litre ver. mounting with baseframe","Ölbehalter 1 Liter vert. Anbau mit Fuss","Réservoir 1 litre montage verticale avec pied"]
["A4 : Tank 1 liter verticale opst. zonder voet","MPPT001","-","EMF12","MPPSFEP01D","-","-","V","Steel",false,null,null,null,null,null,null,null,null,null,null,null,null,null,null,null,null,null,null,"A4","Tank 1 liter verticale opst. zonder voet","Tank 1 litre ver. mounting without baseframe","Ölbehalter 1 Liter vert. Anbau ohne Fuss","Réservoir 1 litre montage verticale sans pied"]
["B1 : Tank 2.5 liter horizontale opst. met voet","MPPT002","MPPBF","-","-","-","-","H","Steel",false,null,null,null,null,null,null,null,null,null,null,null,null,null,null,null,null,null,null,"B1","Tank 2.5 liter horizontale opst. met voet","Tank 2.5 litre hor. mounting with baseframe","Ölbehalter 2.5 Liter horiz. Anbau mit Fuss","Réservoir 2.5 litres  montage horizontale avec pied"]
["B2 : Tank 2.5 liter horizontale opst. zonder voet","MPPT002","-","-","-","-","-","H","Steel",true,null,null,null,null,null,null,null,null,null,null,null,null,null,null,null,null,null,null,"B2","Tank 2.5 liter horizontale opst. zonder voet","Tank 2.5 litre hor. mounting without baseframe","Ölbehalter 2.5 Liter horiz. Anbau ohne Fuss","Réservoir 2.5 litres  montage horizontale sans pied"]
["B3 : Tank 2.5 liter verticale opst. met voet","MPPT002","MPPBF","EMF12","MPPSFEP01D","-","-","V","Steel",false,null,null,null,null,null,null,null,null,null,null,null,null,null,null,null,null,null,null,"B3","Tank 2.5 liter verticale opst. met voet","Tank 2.5 litre ver. mounting with baseframe","Ölbehalter 2.5 Liter vert. Anbau mit Fuss","Réservoir 2.5 litres  montage verticale avec pied"]
["B4 : Tank 2.5 liter verticale opst. zonder voet","MPPT002","-","EMF12","MPPSFEP01D","-","-","V","Steel",false,null,null,null,null,null,null,null,null,null,null,null,null,null,null,null,null,null,null,"B4","Tank 2.5 liter verticale opst. zonder voet","Tank 2.5 litre ver. mounting without baseframe","Ölbehalter 2.5 Liter vert. Anbau ohne Fuss","Réservoir 2.5 litres  montage verticale sans pied"]
["J1 : Tank 3.5 liter horizontale opst. met voet","MPPT003","MPPBF","-","-","MPP9TP","MPP9FC","H","Steel",false,null,null,null,null,null,null,null,null,null,null,null,null,null,null,null,null,null,null,"J1","Tank 3.5 liter horizontale opst. met voet","Tank 3.5 litre hor. mounting with baseframe","Ölbehalter 3.5 Liter horiz. Anbau mit Fuss","Réservoir 3.5 litres  montage horizontale avec pied"]
["J2 : Tank 3.5 liter horizontale opst. zonder voet","MPPT003","-","-","-","MPP9TP","MPP9FC","H","Steel",true,null,null,null,null,null,null,null,null,null,null,null,null,null,null,null,null,null,null,"J2","Tank 3.5 liter horizontale opst. zonder voet","Tank 3.5 litre hor. mounting without baseframe","Ölbehalter 3.5 Liter horiz. Anbau ohne Fuss","Réservoir 3.5 litres  montage horizontale avec pied"]
["J3 : Tank 3.5 liter verticale opst. met voet","MPPT003","MPPBF","EMF12","MPPSFEP01D","MPP9TP","MPP9FC","V","Steel",false,null,null,null,null,null,null,null,null,null,null,null,null,null,null,null,null,null,null,"J3","Tank 3.5 liter verticale opst. met voet","Tank 3.5 litre ver. mounting with baseframe","Ölbehalter 3.5 Liter vert. Anbau mit Fuss","Réservoir 3.5 litres  montage horizontale avec pied"]
["J4 : Tank 3.5 liter verticale opst. zonder voet","MPPT003","-","EMF12","MPPSFEP01D","MPP9TP","MPP9FC","V","Steel",false,null,null,null,null,null,null,null,null,null,null,null,null,null,null,null,null,null,null,"J4","Tank 3.5 liter verticale opst. zonder voet","Tank 3.5 litre ver. mounting without baseframe","Ölbehalter 3.5 Liter vert. Anbau ohne Fuss","Réservoir 3.5 litres  montage horizontale avec pied"]
["C1 : Tank 5 liter horizontale opst. met voet","MPPT005","MPPBF","-","-","-","-","H","Steel",false,null,null,null,null,null,null,null,null,null,null,null,null,null,null,null,null,null,null,"C1","Tank 5 liter horizontale opst. met voet","Tank 5 litre hor. mounting with baseframe","Ölbehalter 5 Liter horiz. Anbau mit Fuss","Réservoir 5 litres  montage horizontale avec pied"]
["C2 : Tank 5 liter horizontale opst. zonder voet","MPPT005","-","-","-","-","-","H","Steel",true,null,null,null,null,null,null,null,null,null,null,null,null,null,null,null,null,null,null,"C2","Tank 5 liter horizontale opst. zonder voet","Tank 5 litre hor. mounting without baseframe","Ölbehalter 5 Liter horiz. Anbau ohne Fuss","Réservoir 5 litres  montage horizontale sans pied"]
["C3 : Tank 5 liter verticale opst. met voet","MPPT005","MPPBF","EMF12","MPPSFEP01D","-","-","V","Steel",false,null,null,null,null,null,null,null,null,null,null,null,null,null,null,null,null,null,null,"C3","Tank 5 liter verticale opst. met voet","Tank 5 litre ver. mounting with baseframe","Ölbehalter 5 Liter vert. Anbau mit Fuss","Réservoir 5 litres  montage verticale avec pied"]
["C4 : Tank 5 liter verticale opst. zonder voet","MPPT005","-","EMF12","MPPSFEP01D","-","-","V","Steel",false,null,null,null,null,null,null,null,null,null,null,null,null,null,null,null,null,null,null,"C4","Tank 5 liter verticale opst. zonder voet","Tank 5 litre ver. mounting without baseframe","Ölbehalter 5 Liter vert. Anbau ohne Fuss","Réservoir 5 litres  montage verticale sans pied"]
["D1 : Tank 8 liter horizontale opst. met voet","MPPT008","MPPBF","-","-","-","-","H","Steel",false,null,null,null,null,null,null,null,null,null,null,null,null,null,null,null,null,null,null,"D1","Tank 8 liter horizontale opst. met voet","Tank 8 litre hor. mounting with baseframe","Ölbehalter 8 Liter horiz. Anbau mit Fuss","Réservoir 8 litres  montage horizontale avec pied"]
["D2 : Tank 8 liter horizontale opst. zonder voet","MPPT008","-","-","-","-","-","H","Steel",true,null,null,null,null,null,null,null,null,null,null,null,null,null,null,null,null,null,null,"D2","Tank 8 liter horizontale opst. zonder voet","Tank 8 litre hor. mounting without baseframe","Ölbehalter 8 Liter horiz. Anbau ohne Fuss","Réservoir 8 litres  montage horizontale sans pied"]
["D3 : Tank 8 liter verticale opst. met voet","MPPT008","MPPBF","EMF12","MPPSFEP01D","-","-","V","Steel",false,null,null,null,null,null,null,null,null,null,null,null,null,null,null,null,null,null,null,"D3","Tank 8 liter verticale opst. met voet","Tank 8 litre ver. mounting with baseframe","Ölbehalter 8 Liter vert. Anbau mit Fuss","Réservoir 8 litres  montage verticale avec pied"]
["D4 : Tank 8 liter verticale opst. zonder voet","MPPT008","-","EMF12","MPPSFEP01D","-","-","V","Steel",false,null,null,null,null,null,null,null,null,null,null,null,null,null,null,null,null,null,null,"D4","Tank 8 liter verticale opst. zonder voet","Tank 8 litre ver. mounting without baseframe","Ölbehalter 8 Liter vert. Anbau ohne Fuss","Réservoir 8 litres  montage verticale sans pied"]
["E1 : Tank 10 liter horizontale opst. met voet","MPPT010","MPPBF","-","-","-","-","H","Steel",false,null,null,null,null,null,null,null,null,null,null,null,null,null,null,null,null,null,null,"E1","Tank 10 liter horizontale opst. met voet","Tank 10 litre hor. mounting with baseframe","Ölbehalter 10 Liter horiz. Anbau mit Fuss","Réservoir 10 litres  montage horizontale avec pied"]
["E2 : Tank 10 liter horizontale opst. zonder voet","MPPT010","-","-","-","-","-","H","Steel",true,null,null,null,null,null,null,null,null,null,null,null,null,null,null,null,null,null,null,"E2","Tank 10 liter horizontale opst. zonder voet","Tank 10 litre hor. mounting without baseframe","Ölbehalter 10 Liter horiz. Anbau ohne Fuss","Réservoir 10 litres  montage horizontale sans pied"]
["E3 : Tank 10 liter verticale opst. met voet","MPPT010","MPPBF","EMF12","MPPSFEP01D","-","-","V","Steel",false,null,null,null,null,null,null,null,null,null,null,null,null,null,null,null,null,null,null,"E3","Tank 10 liter verticale opst. met voet","Tank 10 litre ver. mounting with baseframe","Ölbehalter 10 Liter vert. Anbau mit Fuss","Réservoir 10 litres  montage verticale avec pied"]
["E4 : Tank 10 liter verticale opst. zonder voet","MPPT010","-","EMF12","MPPSFEP01D","-","-","V","Steel",false,null,null,null,null,null,null,null,null,null,null,null,null,null,null,null,null,null,null,"E4","Tank 10 liter verticale opst. zonder voet","Tank 10 litre ver. mounting without baseframe","Ölbehalter 10 Liter vert. Anbau ohne Fuss","Réservoir 10 litres  montage verticale sans pied"]
["F1 : Tank 12 liter horizontale opst. met voet","MPPT012","MPPBF","-","-","-","-","H","Steel",false,null,null,null,null,null,null,null,null,null,null,null,null,null,null,null,null,null,null,"F1","Tank 12 liter horizontale opst. met voet","Tank 12 litre hor. mounting with baseframe","Ölbehalter 12 Liter horiz. Anbau mit Fuss","Réservoir 12 litres  montage horizontale avec pied"]
["F2 : Tank 12 liter horizontale opst. zonder voet","MPPT012","-","-","-","-","-","H","Steel",true,null,null,null,null,null,null,null,null,null,null,null,null,null,null,null,null,null,null,"F2","Tank 12 liter horizontale opst. zonder voet","Tank 12 litre hor. mounting without baseframe","Ölbehalter 12 Liter horiz. Anbau ohne Fuss","Réservoir 12 litres  montage horizontale sans pied"]
["F3 : Tank 12 liter verticale opst. met voet","MPPT012","MPPBF","EMF12","MPPSFEP01D","-","-","V","Steel",false,null,null,null,null,null,null,null,null,null,null,null,null,null,null,null,null,null,null,"F3","Tank 12 liter verticale opst. met voet","Tank 12 litre ver. mounting with baseframe","Ölbehalter 12 Liter vert. Anbau mit Fuss","Réservoir 12 litres  montage verticale avec pied"]
["F4 : Tank 12 liter verticale opst. zonder voet","MPPT012","-","EMF12","MPPSFEP01D","-","-","V","Steel",false,null,null,null,null,null,null,null,null,null,null,null,null,null,null,null,null,null,null,"F4","Tank 12 liter verticale opst. zonder voet","Tank 12 litre ver. mounting without baseframe","Ölbehalter 12 Liter vert. Anbau ohne Fuss","Réservoir 12 litres  montage verticale sans pied"]
["G1 : Tank 15 liter","MPPT015","-","-","MPPSFEP01D","MPP9TP","MPP9FC","V","T015/Steel",false,null,null,null,null,null,null,null,null,null,null,null,null,null,null,null,null,null,null,"G1","Tank 15 liter","Tank 15 litre","Ölbehalter 15 Liter","Réservoir 15 litres"]
["G2 : Tank 20 liter","MPPT020","-","-","MPPSFEP01D","MPP9TP","MPP9FC","V","T020/Steel",false,null,null,null,null,null,null,null,null,null,null,null,null,null,null,null,null,null,null,"G2","Tank 20 liter","Tank 20 litre","Ölbehalter 20 Liter","Réservoir 20 litres"]
["G3 : Tank 22 liter","MPPT022","MPPBF","-","-","-","-","H","T022/Steel",true,null,null,null,null,null,null,null,null,null,null,null,null,null,null,null,null,null,null,"G3","Tank 22 liter","Tank 22 litre","Ölbehalter 22 Liter","Réservoir 22 litres"]
["M1 : Kunststof tank 1 liter horizontale opst. met voet","MPPT001P","MPPBF","-","-","-","-","H","Plastic",false,null,null,null,null,null,null,null,null,null,null,null,null,null,null,null,null,null,null,"M1","Kunststof tank 1 liter horizontale opst. met voet","Plastic tank 1 litre hor. mounting with baseframe","Plastik Ölbehalter 1 Liter horiz. Anbau mit Fuss","Réservoir en plastique 1 litres  montage horizontale avec pied"]
[{"$f":"AC34&\" : \"&CHOOSE(SEL_LANGUAGE,AD34,AE34,AF34,AG34)","v":"M2 : Kunststof tank 1 liter horizontale opst. zonder voet"},"MPPT001P","-","-","-","-","-","H","Plastic",true,null,null,null,null,null,null,null,null,null,null,null,null,null,null,null,null,null,null,"M2","Kunststof tank 1 liter horizontale opst. zonder voet","Plastic tank 1 litre hor. mounting without baseframe","Plastik Ölbehalter 1 Liter horiz. Anbau ohne Fuss","Réservoir en plastique 1 litres  montage horizontale sans pied"]
["M3 : Kunststof tank 1 liter verticale opst. met voet","MPPT001P","MPPBF","EMF12","MPPSFEP01D","-","-","V","Plastic",false,null,null,null,null,null,null,null,null,null,null,null,null,null,null,null,null,null,null,"M3","Kunststof tank 1 liter verticale opst. met voet","Plastic tank 1 litre ver. mounting with baseframe","Plastik Ölbehalter 1 Liter vert. Anbau mit Fuss","Réservoir en plastique 1 litres  montage verticale avec pied"]
["M4 : Kunststof tank 1 liter verticale opst. zonder voet","MPPT001P","-","EMF12","MPPSFEP01D","-","-","V","Plastic",false,null,null,null,null,null,null,null,null,null,null,null,null,null,null,null,null,null,null,"M4","Kunststof tank 1 liter verticale opst. zonder voet","Plastic tank 1 litre ver. mounting without baseframe","Plastik Ölbehalter 1 Liter vert. Anbau ohne Fuss","Réservoir en plastique 1 litres  montage verticale sans pied"]
["N1 : Kunststof tank 3.5 liter horizontale opst. met voet","MPPT003P","MPPBF","-","-","-","-","H","Plastic",false,null,null,null,null,null,null,null,null,null,null,null,null,null,null,null,null,null,null,"N1","Kunststof tank 3.5 liter horizontale opst. met voet","Plastic tank 3.5 litre hor. mounting with baseframe","Plastik Ölbehalter 3.5 Liter horiz. Anbau mit Fuss","Réservoir en plastique 3.5 litres  montage horizontale avec pied"]
["N2 : Kunststof tank 3.5 liter horizontale opst. zonder voet","MPPT003P","-","-","-","-","-","H","Plastic",true,null,null,null,null,null,null,null,null,null,null,null,null,null,null,null,null,null,null,"N2","Kunststof tank 3.5 liter horizontale opst. zonder voet","Plastic tank 3.5 litre hor. mounting without baseframe","Plastik Ölbehalter 3.5 Liter horiz. Anbau ohne Fuss","Réservoir en plastique 3.5 litres  montage horizontale sans pied"]
["N3 : Kunststof tank 3.5 liter verticale opst. met voet","MPPT003P","MPPBF","EMF12","MPPSFEP01D","-","-","V","Plastic",false,null,null,null,null,null,null,null,null,null,null,null,null,null,null,null,null,null,null,"N3","Kunststof tank 3.5 liter verticale opst. met voet","Plastic tank 3.5 litre ver. mounting with baseframe","Plastik Ölbehalter 3.5 Liter vert. Anbau mit Fuss","Réservoir en plastique 3.5 litres  montage verticale avec pied"]
["N4 : Kunststof tank 3.5 liter verticale opst. zonder voet","MPPT003P","-","EMF12","MPPSFEP01D","-","-","V","Plastic",false,null,null,null,null,null,null,null,null,null,null,null,null,null,null,null,null,null,null,"N4","Kunststof tank 3.5 liter verticale opst. zonder voet","Plastic tank 3.5 litre ver. mounting without baseframe","Plastik Ölbehalter 3.5 Liter vert. Anbau ohne Fuss","Réservoir en plastique 3.5 litres  montage verticale sans pied"]
["I1 : Kunststof tank 5 liter horizontale opst. met voet","MPPT005P","MPPBF","-","-","-","-","H","Plastic",false,null,null,null,null,null,null,null,null,null,null,null,null,null,null,null,null,null,null,"I1","Kunststof tank 5 liter horizontale opst. met voet","Plastic tank 5 litre hor. mounting with baseframe","Plastik Ölbehalter 5 Liter horiz. Anbau mit Fuss","Réservoir en plastique 5 litres  montage horizontale avec pied"]
["I2 : Kunststof tank 5 liter horizontale opst. zonder voet","MPPT005P","-","-","-","-","-","H","Plastic",true,null,null,null,null,null,null,null,null,null,null,null,null,null,null,null,null,null,null,"I2","Kunststof tank 5 liter horizontale opst. zonder voet","Plastic tank 5 litre hor. mounting without baseframe","Plastik Ölbehalter 5 Liter horiz. Anbau ohne Fuss","Réservoir en plastique 5 litres  montage horizontale sans pied"]
["I3 : Kunststof tank 5 liter verticale opst. met voet","MPPT005P","MPPBF","EMF12","MPPSFEP01D","-","-","V","Plastic",false,null,null,null,null,null,null,null,null,null,null,null,null,null,null,null,null,null,null,"I3","Kunststof tank 5 liter verticale opst. met voet","Plastic tank 5 litre ver. mounting with baseframe","Plastik Ölbehalter 5 Liter vert. Anbau mit Fuss","Réservoir en plastique 5 litres  montage verticale avec pied"]
["I4 : Kunststof tank 5 liter verticale opst. zonder voet","MPPT005P","-","EMF12","MPPSFEP01D","-","-","V","Plastic",false,null,null,null,null,null,null,null,null,null,null,null,null,null,null,null,null,null,null,"I4","Kunststof tank 5 liter verticale opst. zonder voet","Plastic tank 5 litre ver. mounting without baseframe","Plastik Ölbehalter 5 Liter vert. Anbau ohne Fuss","Réservoir en plastique 5 litres  montage verticale sans pied"]
["L1 : Kunststof tank 8 liter horizontale opst. met voet","MPPT008P","MPPBF","-","-","-","-","H","Plastic",false,null,null,null,null,null,null,null,null,null,null,null,null,null,null,null,null,null,null,"L1","Kunststof tank 8 liter horizontale opst. met voet","Plastic tank 8 litre hor. mounting with baseframe","Plastik Ölbehalter 8 Liter horiz. Anbau mit Fuss","Réservoir en plastique 8 litres  montage horizontale avec pied"]
["L2 : Kunststof tank 8 liter horizontale opst. zonder voet","MPPT008P","-","-","-","-","-","H","Plastic",true,null,null,null,null,null,null,null,null,null,null,null,null,null,null,null,null,null,null,"L2","Kunststof tank 8 liter horizontale opst. zonder voet","Plastic tank 8 litre hor. mounting without baseframe","Plastik Ölbehalter 8 Liter horiz. Anbau ohne Fuss","Réservoir en plastique 8 litres  montage horizontale sans pied"]
["L3 : Kunststof tank 8 liter verticale opst. met voet","MPPT008P","MPPBF","EMF12","MPPSFEP01D","-","-","V","Plastic",false,null,null,null,null,null,null,null,null,null,null,null,null,null,null,null,null,null,null,"L3","Kunststof tank 8 liter verticale opst. met voet","Plastic tank 8 litre ver. mounting with baseframe","Plastik Ölbehalter 8 Liter vert. Anbau mit Fuss","Réservoir en plastique 8 litres  montage verticale avec pied"]
["L4 : Kunststof tank 8 liter verticale opst. zonder voet","MPPT008P","-","EMF12","MPPSFEP01D","-","-","V","Plastic",false,null,null,null,null,null,null,null,null,null,null,null,null,null,null,null,null,null,null,"L4","Kunststof tank 8 liter verticale opst. zonder voet","Plastic tank 8 litre ver. mounting without baseframe","Plastik Ölbehalter 8 Liter vert. Anbau ohne Fuss","Réservoir en plastique 8 litres  montage verticale sans pied"]
["O1 : Aluminium tank 6 liter","MPPT006A","-","-","MPPSFEP01D","-","-","V","Aluminium",false,null,null,null,null,null,null,null,null,null,null,null,null,null,null,null,null,null,null,"O1","Aluminium tank 6 liter","Aluminium tank 6 litre","Alu Ölbehalter 6 Liter","Réservoir en Aluminium 6 litres"]
["P1 : Aluminium tank 10 liter","MPPT010A","-","-","MPPSFEP01D","-","-","V","Aluminium",false,null,null,null,null,null,null,null,null,null,null,null,null,null,null,null,null,null,null,"P1","Aluminium tank 10 liter","Aluminium tank 10 litre","Alu Ölbehalter 10 Liter","Réservoir en Aluminium 10 litres"]
["Z1 : Losse aanlasflens (zonder tank)","MPPTC","-","-","-","-","-",null,"-",false,null,null,null,null,null,null,null,null,null,null,null,null,null,null,null,null,null,null,"Z1","Losse aanlasflens (zonder tank)","Separate welding collar (without tank)","Anschweissflansch (lose geliefert, ohne Ölbehalter )","Sans reservoir adapteur a souder"]
[]
["LST_PUMP & DBS_PUMP & LDF_PUMP","Artikel1","Artikel2","Artikel3","Artikel4","CC","MaxWP","PompGroep",null,null,null,null,null,null,null,null,null,null,null,null,null,null,null,null,null,null,"Code","Oms_DUT","Oms_ENG","Oms_GER","Oms_FRE"]
[{"$f":"AA54&\" : \"&CHOOSE(SEL_LANGUAGE,AB54,AC54,AD54,AE54)","v":"02 : Pomp 0.26 cc D gr. 0.5 "},"MPP02D","MPPPA05","-","-",0.26,210,0.5,null,null,null,null,null,null,null,null,null,null,null,null,null,null,null,null,null,null,"02","Pomp 0.26 cc D gr. 0.5 ","Pump 0.26 cc D gr. 0.5 ","Pumpe 0.26 cc D gr. 0.5 ","Pompe 0.26 cc D gr. 0.5 "]
[{"$f":"AA55&\" : \"&CHOOSE(SEL_LANGUAGE,AB55,AC55,AD55,AE55)","v":"04 : Pomp 0.38 cc D gr. 0.5 "},"MPP04D","MPPPA05","-","-",0.38,210,0.5,null,null,null,null,null,null,null,null,null,null,null,null,null,null,null,null,null,null,"04","Pomp 0.38 cc D gr. 0.5 ","Pump 0.38 cc D gr. 0.5 ","Pumpe 0.38 cc D gr. 0.5 ","Pompe 0.38 cc D gr. 0.5 "]
[{"$f":"AA56&\" : \"&CHOOSE(SEL_LANGUAGE,AB56,AC56,AD56,AE56)","v":"06 : Pomp 0.64 cc D gr. 0.5 "},"MPP06D","MPPPA05","-","-",0.64,210,0.5,null,null,null,null,null,null,null,null,null,null,null,null,null,null,null,null,null,null,"06","Pomp 0.64 cc D gr. 0.5 ","Pump 0.64 cc D gr. 0.5 ","Pumpe 0.64 cc D gr. 0.5 ","Pompe 0.64 cc D gr. 0.5 "]
[{"$f":"AA57&\" : \"&CHOOSE(SEL_LANGUAGE,AB57,AC57,AD57,AE57)","v":"09 : Pomp 0.85 cc D gr.1 "},"MPP09D","-","-","-",0.85,210,1,null,null,null,null,null,null,null,null,null,null,null,null,null,null,null,null,null,null,"09","Pomp 0.85 cc D gr.1 ","Pump 0.85 cc D gr.1 ","Pumpe 0.85 cc D Gr.1 ","Pompe 0.85 cc D Gr.1 "]
["12 : Pomp 1.2 cc D gr.1","MPP12D","-","-","-",1.2,210,1,null,null,null,null,null,null,null,null,null,null,null,null,null,null,null,null,null,null,"12","Pomp 1.2 cc D gr.1","Pump 1.2 cc D gr.1","Pumpe 1.2 cc D Gr.1","Pompe 1.2 cc D Gr.1"]
["16 : Pomp 1.7 cc D gr.1","MPP16D","-","-","-",1.7,210,1,null,null,null,null,null,null,null,null,null,null,null,null,null,null,null,null,null,null,"16","Pomp 1.7 cc D gr.1","Pump 1.7 cc D gr.1","Pumpe 1.7 cc D Gr.1","Pompe 1.7 cc D Gr.1"]
["20 : Pomp 2.0 cc D gr.1","MPP20D","-","-","-",2,210,1,null,null,null,null,null,null,null,null,null,null,null,null,null,null,null,null,null,null,"20","Pomp 2.0 cc D gr.1","Pump 2.0 cc D gr.1","Pumpe 2.0 cc D Gr.1","Pompe 2.0 cc D Gr.1"]
["2A : Pomp 2.0 cc D gr.1 *stil*","MPP2DS","-","-","-",2,210,1,null,null,null,null,null,null,null,null,null,null,null,null,null,null,null,null,null,null,"2A","Pomp 2.0 cc D gr.1 *stil*","Pump 2.0 cc D gr.1 *silent*","Pumpe 2.0 cc D Gr.1 *still*","Pompe 2.0 cc D Gr.1 *silencieux*"]
["2B : Pomp 2.2 cc D gr.1 *stil*","MPP22DS","-","-","-",2.2000000000000002,210,1,null,null,null,null,null,null,null,null,null,null,null,null,null,null,null,null,null,null,"2B","Pomp 2.2 cc D gr.1 *stil*","Pump 2.2 cc D gr.1 *silent*","Pumpe 2.2 cc D Gr.1 *still*","Pompe 2.2 cc D Gr.1 *silencieux*"]
[{"$f":"AA63&\" : \"&CHOOSE(SEL_LANGUAGE,AB63,AC63,AD63,AE63)","v":"25 : Pomp 2.6 cc D gr.1"},"MPP25D","-","-","-",2.6,210,1,null,null,null,null,null,null,null,null,null,null,null,null,null,null,null,null,null,null,"25","Pomp 2.6 cc D gr.1","Pump 2.6 cc D gr.1","Pumpe 2.6 cc D Gr.1","Pompe 2.6 cc D Gr.1"]
[{"$f":"AA64&\" : \"&CHOOSE(SEL_LANGUAGE,AB64,AC64,AD64,AE64)","v":"2C : Pomp 2.6 cc D gr.1 *stil*"},"MPP26DS","-","-","-",2.6,210,1,null,null,null,null,null,null,null,null,null,null,null,null,null,null,null,null,null,null,"2C","Pomp 2.6 cc D gr.1 *stil*","Pump 2.6 cc D gr.1 *silent*","Pumpe 2.6 cc D Gr.1 *still*","Pompe 2.6 cc D Gr.1 *silencieux*"]
["32 : Pomp 3.2 cc D gr.1","MPP32D","-","-","-",3.2,210,1,null,null,null,null,null,null,null,null,null,null,null,null,null,null,null,null,null,null,"32","Pomp 3.2 cc D gr.1","Pump 3.2 cc D gr.1","Pumpe 3.2 cc D Gr.1","Pompe 3.2 cc D Gr.1"]
["3A : Pomp 3.2 cc D gr.1 *stil*","MPP32DS","-","-","-",3.2,210,1,null,null,null,null,null,null,null,null,null,null,null,null,null,null,null,null,null,null,"3A","Pomp 3.2 cc D gr.1 *stil*","Pump 3.2 cc D gr.1 *silent*","Pumpe 3.2 cc D Gr.1 *still*","Pompe 3.2 cc D Gr.1 *silencieux*"]
["37 : Pomp 3.8 cc D gr.1","MPP37D","-","-","-",3.8,210,1,null,null,null,null,null,null,null,null,null,null,null,null,null,null,null,null,null,null,"37","Pomp 3.8 cc D gr.1","Pump 3.8 cc D gr.1","Pumpe 3.8 cc D Gr.1","Pompe 3.8 cc D Gr.1"]
["3B : Pomp 3.8 cc D gr.1 *stil*","MPP38DS","-","-","-",3.8,210,1,null,null,null,null,null,null,null,null,null,null,null,null,null,null,null,null,null,null,"3B","Pomp 3.8 cc D gr.1 *stil*","Pump 3.8 cc D gr.1 *silent*","Pumpe 3.8 cc D Gr.1 *still*","Pompe 3.8 cc D Gr.1 *silencieux*"]
["42 : Pomp 4.3 cc D gr.1","MPP42D","-","-","-",4.3,210,1,null,null,null,null,null,null,null,null,null,null,null,null,null,null,null,null,null,null,"42","Pomp 4.3 cc D gr.1","Pump 4.3 cc D gr.1","Pumpe 4.3 cc D Gr.1","Pompe 4.3 cc D Gr.1"]
["4A : Pomp 4.3 cc D gr.1 *stil*","MPP43DS","-","-","-",4.3,210,1,null,null,null,null,null,null,null,null,null,null,null,null,null,null,null,null,null,null,"4A","Pomp 4.3 cc D gr.1 *stil*","Pump 4.3 cc D gr.1 *silent*","Pumpe 4.3 cc D Gr.1 *still*","Pompe 4.3 cc D Gr.1 *silencieux*"]
["50 : Pomp 5.0 cc D gr.1","MPP50D","-","-","-",5,210,1,null,null,null,null,null,null,null,null,null,null,null,null,null,null,null,null,null,null,"50","Pomp 5.0 cc D gr.1","Pump 5.0 cc D gr.1","Pumpe 5.0 cc D Gr.1","Pompe 5.0 cc D Gr.1"]
["5A : Pomp 5.0 cc D gr.1 *stil*","MPP5DS","-","-","-",5,210,1,null,null,null,null,null,null,null,null,null,null,null,null,null,null,null,null,null,null,"5A","Pomp 5.0 cc D gr.1 *stil*","Pump 5.0 cc D gr.1 *silent*","Pumpe 5.0 cc D Gr.1 *still*","Pompe 5.0 cc D Gr.1 *silencieux*"]
["63 : Pomp 6.0 cc D gr.1","MPP63D","-","-","-",6,210,1,null,null,null,null,null,null,null,null,null,null,null,null,null,null,null,null,null,null,"63","Pomp 6.0 cc D gr.1","Pump 6.0 cc D gr.1","Pumpe 6.0 cc D Gr.1","Pompe 6.0 cc D Gr.1"]
["78 : Pomp 7.8 cc D gr.1","MPP78D","-","-","-",7.8,160,1,null,null,null,null,null,null,null,null,null,null,null,null,null,null,null,null,null,null,"78","Pomp 7.8 cc D gr.1","Pump 7.8 cc D gr.1","Pumpe 7.8 cc D Gr.1","Pompe 7.8 cc D Gr.1"]
["98 : Pomp 9.8 cc D gr.1","MPP98D","9128110129B","-","-",9.8000000000000007,150,1,null,null,null,null,null,null,null,null,null,null,null,null,null,null,null,null,null,null,"98","Pomp 9.8 cc D gr.1","Pump 9.8 cc D gr.1","Pumpe 9.8 cc D Gr.1","Pompe 9.8 cc D Gr.1"]
["D2 : Dubbelpomp 2.6-4.9 cc D","MPP2649D","9128130129BP001","-","-",2.6,210,1,null,null,null,null,null,null,null,null,null,null,null,null,null,null,null,null,null,null,"D2","Dubbelpomp 2.6-4.9 cc D","Double pump 2.6-4.9 cc D","Doppelpumpe 2.6-4.9 cc D","Pompe double 2.6-4.9 cc D"]
[null,null,null,null,null,null,null,null,null,null,null,null,null,null,null,null,null,null,null,null,null,null,null,null,null,null,""]
["LST_MOUNTING & DBS_MOUNTING","Artikel1","Artikel2","Artikel3","Artikel4","Aantal4","Vulplaat",null,null,null,null,null,null,null,null,null,null,null,null,null,null,null,null,null,null,null,"Code","Oms_DUT","Oms_ENG","Oms_GER","Oms_FRE"]
[{"$f":"AA79&\" : \"&CHOOSE(SEL_LANGUAGE,AB79,AC79,AD79,AE79)","v":"00 : Zonder opbouw"},"-","-","-","VSR04WD",1,true,null,null,null,null,null,null,null,null,null,null,null,null,null,null,null,null,null,null,null,"00","Zonder opbouw","Without cetop mounting","ohne Zwischenplatten","sans montage cetop"]
["C2 : Cetop02","-","-","-","VSR04WD",{"$f":"IF(LEFT(SEL_GAUGE,1)=\"<\",1,0)","v":1},true,null,null,null,null,null,null,null,null,null,null,null,null,null,null,null,null,null,null,null,"C2","Cetop02","Cetop02","Cetop02","Cetop02"]
["FC : Flens FC Cavity SAE 8/4","-","-","-","-",0,false,null,null,null,null,null,null,null,null,null,null,null,null,null,null,null,null,null,null,null,"FC","Flens FC Cavity SAE 8/4","Flange FC Cavity SAE 8/4","Flansch FC Cavity SAE 8/4","Bride FC Cavity SAE 8/4"]
["10 : 1-ledige opbouw","MPPM01","-","912890129B","VSR04WD",{"$f":"IF(LEFT(SEL_GAUGE,1)=\"<\",1,0)","v":1},false,null,null,null,null,null,null,null,null,null,null,null,null,null,null,null,null,null,null,null,"10","1-ledige opbouw","1-Function","1 Funktion","1 fonction"]
["1A : 1-ledige opbouw met vulplaat","MPPM01","MPPSP48","9128140129B","VSR04WD",1,true,null,null,null,null,null,null,null,null,null,null,null,null,null,null,null,null,null,null,null,"1A","1-ledige opbouw met vulplaat","1-Function with heightening plate","1 Funktion mit Distanzplatte","1 fonction avec plaque intermédiaire"]
["1B : 1-ledige opbouw met retourfilter","MPPM01","MPPRF","9128145129B","VSR04WD",1,true,null,null,null,null,null,null,null,null,null,null,null,null,null,null,null,null,null,null,null,"1B","1-ledige opbouw met retourfilter","1-Function with return filtre","1 Funktion mit Rucklauffilter","1 fonction avec filtre retour"]
["20 : 2-ledige opbouw","MPPM02","-","912840129B","VSR04WD",1,false,null,null,null,null,null,null,null,null,null,null,null,null,null,null,null,null,null,null,null,"20","2-ledige opbouw","2-Functions","2 Funktionen","2 fonction"]
["2A : 2-ledige opbouw met vulplaat","MPPM02","MPPSP48","912890129B","VSR04WD",1,true,null,null,null,null,null,null,null,null,null,null,null,null,null,null,null,null,null,null,null,"2A","2-ledige opbouw met vulplaat","2-Functions with heightening plate","2 Funktionen mit Distanzplatte","2 fonction avec plaque intermédiaire"]
["2B : 2-ledige opbouw met retourfilter","MPPM02","MPPRF","912890129B","VSR04WD",1,true,null,null,null,null,null,null,null,null,null,null,null,null,null,null,null,null,null,null,null,"2B","2-ledige opbouw met retourfilter","2-Function with return filtre","2 Funktion mit Rucklauffilter","2 fonction avec filtre retour"]
["30 : 3-ledige opbouw","MPPM03","-","912840129B","VSR04WD",1,false,null,null,null,null,null,null,null,null,null,null,null,null,null,null,null,null,null,null,null,"30","3-ledige opbouw","3-Functions","3 Funktionen","3 fonction"]
["3A : 3-ledige opbouw met vulplaat","MPPM03","MPPSP48","912890129B","VSR04WD",1,true,null,null,null,null,null,null,null,null,null,null,null,null,null,null,null,null,null,null,null,"3A","3-ledige opbouw met vulplaat","3-Functions with heightening plate","3 Funktionen mit Distanzplatte","3 fonction avec plaque intermédiaire"]
["3B : 3-ledige opbouw met retourfilter","MPPM03","MPPRF","912890129B","VSR04WD",1,true,null,null,null,null,null,null,null,null,null,null,null,null,null,null,null,null,null,null,null,"3B","3-ledige opbouw met retourfilter","3-Function with return filtre","3 Funktion mit Rucklauffilter","3 fonction avec filtre retour"]
["40 : 4-ledige opbouw","MPPM04","-","912840129B","VSR04WD",1,false,null,null,null,null,null,null,null,null,null,null,null,null,null,null,null,null,null,null,null,"40","4-ledige opbouw","4-Functions","4 Funktionen","4 fonction"]
["4A : 4-ledige opbouw met vulplaat","MPPM04","MPPSP48","912890129B","VSR04WD",1,true,null,null,null,null,null,null,null,null,null,null,null,null,null,null,null,null,null,null,null,"4A","4-ledige opbouw met vulplaat","4-Functions with heightening plate","4 Funktionen mit Distanzplatte","4 fonction avec plaque intermédiaire"]
["4B : 4-ledige opbouw met retourfilter","MPPM04","MPPRF","912890129B","VSR04WD",1,true,null,null,null,null,null,null,null,null,null,null,null,null,null,null,null,null,null,null,null,"4B","4-ledige opbouw met retourfilter","4-Function with return filtre","4 Funktion mit Rucklauffilter","4 fonction avec filtre retour"]
[null,null,null,null,null,null,null,null,null,null,null,null,null,null,null,null,null,null,null,null,null,null,null,null,null,null,""]
["LST_MOTOR & DBS_MOTOR & LDF_MOTOR","Artikel1","Artikel2","Artikel3","Artikel4","Artikel5","Artikel6","Artikel7","Artikel8","Artikel8.Aantal","kW","Rendement","Toerental","Flow","VulplaatVerplicht","ExtraMontagetijd","AcDc","ConnectImage","PompGroepHalf",null,null,null,null,null,null,null,"Code","Oms_DUT","Oms_ENG","Oms_GER","Oms_FRE"]
[{"$f":"MID(AA96&\" \",1,2)&\" : \"&CHOOSE(SEL_LANGUAGE,AB96,AC96,AD96,AE96)","v":"A  : DC-motor 12 Volt, 2100 Watt"},"MPPDCM12V2100N","MPPDCMC2200","-","-","-","-","-","-",0,2.1,0.85,null,"nvt",false,5,"DC","INF_EM_DC",false,null,null,null,null,null,null,null,"A","DC-motor 12 Volt, 2100 Watt","DC-motor 12 Volt, 2100 Watt","DC-Motor 12 Volt, 2100 Watt","Moteur-DC 12 Volt, 2100 Watt"]
["A1 : DC-motor 12 Volt, 2100 Watt met beschermkap","MPPDCM12V2100N","MPPDCMC2200","MPPDCMPC","-","-","-","-","-",0,2.1,0.85,null,"nvt",false,5,"DC","INF_EM_DC",false,null,null,null,null,null,null,null,"A1","DC-motor 12 Volt, 2100 Watt met beschermkap","DC-motor 12 Volt, 2100 Watt with protection cap","DC-Motor 12 Volt, 2100 Watt mit Schutzkappe","Moteur-DC 12 Volt, 2100 Watt avec casque de protection"]
["B  : DC-motor 24 Volt, 2100 Watt","MPPDCM24V2100N","MPPDCMC2200","-","-","-","-","-","-",0,2.1,0.85,null,"nvt",false,5,"DC","INF_EM_DC",false,null,null,null,null,null,null,null,"B","DC-motor 24 Volt, 2100 Watt","DC-motor 24 Volt, 2100 Watt","DC-Motor 24 Volt, 2100 Watt","Moteur-DC 24 Volt, 2100 Watt"]
["B1 : DC-motor 24 Volt, 2100 Watt met beschermkap","MPPDCM24V2100N","MPPDCMC2200","MPPDCMPC","-","-","-","-","-",0,2.1,0.85,null,"nvt",false,5,"DC","INF_EM_DC",false,null,null,null,null,null,null,null,"B1","DC-motor 24 Volt, 2100 Watt met beschermkap","DC-motor 24 Volt, 2100 Watt with protection cap","DC-Motor 24 Volt, 2100 Watt mit Schutzkappe","Moteur-DC 24 Volt, 2100 Watt avec casque de protection"]
["C  : DC-motor 12 Volt, 800 Watt","MPPDCM12V800N",{"$f":"IF(SEL_PUMP_GROUP<>1,\"MPPDCMC805\",\"MPPDCMC800\")","v":"MPPDCMC800"},"-","-","-","-","-","-",0,0.8,0.85,null,"nvt",false,5,"DC","INF_EM_DC",true,null,null,null,null,null,null,null,"C","DC-motor 12 Volt, 800 Watt","DC-motor 12 Volt, 800 Watt","DC-Motor 12 Volt, 800 Watt","Moteur-DC 12 Volt, 800 Watt"]
["D  : DC-motor 24 Volt, 800 Watt","MPPDCM24V800N",{"$f":"IF(SEL_PUMP_GROUP<>1,\"MPPDCMC805\",\"MPPDCMC800\")","v":"MPPDCMC800"},"-","-","-","-","-","-",0,0.8,0.85,null,"nvt",false,5,"DC","INF_EM_DC",true,null,null,null,null,null,null,null,"D","DC-motor 24 Volt, 800 Watt","DC-motor 24 Volt, 800 Watt","DC-Motor 24 Volt, 800 Watt","Moteur-DC 24 Volt, 800 Watt"]
["G1 : DC-motor 12 Volt, 2500 Watt","MPPDCM12V2500N","MPP9MF71","MPP9MC71HD",{"$f":"IF(SEL_PUMP_GROUP<>1,\"MPP9PCAC05\",\"MPP9PCAC\")","v":"MPP9PCAC"},"MPPDCMR12VHD","MPPDCMCB2200","-","-",0,2.5,0.85,null,"nvt",true,5,"DC","INF_EM_DC",false,null,null,null,null,null,null,null,"G1","DC-motor 12 Volt, 2500 Watt","DC-motor 12 Volt, 2500 Watt","DC-Motor 12 Volt, 2500 Watt","Moteur-DC 12 Volt, 2500 Watt"]
["G  : DC-motor 24 Volt, 3000 Watt","MPPDCM24V3000N","MPP9MF71","MPP9MC71HD","MPP9PCAC","MPPDCMR24VHD","MPPDCMCB2200","-","-",0,3,0.85,null,"nvt",true,5,"DC","INF_EM_DC",false,null,null,null,null,null,null,null,"G","DC-motor 24 Volt, 3000 Watt","DC-motor 24 Volt, 3000 Watt","DC-Motor 24 Volt, 3000 Watt","Moteur-DC 24 Volt, 3000 Watt"]
["E  : E-motor 0.37 kW - 4-B14-300 - 240/400 Volt","EM71B4B14300IE1AKR","MPP9MF71","MPP9MC71","MPP9PCAC","-","-","-","-",0,0.37,0.85,1.37,{"$f":"ROUND(TableSearch(DBS_PUMP,SEL_PUMP,\"CC\")*M104,1)","v":4.4000000000000004},false,0,"AC","INF_EM_AC_3F_STAR",true,null,null,null,null,null,null,null,"E","E-motor 0.37 kW - 4-B14-300 - 240/400 Volt","E-motor 0.37  kW - 4-B14-300 - 240/400 Volt","E-Motor 0.37 kW - 4-B14-300 - 240/400 Volt","Moteur-Electr. 0.37 kW - 4-B14-300 - 240/400 Volt"]
["F  : E-motor 0.55 kW - 4-1B0 - 230 Volt","EM80A4MPP1B0","-","-","MPP9PCAC","-","-","-","-",0,0.55000000000000004,0.8,1.37,{"$f":"ROUND(TableSearch(DBS_PUMP,SEL_PUMP,\"CC\")*M105,1)","v":4.4000000000000004},false,0,"AC","INF_EM_AC_1F",true,null,null,"EM80A4B141B0AKR","MPP9MF80","MPP9MC80",null,null,"F","E-motor 0.55 kW - 4-1B0 - 230 Volt","E-motor 0.55 kW - 4-1B0 - 230 Volt","E-Motor 0.55 kW - 4-1B0 - 230 Volt","Moteur-Electr. 0.55 kW - 4-1B0 - 230 Volt",null,null,"E-motor 0.55 kW - 4-B14-1B0 - 230 Volt","E-motor 0.55 kW - 4-B14-1B0 - 230 Volt","E-Motor 0.55 kW - 4-B14-1B0 - 230 Volt","Moteur-Electr. 0.55 kW - 4-B14-1B0 - 230 Volt"]
["H  : E-motor 0.55 kW - 4-B14-300 - 230/400 Volt","EM80A4B14300IE1AKR","MPP9MF80","MPP9MC80","MPP9PCAC","-","-","-","-",0,0.55000000000000004,0.85,1.38,{"$f":"ROUND(TableSearch(DBS_PUMP,SEL_PUMP,\"CC\")*M106,1)","v":4.4000000000000004},false,0,"AC","INF_EM_AC_3F_STAR",true,null,null,null,null,null,null,null,"H","E-motor 0.55 kW - 4-B14-300 - 230/400 Volt","E-motor 0.55 kW - 4-B14-300 - 230/400 Volt","E-Motor 0.55 kW - 4-B14-300 - 230/400 Volt","Moteur-Electr. 0.55 kW - 4-B14-300 - 230/400 Volt"]
["I  : E-motor 0.75 kW - 4-1B0 - 230 Volt","EM80B4MPP1B0","-","-","MPP9PCAC","-","-","-","-",0,0.75,0.8,1.37,4.4000000000000004,false,0,"AC","INF_EM_AC_1F",true,null,null,"EM80B4B141B0AKR","MPP9MF80","MPP9MC80",null,null,"I","E-motor 0.75 kW - 4-1B0 - 230 Volt","E-motor 0.75 kW - 4-1B0 - 230 Volt","E-Motor 0.75 kW - 4-1B0 - 230 Volt","Moteur-Electr. 0.75 kW - 4-1B0 - 230 Volt",null,null,"E-motor 0.75 kW - 4-B14-1B0 - 230 Volt","E-motor 0.75 kW - 4-B14-1B0 - 230 Volt","E-Motor 0.75 kW - 4-B14-1B0 - 230 Volt","Moteur-Electr. 0.75 kW - 4-B14-1B0 - 230 Volt"]
["K  : E-motor 0.75 kW - 4-B14-300 - 230/400 Volt","EM80B4B14300IE3AKR","MPP9MF80","MPP9MC80","MPP9PCAC","-","-","-","-",0,0.75,0.85,1.4,4.5,false,0,"AC","INF_EM_AC_3F_STAR",true,null,null,null,null,null,null,null,"K","E-motor 0.75 kW - 4-B14-300 - 230/400 Volt","E-motor 0.75 kW - 4-B14-300 - 230/400 Volt","E-Motor 0.75 kW - 4-B14-300 - 230/400 Volt","Moteur-Electr. 0.75 kW - 4-B14-300 - 230/400 Volt"]
["M  : E-motor 1.1 kW - 4-B14-1A0 - 230 Volt","EM90S4B141A0AKR","MPP9MF90","MPP9MC90","MPP9PCAC","-","-","-","-",0,1.1000000000000001,0.8,1.4,4.5,true,0,"AC","INF_EM_AC_1F",false,null,null,null,null,null,null,null,"M","E-motor 1.1 kW - 4-B14-1A0 - 230 Volt","E-motor 1.1 kW - 4-B14-1A0 - 230 Volt","E-Motor 1.1 kW - 4-B14-1A0 - 230Volt","Moteur-Electr. 1.1 kW - 4-B14-1A0 - 230 Volt"]
["N  : E-motor 1.1 kW - 4-300 - 230/400 Volt","EM90S4MPP300IE2","-","-","MPP9PCAC","-","-","-","-",0,1.1000000000000001,0.85,1.42,4.5,true,0,"AC","INF_EM_AC_3F_STAR",false,null,null,"EM90S4B14300IE3AKR","MPP9MF90","MPP9MC90",null,null,"N","E-motor 1.1 kW - 4-300 - 230/400 Volt","E-motor 1.1 kW - 4-300 - 230/400 Volt","E-Motor 1.1 kW - 4-300 - 230/400 Volt","Moteur-Electr. 1.1 kW - 4-300 - 230/400 Volt",null,null,"E-motor 1.1 kW - 4-B14-300 - 230/400 Volt","E-motor 1.1 kW - 4-B14-300 - 230/400 Volt","E-Motor 1.1 kW - 4-B14-300 - 230/400 Volt","Moteur-Electr. 1.1 kW - 4-B14-300 - 230/400 Volt"]
["O  : E-motor 1.5 kW - 4-B14-1A0 - 230 Volt","EM90L4B141A0AKR","MPP9MF90","MPP9MC90","MPP9PCAC","-","-","-","-",0,1.5,0.8,1.44,4.5999999999999996,true,0,"AC","INF_EM_AC_1F",false,null,null,null,null,null,null,null,"O","E-motor 1.5 kW - 4-B14-1A0 - 230 Volt","E-motor 1.5 kW - 4-B14-1A0 - 230 Volt","E-Motor 1.5 kW - 4-B14-1A0 - 230 Volt","Moteur-Electr. 1.5 kW - 4-B14-1A0 - 230 Volt"]
["P  : E-motor 1.5 kW - 4-300 - 230/400 Volt","EM90L4B14300IE3AKR","MPP9MF90","MPP9MC90","MPP9PCAC","-","-","-","-",0,1.5,0.85,1.42,4.5,true,0,"AC","INF_EM_AC_3F_STAR",false,null,null,null,null,null,null,null,"P","E-motor 1.5 kW - 4-300 - 230/400 Volt","E-motor 1.5 kW - 4-300 - 230/400 Volt","E-Motor 1.5 kW - 4-300 - 230/400 Volt","Moteur-Electr. 1.5 kW - 4-300 - 230/400 Volt",null,null,"E-motor 1.5 kW - 4-B14-300 - 230/400 Volt","E-motor 1.5 kW - 4-B14-300 - 230/400 Volt","E-Motor 1.5 kW - 4-B14-300 - 230/400 Volt","Moteur-Electr. 1.5 kW - 4-B14-300 - 230/400 Volt"]
["Q  : E-motor 2.2 kW - 4-B14-300 - 230/400 Volt","EM100LA4B14300IE3A","MPP9MF100","MPP9MC100","MPP9PCAC","-","-","-","-",0,2.2000000000000002,0.85,1.42,4.5,true,0,"AC","INF_EM_AC_3F_STAR",false,null,null,null,null,null,null,null,"Q","E-motor 2.2 kW - 4-B14-300 - 230/400 Volt","E-motor 2.2 kW - 4-B14-300 - 230/400 Volt","E-Motor 2.2kW - 4-B14-300 - 230/400 Volt","Moteur-Electr. 2.2 kW - 4-B14-300 - 230/400 Volt"]
["R  : E-motor 3 kW - 4-B14-500 - 400/690 Volt","EM100LB4B14500IE3A","MPP9MF100","MPP9MC100","MPP9PCAC","-","-","-","-",0,3,0.85,1.42,4.5,true,0,"AC","INF_EM_AC_3F_DELTA",false,null,null,null,null,null,null,null,"R","E-motor 3 kW - 4-B14-500 - 400/690 Volt","E-motor 3 kW - 4-B14-500 - 400/690 Volt","E-Motor 3 kW - 4-B14-500 - 400/690 Volt","Moteur-Electr. 3 kW - 4-B14-500 - 400/690 Volt"]
["T  : E-motor 2.2 kW - 4-B14-1A0 - 230 Volt","EM100LA4B141A0AKR","MPP9MF100","MPP9MC100","MPP9PCAC","-","-","-","-",0,2.2000000000000002,0.85,1.44,4.5999999999999996,true,0,"AC","INF_EM_AC_1F",false,null,null,null,null,null,null,null,"T","E-motor 2.2 kW - 4-B14-1A0 - 230 Volt","E-motor 2.2 kW - 4-B14-1A0 - 230 Volt","E-Motor 2.2 kW - 4-B14-1A0 - 230 Volt","Moteur-Electr. 2.2 kW - 4-B14-1A0 - 230 Volt"]
["U  : E-motor 0.55 kW - 2-B14-1B0 - 230 Volt 3000 rpm","EM71B2B141B0AKR","MPP9MF71","MPP9MC71","MPP9PCAC","-","-","-","-",0,0.55000000000000004,0.85,2.76,8.8000000000000007,false,0,"AC","INF_EM_AC_1F",true,null,null,null,null,null,null,null,"U","E-motor 0.55 kW - 2-B14-1B0 - 230 Volt 3000 rpm","E-motor 0.55 kW - 2-B14-1B0 - 230 Volt 3000 rpm","E-Motor 0.55 kW - 2-B14-1B0 - 230 Volt 3000 rpm","Moteur-Electr. 0.55 kW - 2-B14-1B0 - 230 Volt 3000 rpm"]
["V  : E-motor 0.75 kW - 2-B14-1B0 - 230 Volt 3000 rpm","EM80A2B141B0AKR","MPP9MF80","MPP9MC80","MPP9PCAC","-","-","-","-",0,0.75,0.85,2.76,8.8000000000000007,false,0,"AC","INF_EM_AC_1F",true,null,null,null,null,null,null,null,"V","E-motor 0.75 kW - 2-B14-1B0 - 230 Volt 3000 rpm","E-motor 0.75 kW - 2-B14-1B0 - 230 Volt 3000 rpm","E-Motor 0.75 kW - 2-B14-1B0 - 230 Volt 3000 rpm","Moteur-Electr. 0.75 kW - 2-B14-1B0 - 230 Volt 3000 rpm"]
["L  : E-motor 1.1 kW - 2-B14-1A0 - 230 Volt 3000 rpm","EM80B2B141A0AKR","MPP9MF80","MPP9MC80","MPP9PCAC","-","-","-","-",0,1.1000000000000001,0.8,2.76,{"$f":"ROUND(TableSearch(DBS_PUMP,SEL_PUMP,\"CC\")*M118,1)","v":8.8000000000000007},true,0,"AC","INF_EM_AC_1F",true,null,null,null,null,null,null,null,"L","E-motor 1.1 kW - 2-B14-1A0 - 230 Volt 3000 rpm","E-motor 1.1 kW - 2-B14-1A0 - 230 Volt 3000 rpm","E-Motor 1.1 kW - 2-B14-1A0 - 230 Volt 3000 rpm","Moteur-Electr. 1.1 kW - 2-B14-1A0 - 230 Volt 3000 rpm"]
["W  : E-motor 1.5 kW - 2-B14-1A0 - 230 Volt 3000 rpm","EM90S2B141A0AKR","MPP9MF90","MPP9MC90","MPP9PCAC","-","-","-","-",0,1.5,0.8,2.76,8.8000000000000007,true,0,"AC","INF_EM_AC_1F",true,null,null,null,null,null,null,null,"W","E-motor 1.5 kW - 2-B14-1A0 - 230 Volt 3000 rpm","E-motor 1.5 kW - 2-B14-1A0 - 230 Volt 3000 rpm","E-Motor 1.5 kW - 2-B14-1A0 - 230 Volt 3000 rpm","Moteur-Electr. 1.5 kW - 2-B14-1A0 - 230 Volt 3000 rpm"]
["X  : E-motor 2.2 kW - 2-B14-1A0 - 230 Volt 3000 rpm","EM90L2B141A0","MPP9MF90","MPP9MC90","MPP9PCAC","-","-","-","-",0,2.2000000000000002,0.85,2.76,8.8000000000000007,true,0,"AC","INF_EM_AC_1F",false,null,null,null,null,null,null,null,"X","E-motor 2.2 kW - 2-B14-1A0 - 230 Volt 3000 rpm","E-motor 2.2 kW - 2-B14-1A0 - 230 Volt 3000 rpm","E-Motor 2.2 kW - 2-B14-1A0 - 230 Volt 3000 rpm","Moteur-Electr. 2.2 kW - 2-B14-1A0 - 230 Volt 3000 rpm"]
["Z  : Motor Honda 5.5. pk 3/4\"","GX160UT2QX4OH","MPP9MF90","MPP9MCBSH","MPP9PCAC","MPPMF90H","-","-","-",0,{"$f":"ROUND(5.5*0.75,1)","v":4.0999999999999996},1,3,9.6,true,0,"BZ","-",false,null,null,null,null,null,null,null,"Z","Motor Honda 5.5. pk 3/4\"","Motor Honda 5.5. hp 3/4\"","Motor Honda 5.5. ps 3/4\"","Motor Honda 5.5. cv 3/4\""]
["S  : Geen Elektromotor, geen Koppelbus","-","-","-","-","-","-","-","-",0,null,null,null,"nvt",false,5,"--","-",true,null,null,null,null,null,null,null,"S","Geen Elektromotor, geen Koppelbus","No Electric motor, No coupling sleeve","ohne Elektromotor, Kein Kupplung","Sans moteur électrique, sans accouplement"]
["Y  : Voorzetlager t.b.v. poelie-aandrijving","MPPSUPP",{"$f":"IF(SEL_PUMP_GROUP<>1,\"MPPDCMC805\",\"MPPDCMC800\")","v":"MPPDCMC800"},"-","-","-","-","-","-",0,null,null,null,"nvt",false,5,"--","-",true,null,null,null,null,null,null,null,"Y","Voorzetlager t.b.v. poelie-aandrijving","Support-bearing for v-belt pulley","Vorsetzlager für Riemenscheibe","Palier pour entraînement par courroie"]
[]
["LST_BELL_HOUSING & DBS_BELL_HOUSING","Artikel1","Artikel2","Artikel3",null,null,null,null,null,null,null,null,null,null,null,null,null,null,null,null,null,null,null,null,null,null,"Code","Oms_DUT","Oms_ENG","Oms_GER","Oms_FRE"]
[{"$f":"CHOOSE(SEL_LANGUAGE,AB126,AC126,AD126,AE126)","v":"<Geen>"},"-","-","-",null,null,null,null,null,null,null,null,null,null,null,null,null,null,null,null,null,null,null,null,null,null,null,"<Geen>","<None>","<Frei>","<Sans>"]
[{"$f":"CHOOSE(SEL_LANGUAGE,AB127,AC127,AD127,AE127)","v":"Voor L71 motor + koppelbussen"},"MPP9MF71","MPP9MC71",{"$f":"IF(SEL_PUMP_GROUP<>1,\"MPP9PCAC05\",\"MPP9PCAC\")","v":"MPP9PCAC"},null,null,null,null,null,null,null,null,null,null,null,null,null,null,null,null,null,null,null,null,null,null,null,"Voor L71 motor + koppelbussen","For L71 motor + coupling sleeve","für L71 Motor + Kupplung","Pour moteur L71 + accouplement"]
[{"$f":"CHOOSE(SEL_LANGUAGE,AB128,AC128,AD128,AE128)","v":"Voor M80 motor + koppelbussen"},"MPP9MF80","MPP9MC80",{"$f":"IF(SEL_PUMP_GROUP<>1,\"MPP9PCAC05\",\"MPP9PCAC\")","v":"MPP9PCAC"},null,null,null,null,null,null,null,null,null,null,null,null,null,null,null,null,null,null,null,null,null,null,null,"Voor M80 motor + koppelbussen","For M80 motor + coupling sleeve","für M80 Motor + Kupplung","Pour moteur M80 + accouplement"]
[{"$f":"CHOOSE(SEL_LANGUAGE,AB129,AC129,AD129,AE129)","v":"Voor N90 motor + koppelbussen"},"MPP9MF90","MPP9MC90",{"$f":"IF(SEL_PUMP_GROUP<>1,\"MPP9PCAC05\",\"MPP9PCAC\")","v":"MPP9PCAC"},null,null,null,null,null,null,null,null,null,null,null,null,null,null,null,null,null,null,null,null,null,null,null,"Voor N90 motor + koppelbussen","For N90 motor + coupling sleeve","für N90 Motor + Kupplung","Pour moteur N90 + accouplement"]
[{"$f":"CHOOSE(SEL_LANGUAGE,AB130,AC130,AD130,AE130)","v":"Voor P100 motor + koppelbussen"},"MPP9MF100","MPP9MC100",{"$f":"IF(SEL_PUMP_GROUP<>1,\"MPP9PCAC05\",\"MPP9PCAC\")","v":"MPP9PCAC"},null,null,null,null,null,null,null,null,null,null,null,null,null,null,null,null,null,null,null,null,null,null,null,"Voor P100 motor + koppelbussen","For P100 motor + coupling sleeve","für P100 Motor + Kupplung","Pour moteur P100 + accouplement"]
[null,null,null,null,null,null,null,null,null,null,null,null,null,null,null,null,null,null,null,null,null,null,null,null,null,null,""]
["LST_CHOICE_1 & DBS_CHOICE_1","Artikel1","Artikel2",null,null,null,null,null,null,null,null,null,null,null,null,null,null,null,null,null,null,null,null,null,null,null,"Code","Oms_DUT","Oms_ENG","Oms_GER","Oms_FRE"]
[{"$f":"AA133&\" : \"&CHOOSE(SEL_LANGUAGE,AB133,AC133,AD133,AE133)","v":"1 : Veiligheid 25 - 250 bar"},"MPPRVC","MPPRVCBLOCK",null,null,null,null,null,null,null,null,null,null,null,null,null,null,null,null,null,null,null,null,null,null,null,"1","Veiligheid 25 - 250 bar","Relief valve 25 - 250 bar","Druckbegrenzungsventil 25 - 250 bar","Sécurité 25 - 250 bar"]
[null,null,null,null,null,null,null,null,null,null,null,null,null,null,null,null,null,null,null,null,null,null,null,null,null,null,""]
["LST_CHOICE_2 & DBS_CHOICE_2","Artikel1","Artikel2",null,null,null,null,null,null,null,null,null,null,null,null,null,null,null,null,null,null,null,null,null,null,null,"Code","Oms_DUT","Oms_ENG","Oms_GER","Oms_FRE"]
[{"$f":"AA136&\" : \"&CHOOSE(SEL_LANGUAGE,AB136,AC136,AD136,AE136)","v":"1 : Terugslagklep"},"MPPCV","-",null,null,null,null,null,null,null,null,null,null,null,null,null,null,null,null,null,null,null,null,null,null,null,"1","Terugslagklep","Check valve","Rückschlagventil","Clapet anti-retour"]
[{"$f":"AA137&\" : \"&CHOOSE(SEL_LANGUAGE,AB137,AC137,AD137,AE137)","v":"2 : Plug"},"MPPP34UNF","-",null,null,null,null,null,null,null,null,null,null,null,null,null,null,null,null,null,null,null,null,null,null,null,"2","Plug","Plug","Stopfen","Bouchon"]
[{"$f":"AA138&\" : \"&CHOOSE(SEL_LANGUAGE,AB138,AC138,AD138,AE138)","v":"3 : Plug + extra 1/4 aansluiting"},"MPPPSAE82PT","-",null,null,null,null,null,null,null,null,null,null,null,null,null,null,null,null,null,null,null,null,null,null,null,"3","Plug + extra 1/4 aansluiting","Plug + extra 1/4 connection","Stopfen + extra 1/4 Anschluss","Bouchon + connection supplémentaire 1/4\""]
[{"$f":"AA139&\" : \"&CHOOSE(SEL_LANGUAGE,AB139,AC139,AD139,AE139)","v":"4 : Terugslagklep met meetpunt"},"MPPCVMP","MEV2018",null,null,null,null,null,null,null,null,null,null,null,null,null,null,null,null,null,null,null,null,null,null,null,"4","Terugslagklep met meetpunt","Check valve with measure con.","Rückschlagventil met messpunkt","Clapet anti-retour avec point de mesure"]
[]
["LST_CHOICE_3 & DBS_CHOICE_3","Artikel1","Artikel2","12v","24v","230v",null,null,null,null,null,null,null,null,null,null,null,null,null,null,null,null,null,null,null,null,"Code","Oms_DUT","Oms_ENG","Oms_GER","Oms_FRE"]
[{"$f":"AA142&\" : \"&CHOOSE(SEL_LANGUAGE,AB142,AC142,AD142,AE142)","v":"A : Plug"},{"$f":"IF(SEL_CHOICE_4=A159,\"MPPPSAE82\",\"MPPP34UNF\")","v":"MPPPSAE82"},"-",null,null,null,null,null,null,null,null,null,null,null,null,null,null,null,null,null,null,null,null,null,null,null,"A","Plug","Plug","Stopfen","Bouchon"]
["B : Plug + extra 1/4 aansluiting P","MPPPSAE82P","-",null,null,null,null,null,null,null,null,null,null,null,null,null,null,null,null,null,null,null,null,null,null,null,"B","Plug + extra 1/4 aansluiting P","Plug + extra 1/4 connection P","Stopfen + extra 1/4 Anschluss P","Bouchon + connection supplémentaire 1/4\" P"]
["C : Plug + extra 1/4 aansluiting T","MPPPSAE82T","-",null,null,null,null,null,null,null,null,null,null,null,null,null,null,null,null,null,null,null,null,null,null,null,"C","Plug + extra 1/4 aansluiting T","Plug + extra 1/4 connection T","Stopfen + extra 1/4 Anschluss T","Bouchon + connection supplémentaire 1/4\" T"]
[{"$f":"AA145&\" : \"&CHOOSE(SEL_LANGUAGE,AB145,AC145,AD145,AE145)","v":"D : 2/2 klep NC"},"LSV2082NCP",{"$f":"CHOOSE(SEL_VOLTAGE_INDEX,D145,E145,F145)","v":"LC08C2H"},"LC08C1H","LC08C2H","LC08C4H",null,null,null,null,null,null,null,null,null,null,null,null,null,null,null,null,null,null,null,null,"D","2/2 klep NC","2/2 valve NC","2/2 Wegeventil NC","vanne 2/2 NC"]
[{"$f":"AA146&\" : \"&CHOOSE(SEL_LANGUAGE,AB146,AC146,AD146,AE146)","v":"E : 2/2 klep NC + noodhandbediening"},"LSV2082NCPM",{"$f":"CHOOSE(SEL_VOLTAGE_INDEX,D146,E146,F146)","v":"LC08C2H"},"LC08C1H","LC08C2H","LC08C4H",null,null,null,null,null,null,null,null,null,null,null,null,null,null,null,null,null,null,null,null,"E","2/2 klep NC + noodhandbediening","2/2 valve NC + emergency knob","2/2 Wegeventil NC + Notbedienung","vanne 2/2 NC + emergency knob"]
[{"$f":"AA147&\" : \"&CHOOSE(SEL_LANGUAGE,AB147,AC147,AD147,AE147)","v":"F : 2/2 klep NO"},"LSV2082NOP",{"$f":"CHOOSE(SEL_VOLTAGE_INDEX,D147,E147,F147)","v":"LC08C2H"},"LC08C1H","LC08C2H","LC08C4H",null,null,null,null,null,null,null,null,null,null,null,null,null,null,null,null,null,null,null,null,"F","2/2 klep NO","2/2 valve NO","2/2 Wegeventil NO","vanne 2/2 NO"]
["G : 2/2 klep NC handbediening","MPPMVENC","-",null,null,null,null,null,null,null,null,null,null,null,null,null,null,null,null,null,null,null,null,null,null,null,"G","2/2 klep NC handbediening","2/2 valve NC hand operated","2/2 Wegeventil NC handbetätigt","vanne 2/2 NC commande manuelle"]
["H : 2/2 klep NC handbediening met microswitch","MPPMVNC","-",null,null,null,null,null,null,null,null,null,null,null,null,null,null,null,null,null,null,null,null,null,null,null,"H","2/2 klep NC handbediening met microswitch","2/2 valve NC hand operated with microswitch","2/2 Wegeventil NC handbetätigt mit Mikroschalter","vanne 2/2 NC commande manuelle avec microrupteur"]
[]
[]
["LST_CHOICE_3_FC & DBS_CHOICE_3_FC","Artikel1","Artikel2","Artikel3","Artikel4","12v","24v","230v",null,null,null,null,null,null,null,null,null,null,null,null,null,null,null,null,null,null,"Code","Oms_DUT","Oms_ENG","Oms_GER","Oms_FRE"]
[{"$f":"AA153&\" : \"&CHOOSE(SEL_LANGUAGE,AB153,AC153,AD153,AE153)","v":"A : 4/3 klep AB dicht"},"LSV0834T","-","-",{"$f":"CHOOSE(SEL_VOLTAGE_INDEX,F153,G153,H153)","v":"LC08C2H"},"LC08C1H","LC08C2H","LC08C4H",null,null,null,null,null,null,null,null,null,null,null,null,null,null,null,null,null,null,"A","4/3 klep AB dicht","4/3 valve AB closed","4/3 Wegeventil AB geschlossen","4/3 vanne AB closed"]
[{"$f":"AA154&\" : \"&CHOOSE(SEL_LANGUAGE,AB154,AC154,AD154,AE154)","v":"B : 4/3 klep AB open"},"LSV0834O","-","-",{"$f":"CHOOSE(SEL_VOLTAGE_INDEX,F154,G154,H154)","v":"LC08C2H"},"LC08C1H","LC08C2H","LC08C4H",null,null,null,null,null,null,null,null,null,null,null,null,null,null,null,null,null,null,"B","4/3 klep AB open","4/3 valve AB open","4/3 Wegeventil AB offen","4/3 vanne AB open"]
[{"$f":"AA155&\" : \"&CHOOSE(SEL_LANGUAGE,AB155,AC155,AD155,AE155)","v":"C : 4/3 klep incl. gestuurde-terugslagklep"},"LSV0834O","MPPPOCV","912840",{"$f":"CHOOSE(SEL_VOLTAGE_INDEX,F155,G155,H155)","v":"LC08C2H"},"LC08C1H","LC08C2H","LC08C4H",null,null,null,null,null,null,null,null,null,null,null,null,null,null,null,null,null,null,"C","4/3 klep incl. gestuurde-terugslagklep","4/3 valve with non return valve","4/3 Wegeventil mit Rückschlagventil","4/3 vanne avec non anti-retour piloté"]
[{"$f":"AA156&\" : \"&CHOOSE(SEL_LANGUAGE,AB156,AC156,AD156,AE156)","v":"D : 4/2 klep"},"LSV2084CO","-","-",{"$f":"CHOOSE(SEL_VOLTAGE_INDEX,F156,G156,H156)","v":"LC08C2H"},"LC08C1H","LC08C2H","LC08C4H",null,null,null,null,null,null,null,null,null,null,null,null,null,null,null,null,null,null,"D","4/2 klep","4/2 valve","4/2 Wegeventil","4/2 vanne"]
[]
["LST_CHOICE_4 & DBS_CHOICE_4","Artikel1","Artikel2",null,null,null,null,null,null,null,null,null,null,null,null,null,null,null,null,null,null,null,null,null,null,null,"Code","Oms_DUT","Oms_ENG","Oms_GER","Oms_FRE"]
[{"$f":"AA159&\" : \"&CHOOSE(SEL_LANGUAGE,AB159,AC159,AD159,AE159)","v":"A : Plug"},"MPPP34UNF","-",null,null,null,null,null,null,null,null,null,null,null,null,null,null,null,null,null,null,null,null,null,null,null,"A","Plug","Plug","Stopfen","Bouchon"]
["B : Plug + extra 1/4 aansluiting P","MPPPSAE82T","-",null,null,null,null,null,null,null,null,null,null,null,null,null,null,null,null,null,null,null,null,null,null,null,"B","Plug + extra 1/4 aansluiting P","Plug + extra 1/4 connection P","Stopfen + extra 1/4 Anschluss P","Bouchon + connection supplémentaire 1/4\" P"]
["C : Plug + extra 1/4 aansluiting T","MPPPSAE82P","-",null,null,null,null,null,null,null,null,null,null,null,null,null,null,null,null,null,null,null,null,null,null,null,"C","Plug + extra 1/4 aansluiting T","Plug + extra 1/4 connection T","Stopfen + extra 1/4 Anschluss T","Bouchon + connection supplémentaire 1/4\" T"]
["D : Smoring drukgecomp. 1 ltr","MPPTH1L","-",null,null,null,null,null,null,null,null,null,null,null,null,null,null,null,null,null,null,null,null,null,null,null,"D","Smoring drukgecomp. 1 ltr","Throttle pressure comp. 1 ltr","Drosselventil druckkompensiert 1 l/min","Etrangleur compensé en pression 1 litre"]
["E : Smoring drukgecomp. 2 ltr","MPPTH2L","-",null,null,null,null,null,null,null,null,null,null,null,null,null,null,null,null,null,null,null,null,null,null,null,"E","Smoring drukgecomp. 2 ltr","Throttle pressure comp. 2 ltr","Drosselventil druckkompensiert 2 l/min","Etrangleur compensé en pression 2 litres"]
["F : Smoring drukgecomp. 3 ltr","MPPTH3L","-",null,null,null,null,null,null,null,null,null,null,null,null,null,null,null,null,null,null,null,null,null,null,null,"F","Smoring drukgecomp. 3 ltr","Throttle pressure comp. 3 ltr","Drosselventil druckkompensiert 3 l/min","Etrangleur compensé en pression 3 litres"]
["G : Smoring drukgecomp. 4 ltr","MPPTH4L","-",null,null,null,null,null,null,null,null,null,null,null,null,null,null,null,null,null,null,null,null,null,null,null,"G","Smoring drukgecomp. 4 ltr","Throttle pressure comp. 4 ltr","Drosselventil druckkompensiert 4 l/min","Etrangleur compensé en pression 4 litres"]
["H : Smoring drukgecomp. 5 ltr","MPPTH5L","-",null,null,null,null,null,null,null,null,null,null,null,null,null,null,null,null,null,null,null,null,null,null,null,"H","Smoring drukgecomp. 5 ltr","Throttle pressure comp. 5 ltr","Drosselventil druckkompensiert 5 l/min","Etrangleur compensé en pression 5 litres"]
["I : Smoring drukgecomp. 6 ltr","MPPTH6L","-",null,null,null,null,null,null,null,null,null,null,null,null,null,null,null,null,null,null,null,null,null,null,null,"I","Smoring drukgecomp. 6 ltr","Throttle pressure comp. 6 ltr","Drosselventil druckkompensiert 6 l/min","Etrangleur compensé en pression 6 litres"]
["J : Smoring drukgecomp. 9 ltr","MPPTH9L","-",null,null,null,null,null,null,null,null,null,null,null,null,null,null,null,null,null,null,null,null,null,null,null,"J","Smoring drukgecomp. 9 ltr","Throttle pressure comp. 9 ltr","Drosselventil druckkompensiert 9 l/min","Etrangleur compensé en pression 9 litres"]
["K : Smoring drukgecomp. 12 ltr","MPPTH12L","-",null,null,null,null,null,null,null,null,null,null,null,null,null,null,null,null,null,null,null,null,null,null,null,"K","Smoring drukgecomp. 12 ltr","Throttle pressure comp. 12 ltr","Drosselventil druckkompensiert 12 l/min","Etrangleur compensé en pression 12 litres"]
["L : Smoring imbus verstelling 0-16","MPPTHEN","-",null,null,null,null,null,null,null,null,null,null,null,null,null,null,null,null,null,null,null,null,null,null,null,"L","Smoring imbus verstelling 0-16","Throttle externel adjustment 0-16","Drosselventil Verstellung/Innensechskant 0-16","Etrangleur 0-16 à six pans creux"]
["M : Smoring knop verstelling 0-12","MPPTHK","-",null,null,null,null,null,null,null,null,null,null,null,null,null,null,null,null,null,null,null,null,null,null,null,"M","Smoring knop verstelling 0-12","Throttle knob adjustment 0-12","Drosselventil Verstellung/Drehknopf 0-12","Etrangleur 0-12 avec bouton"]
["N : Smoring drukgecomp. knopverstelling","MPPTHPCK","-",null,null,null,null,null,null,null,null,null,null,null,null,null,null,null,null,null,null,null,null,null,null,null,"N","Smoring drukgecomp. knopverstelling","Throttle pressure comp. knob-adjustment","Drosselventil druckkompensiert Drehknopf","Etranlgeur compensé en pression avec bouton"]
["O : Smoring drukgecomp. imbus-verstelling","MPPTHPC","-",null,null,null,null,null,null,null,null,null,null,null,null,null,null,null,null,null,null,null,null,null,null,null,"O","Smoring drukgecomp. imbus-verstelling","Throttle pressure comp. external adjustment","Drosselventil druckkompensiert Innensechskant","Etrangleur compensé en pression à six pans creux"]
[]
["LST_CHOICE_5 & DBS_CHOICE_5","Artikel1","Artikel2","12v","24v","230v",null,null,null,null,null,null,null,null,null,null,null,null,null,null,null,null,null,null,null,null,"Code","Oms_DUT","Oms_ENG","Oms_GER","Oms_FRE"]
[{"$f":"AA176&\" : \"&CHOOSE(SEL_LANGUAGE,AB176,AC176,AD176,AE176)","v":"A : Plug"},"MPPPSAE82","-",null,null,null,null,null,null,null,null,null,null,null,null,null,null,null,null,null,null,null,null,null,null,null,"A","Plug","Plug","Stopfen","Bouchon"]
["B : Plug + extra 1/4 aansluiting P","MPPPSAE82P","-",null,null,null,null,null,null,null,null,null,null,null,null,null,null,null,null,null,null,null,null,null,null,null,"B","Plug + extra 1/4 aansluiting P","Plug + extra 1/4 connection P","Stopfen + extra 1/4 Anschluss P","Bouchon + connection supplémentaire 1/4\" P"]
["C : Plug + extra 1/4 aansluiting T","MPPPSAE82T","-",null,null,null,null,null,null,null,null,null,null,null,null,null,null,null,null,null,null,null,null,null,null,null,"C","Plug + extra 1/4 aansluiting T","Plug + extra 1/4 connection T","Stopfen + extra 1/4 Anschluss T","Bouchon + connection supplémentaire 1/4\" T"]
[{"$f":"AA179&\" : \"&CHOOSE(SEL_LANGUAGE,AB179,AC179,AD179,AE179)","v":"D : 2/2 klep NC"},"LSV2082NCP",{"$f":"CHOOSE(SEL_VOLTAGE_INDEX,D179,E179,F179)","v":"LC08C2H"},"LC08C1H","LC08C2H","LC08C4H",null,null,null,null,null,null,null,null,null,null,null,null,null,null,null,null,null,null,null,null,"D","2/2 klep NC","2/2 valve NC","2/2 Wegeventil NC","vanne 2/2 NC"]
[{"$f":"AA180&\" : \"&CHOOSE(SEL_LANGUAGE,AB180,AC180,AD180,AE180)","v":"E : 2/2 klep NC + noodhandbediening"},"LSV2082NCPM",{"$f":"CHOOSE(SEL_VOLTAGE_INDEX,D180,E180,F180)","v":"LC08C2H"},"LC08C1H","LC08C2H","LC08C4H",null,null,null,null,null,null,null,null,null,null,null,null,null,null,null,null,null,null,null,null,"E","2/2 klep NC + noodhandbediening","2/2 valve NC + emergency knob","2/2 Wegeventil NC + Notbedienung","vanne 2/2 NC + emergency knob"]
[{"$f":"AA181&\" : \"&CHOOSE(SEL_LANGUAGE,AB181,AC181,AD181,AE181)","v":"F : 2/2 klep NO"},"LSV2082NOP",{"$f":"CHOOSE(SEL_VOLTAGE_INDEX,D181,E181,F181)","v":"LC08C2H"},"LC08C1H","LC08C2H","LC08C4H",null,null,null,null,null,null,null,null,null,null,null,null,null,null,null,null,null,null,null,null,"F","2/2 klep NO","2/2 valve NO","2/2 Wegeventil NO","vanne 2/2 NO"]
["G : 2/2 klep NC handbediening","MPPMVENC","-",null,null,null,null,null,null,null,null,null,null,null,null,null,null,null,null,null,null,null,null,null,null,null,"G","2/2 klep NC handbediening","2/2 valve NC hand operated","2/2 Wegeventil NC handbetätigt","vanne 2/2 NC commande manuelle"]
["H : 2/2 klep NC handbediening met microswitch","MPPMVNC","-",null,null,null,null,null,null,null,null,null,null,null,null,null,null,null,null,null,null,null,null,null,null,null,"H","2/2 klep NC handbediening met microswitch","2/2 valve NC hand operated with microswitch","2/2 Wegeventil NC handbetätigt mit Mikroschalter","vanne 2/2 NC commande manuelle avec microrupteur"]
["J : Handpomp 2cc","MPPHP2","-",null,null,null,null,null,null,null,null,null,null,null,null,null,null,null,null,null,null,null,null,null,null,null,"J","Handpomp 2cc","Handpump 2cc","Hand pumpe 2cc","pompe à main 2cc"]
[]
["LST_GAUGE & DBS_GAUGE","Artikel1",null,null,null,null,null,null,null,null,null,null,null,null,null,null,null,null,null,null,null,null,null,null,null,null,"Code","Oms_DUT","Oms_ENG","Oms_GER","Oms_FRE"]
[{"$f":"\"<\"&CHOOSE(SEL_LANGUAGE,AB187,AC187,AD187,AE187)&\">\"","v":"<Geen manometer>"},"-",null,null,null,null,null,null,null,null,null,null,null,null,null,null,null,null,null,null,null,null,null,null,null,null,null,"Geen manometer","No pressure gauge","ohne Manometer","Sans manomètre"]
[{"$f":"CHOOSE(SEL_LANGUAGE,AB188,AC188,AD188,AE188)","v":"Manometer 250 bar met afsluiter"},"MA63250L04PLGF",null,null,null,null,null,null,null,null,null,null,null,null,null,null,null,null,null,null,null,null,null,null,null,null,null,"Manometer 250 bar met afsluiter","Pressure gauge 250 bar with shut of valve","Manometer 250 bar mit Absperrhahn","Manomètre 250 bar avec robinet de fermeture"]
[{"$f":"CHOOSE(SEL_LANGUAGE,AB189,AC189,AD189,AE189)","v":"Manometer 160 bar met afsluiter"},"MA63160L04PLGF",null,null,null,null,null,null,null,null,null,null,null,null,null,null,null,null,null,null,null,null,null,null,null,null,null,"Manometer 160 bar met afsluiter","Pressure gauge 160 bar with shut of valve","Manometer 160 bar mit Absperrhahn","Manomètre 160 bar avec robinet de fermeture"]
[{"$f":"CHOOSE(SEL_LANGUAGE,AB190,AC190,AD190,AE190)","v":"Manometer 100 bar met afsluiter"},"MA63100L04PLGF",null,null,null,null,null,null,null,null,null,null,null,null,null,null,null,null,null,null,null,null,null,null,null,null,null,"Manometer 100 bar met afsluiter","Pressure gauge 100 bar with shut of valve","Manometer 100 bar mit Absperrhahn","Manomètre 100 bar avec robinet de fermeture"]
[]
["LST_REMOTE_CONTROL & DBS_REMOTE_CONTROL","Artikel1",null,null,null,null,null,null,null,null,null,null,null,null,null,null,null,null,null,null,null,null,null,null,null,null,"Code","Oms_DUT","Oms_ENG","Oms_GER","Oms_FRE"]
[{"$f":"\"<\"&CHOOSE(SEL_LANGUAGE,AB193,AC193,AD193,AE193)&\">\"","v":"<Geen>"},"-",null,null,null,null,null,null,null,null,null,null,null,null,null,null,null,null,null,null,null,null,null,null,null,null,null,"Geen","None","Keine","Sans"]
[{"$f":"CHOOSE(SEL_LANGUAGE,AB194,AC194,AD194,AE194)","v":"Draadloos afstandbediening"},"H12PBTRAILER",null,null,null,null,null,null,null,null,null,null,null,null,null,null,null,null,null,null,null,null,null,null,null,null,null,"Draadloos afstandbediening","Wireless remote control","Drahtlose Fernbedienung","Télécommande"]
[{"$f":"CHOOSE(SEL_LANGUAGE,AB195,AC195,AD195,AE195)","v":"Hangende-drukknopkast met 4m kabel"},"COB81400",null,null,null,null,null,null,null,null,null,null,null,null,null,null,null,null,null,null,null,null,null,null,null,null,null,"Hangende-drukknopkast met 4m kabel","Hanging-pushbutton-control with 4m cable","Hangende-druckknopf-steuerung mit 4m Kabel","Boîtier électrique avec 4 mètres de cable"]
[{"$f":"CHOOSE(SEL_LANGUAGE,AB196,AC196,AD196,AE196)","v":"Hangende-drukknopkast met 6m kabel"},"COB81600",null,null,null,null,null,null,null,null,null,null,null,null,null,null,null,null,null,null,null,null,null,null,null,null,null,"Hangende-drukknopkast met 6m kabel","Hanging-pushbutton-control with 6m cable","Hangende-druckknopf-steuerung mit 6m Kabel","Boîtier électrique avec 6 mètres de cable"]
[]
["LST_VOLTAGE"]
["012C"]
["024C"]
["230A"]
[]
["LST_VALVE & DBS_VALVE","Artikel1","Artikel2","Artikel1 (12v)","Artikel1 (24v)","Artikel1 (230v)",null,null,null,null,null,null,null,null,null,null,null,null,null,null,null,null,null,null,null,null,"Code","Oms_DUT","Oms_ENG","Oms_GER","Oms_FRE"]
["","-","-"]
[{"$f":"CHOOSE(SEL_LANGUAGE,AB205,AC205,AD205,AE205)","v":"Elek. stuurschuif NG6 - Plunger B2"},{"$f":"CHOOSE(SEL_VOLTAGE_INDEX,D205,E205,F205)","v":"KREV03B2024C"},"-","KREV03B2012C","KREV03B2024C","KREV03B2230A",null,null,null,null,null,null,null,null,null,null,null,null,null,null,null,null,null,null,null,null,null,"Elek. stuurschuif NG6 - Plunger B2","Elec. control valve NG6 - Spool B2","Elektromagnetventil NG6 - Schieber B2","Distributeur électrique NG6 - Tiroir B2"]
["Elek. stuurschuif NG6 - Plunger B20","KREV03SB20024C","-","KREV03SB20012C","KREV03SB20024C","KREV03B20230A",null,null,null,null,null,null,null,null,null,null,null,null,null,null,null,null,null,null,null,null,null,"Elek. stuurschuif NG6 - Plunger B20","Elec. control valve NG6 - Spool B20","Elektromagnetventil NG6 - Schieber B20","Distributeur électrique NG6 - Tiroir B20"]
["Elek. stuurschuif NG6 - Plunger B3","KREV03SB3024C","-","KREV03SB3012C","KREV03SB3024C","KREV03B3230A",null,null,null,null,null,null,null,null,null,null,null,null,null,null,null,null,null,null,null,null,null,"Elek. stuurschuif NG6 - Plunger B3","Elec. control valve NG6 - Spool B3","Elektromagnetventil NG6 - Schieber B3","Distributeur électrique NG6 - Tiroir B3"]
["Elek. stuurschuif NG6 - Plunger B3S","KREV03SB3S024C","-","KREV03SB3S012C","KREV03SB3S024C","KREV03B3S230A",null,null,null,null,null,null,null,null,null,null,null,null,null,null,null,null,null,null,null,null,null,"Elek. stuurschuif NG6 - Plunger B3S","Elec. control valve NG6 - Spool B3S","Elektromagnetventil NG6 - Schieber B3S","Distributeur électrique NG6 - Tiroir B3S"]
["Elek. stuurschuif NG6 - Plunger C2","KREV03SC2024C","-","KREV03SC2012C","KREV03SC2024C","KREV03C2230A",null,null,null,null,null,null,null,null,null,null,null,null,null,null,null,null,null,null,null,null,null,"Elek. stuurschuif NG6 - Plunger C2","Elec. control valve NG6 - Spool C2","Elektromagnetventil NG6 - Schieber C2","Distributeur électrique NG6 - Tiroir C2"]
["Elek. stuurschuif NG6 - Plunger C3","KREV03SC3024C","-","KREV03SC3012C","KREV03SC3024C","KREV03C3230A",null,null,null,null,null,null,null,null,null,null,null,null,null,null,null,null,null,null,null,null,null,"Elek. stuurschuif NG6 - Plunger C3","Elec. control valve NG6 - Spool C3","Elektromagnetventil NG6 - Schieber C3","Distributeur électrique NG6 - Tiroir C3"]
["Elek. stuurschuif NG6 - Plunger C3B","KREV03SC3B024C","-","KREV03SC3B012C","KREV03SC3B024C","KREV03C3B230A",null,null,null,null,null,null,null,null,null,null,null,null,null,null,null,null,null,null,null,null,null,"Elek. stuurschuif NG6 - Plunger C3B","Elec. control valve NG6 - Spool C3B","Elektromagnetventil NG6 - Schieber C3B","Distributeur électrique NG6 - Tiroir C3B"]
["Elek. stuurschuif NG6 - Plunger C4","KREV03SC4024C","-","KREV03SC4012C","KREV03SC4024C","KREV03C4230A",null,null,null,null,null,null,null,null,null,null,null,null,null,null,null,null,null,null,null,null,null,"Elek. stuurschuif NG6 - Plunger C4","Elec. control valve NG6 - Spool C4","Elektromagnetventil NG6 - Schieber C4","Distributeur électrique NG6 - Tiroir C4"]
["Elek. stuurschuif NG6 - Plunger C6","KREV03SC6024C","-","KREV03SC6012C","KREV03SC6024C","KREV03C6230A",null,null,null,null,null,null,null,null,null,null,null,null,null,null,null,null,null,null,null,null,null,"Elek. stuurschuif NG6 - Plunger C6","Elec. control valve NG6 - Spool C6","Elektromagnetventil NG6 - Schieber C6","Distributeur électrique NG6 - Tiroir C6"]
[{"$f":"CHOOSE(SEL_LANGUAGE,AB214,AC214,AD214,AE214)","v":"Elek. stuurschuif NG6 - Plunger D2"},"KREV03D2024C","-","KREV03D2012C","KREV03D2024C","KREV03D2230A",null,null,null,null,null,null,null,null,null,null,null,null,null,null,null,null,null,null,null,null,null,"Elek. stuurschuif NG6 - Plunger D2","Elec. control valve NG6 - Spool D2","Elektromagnetventil NG6 - Schieber D2","Distributeur électrique NG6 - Tiroir D2"]
["Handb. Stuurschuif NG6 - Plunger C6","KREV03C6LO","-",null,null,null,null,null,null,null,null,null,null,null,null,null,null,null,null,null,null,null,null,null,null,null,null,"Handb. Stuurschuif NG6 - Plunger C6","Man. Control valve NG6 - Spool C6","Handbetätigt ventil NG6 - Schieber C6","Distributeur manuel NG6 - Tiroir C6"]
["Afdekplaat NG6","KREV903DEK","-",null,null,null,null,null,null,null,null,null,null,null,null,null,null,null,null,null,null,null,null,null,null,null,null,"Afdekplaat NG6","Endplate NG6","Endplatte NG6","Plaque de couverture"]
[]
["LST_VALVE_MOD & DBS_VALVE_MOD","Artikel1","Artikel2","Artikel1 (12v)","Artikel1 (24v)","Artikel1 (230v)",null,null,null,null,null,null,null,null,null,null,null,null,null,null,null,null,null,null,null,null,"Code","Oms_DUT","Oms_ENG","Oms_GER","Oms_FRE"]
["","-","-"]
[{"$f":"AA220&\" - \"&CHOOSE(SEL_LANGUAGE,AB220,AC220,AD220,AE220)","v":"KRMRF03A3 - Drukregelklep NG6"},"KRMRF03A3","-",null,null,null,null,null,null,null,null,null,null,null,null,null,null,null,null,null,null,null,null,null,null,null,"KRMRF03A3","Drukregelklep NG6","Relief valve NG6","Druckbegrenzungsventil NG6","Valve de réglage de pression NG6"]
["KRMRF03B3 - Drukregelklep NG6","KRMRF03B3","-",null,null,null,null,null,null,null,null,null,null,null,null,null,null,null,null,null,null,null,null,null,null,null,"KRMRF03B3","Drukregelklep NG6","Relief valve NG6","Druckbegrenzungsventil NG6","Valve de réglage de pression NG6"]
["KRMRF03C3 - Drukregelklep NG6","KRMRF03C3","-",null,null,null,null,null,null,null,null,null,null,null,null,null,null,null,null,null,null,null,null,null,null,null,"KRMRF03C3","Drukregelklep NG6","Relief valve NG6","Druckbegrenzungsventil NG6","Valve de réglage de pression NG6"]
["KRMRF03D3 - Drukregelklep NG6","KRMRF03D3","-",null,null,null,null,null,null,null,null,null,null,null,null,null,null,null,null,null,null,null,null,null,null,null,"KRMRF03D3","Drukregelklep NG6","Relief valve NG6","Druckbegrenzungsventil NG6","Valve de réglage de pression NG6"]
["KRMSC03A - Elek. Terugslagklep NG6",{"$f":"CHOOSE(SEL_VOLTAGE_INDEX,D224,E224,F224)","v":"KRMSC03A024C"},"-","KRMSC03A012C","KRMSC03A024C","SMSC03A230A",null,null,null,null,null,null,null,null,null,null,null,null,null,null,null,null,null,null,null,null,"KRMSC03A","Elek. Terugslagklep NG6","Elec. non return valve NG6","Elek. entsp Rückschlagventil NG6","Clapet anti-retour électrique NG6"]
["KRMSC03B - Elek. Terugslagklep NG6",{"$f":"CHOOSE(SEL_VOLTAGE_INDEX,D225,E225,F225)","v":"KRMSC03B024C"},"-","KRMSC03B012C","KRMSC03B024C","SMSC03B230A",null,null,null,null,null,null,null,null,null,null,null,null,null,null,null,null,null,null,null,null,"KRMSC03B","Elek. Terugslagklep NG6","Elec. non return valve NG6","Elek. entsp Rückschlagventil NG6","Clapet anti-retour électrique NG6"]
["KRMSC03W - Elek. Terugslagklep NG6",{"$f":"CHOOSE(SEL_VOLTAGE_INDEX,D226,E226,F226)","v":"KRMSC03W024C"},"-","KRMSC03W012C","KRMSC03W024C","SMSC03W230A",null,null,null,null,null,null,null,null,null,null,null,null,null,null,null,null,null,null,null,null,"KRMSC03W","Elek. Terugslagklep NG6","Elec. non return valve NG6","Elek. entsp Rückschlagventil NG6","Clapet anti-retour électrique NG6"]
["KRMPC03A - Gest. Terugslagklep NG6","KRMPC03A","-",null,null,null,null,null,null,null,null,null,null,null,null,null,null,null,null,null,null,null,null,null,null,null,"KRMPC03A","Gest. Terugslagklep NG6","PO non return valve NG6","Entsp. Rückschlagventil NG6","Clapet anti-retour piloté NG6"]
["KRMPC03B - Gest. Terugslagklep NG6","KRMPC03B","-",null,null,null,null,null,null,null,null,null,null,null,null,null,null,null,null,null,null,null,null,null,null,null,"KRMPC03B","Gest. Terugslagklep NG6","PO non return valve NG6","Entsp. Rückschlagventil NG6","Clapet anti-retour piloté NG6"]
["KRMPC03W - Gest. Terugslagklep NG6","KRMPC03W","-",null,null,null,null,null,null,null,null,null,null,null,null,null,null,null,null,null,null,null,null,null,null,null,"KRMPC03W","Gest. Terugslagklep NG6","PO non return valve NG6","Entsp. Rückschlagventil NG6","Clapet anti-retour piloté NG6"]
["KRMTI03A - Smoorterugslagklep NG6","KRMTI03A","-",null,null,null,null,null,null,null,null,null,null,null,null,null,null,null,null,null,null,null,null,null,null,null,"KRMTI03A","Smoorterugslagklep NG6","Throttling valve NG6","Drosselrückschlagventil NG6","Etrangleur de débit unidirectionnel NG6"]
["KRMTI03B - Smoorterugslagklep NG6","KRMTI03B","-",null,null,null,null,null,null,null,null,null,null,null,null,null,null,null,null,null,null,null,null,null,null,null,"KRMTI03B","Smoorterugslagklep NG6","Throttling valve NG6","Drosselrückschlagventil NG6","Etrangleur de débit unidirectionnel NG6"]
["KRMTI03W - Smoorterugslagklep NG6","KRMTI03W","-",null,null,null,null,null,null,null,null,null,null,null,null,null,null,null,null,null,null,null,null,null,null,null,"KRMTI03W","Smoorterugslagklep NG6","Throttling valve NG6","Drosselrückschlagventil NG6","Etrangleur de débit unidirectionnel NG6"]
["KRMTO03A - Smoorterugslagklep NG6","KRMTO03A","-",null,null,null,null,null,null,null,null,null,null,null,null,null,null,null,null,null,null,null,null,null,null,null,"KRMTO03A","Smoorterugslagklep NG6","Throttling valve NG6","Drosselrückschlagventil NG6","Etrangleur de débit unidirectionnel NG6"]
["KRMTO03B - Smoorterugslagklep NG6","KRMTO03B","-",null,null,null,null,null,null,null,null,null,null,null,null,null,null,null,null,null,null,null,null,null,null,null,"KRMTO03B","Smoorterugslagklep NG6","Throttling valve NG6","Drosselrückschlagventil NG6","Etrangleur de débit unidirectionnel NG6"]
["KRMTO03W - Smoorterugslagklep NG6","KRMTO03W","-",null,null,null,null,null,null,null,null,null,null,null,null,null,null,null,null,null,null,null,null,null,null,null,"KRMTO03W","Smoorterugslagklep NG6","Throttling valve NG6","Drosselrückschlagventil NG6","Etrangleur de débit unidirectionnel NG6"]
["KRMPR03A3 - Reduceerklep NG6","KRMPR03A3","-",null,null,null,null,null,null,null,null,null,null,null,null,null,null,null,null,null,null,null,null,null,null,null,"KRMPR03A3","Reduceerklep NG6","Reducing valve NG6","Druckminderventil NG6","Réducteur de pression NG6"]
["KRMPR03B3 - Reduceerklep NG6","KRMPR03B3","-",null,null,null,null,null,null,null,null,null,null,null,null,null,null,null,null,null,null,null,null,null,null,null,"KRMPR03B3","Reduceerklep NG6","Reducing valve NG6","Druckminderventil NG6","Réducteur de pression NG6"]
["KRMPS9030 - Tussenplaat ongeboord","KRMPS9030","-",null,null,null,null,null,null,null,null,null,null,null,null,null,null,null,null,null,null,null,null,null,null,null,"KRMPS9030","Tussenplaat ongeboord","Intermediate Plate","Zwichenplatte","Plaque intermédiaire "]
["KRMPS903A - Tussenplaat","KRMPS903A","-",null,null,null,null,null,null,null,null,null,null,null,null,null,null,null,null,null,null,null,null,null,null,null,"KRMPS903A","Tussenplaat","Intermediate Plate","Zwichenplatte","Plaque intermédiaire "]
["KRMPS903A+K55 - Tussenplaat met drukschakelaar K55","KRMPS903A","K55TO",null,null,null,null,null,null,null,null,null,null,null,null,null,null,null,null,null,null,null,null,null,null,null,"KRMPS903A+K55","Tussenplaat met drukschakelaar K55","Intermediate Plate with pressure-switch K55","Zwichenplatte mit Druckschalter K55","Plaque intermédiaire avec pressostat K55"]
["KRMPS903A+K59 - Tussenplaat met drukschakelaar K59","KRMPS903A","K59P",null,null,null,null,null,null,null,null,null,null,null,null,null,null,null,null,null,null,null,null,null,null,null,"KRMPS903A+K59","Tussenplaat met drukschakelaar K59","Intermediate Plate with pressure-switch K59","Zwichenplatte mit Druckschalter K59","Plaque intermédiaire avec pressostat K59"]
["KRMPS903B - Tussenplaat","KRMPS903B","-",null,null,null,null,null,null,null,null,null,null,null,null,null,null,null,null,null,null,null,null,null,null,null,"KRMPS903B","Tussenplaat","Intermediate Plate","Zwichenplatte","Plaque intermédiaire "]
["KRMPS903B+K55 - Tussenplaat met drukschakelaar K55","KRMPS903B","K55TO",null,null,null,null,null,null,null,null,null,null,null,null,null,null,null,null,null,null,null,null,null,null,null,"KRMPS903B+K55","Tussenplaat met drukschakelaar K55","Intermediate Plate with pressure-switch K55","Zwichenplatte mit Druckschalter K55","Plaque intermédiaire avec pressostat K55"]
["KRMPS903B+K59 - Tussenplaat met drukschakelaar K59","KRMPS903B","K59P",null,null,null,null,null,null,null,null,null,null,null,null,null,null,null,null,null,null,null,null,null,null,null,"KRMPS903B+K59","Tussenplaat met drukschakelaar K59","Intermediate Plate with pressure-switch K59","Zwichenplatte mit Druckschalter K59","Plaque intermédiaire avec pressostat K59"]
["CB10HVM03009 - Balanceerklep NG6","CB10HVM03009","-",null,null,null,null,null,null,null,null,null,null,null,null,null,null,null,null,null,null,null,null,null,null,null,"CB10HVM03009","Balanceerklep NG6","Counterbalancevalve NG6","Gegenhalteventil NG6","Valve d'équilibrage"]
["CB10HVM03017 - Balanceerklep NG6","CB10HVM03017","-",null,null,null,null,null,null,null,null,null,null,null,null,null,null,null,null,null,null,null,null,null,null,null,"CB10HVM03017","Balanceerklep NG6","Counterbalancevalve NG6","Gegenhalteventil NG6","Valve d'équilibrage"]
["FHM0061S - Persfilter FHM-006-1-S-A-A/A10-T2","FHM0061S","-",null,null,null,null,null,null,null,null,null,null,null,null,null,null,null,null,null,null,null,null,null,null,null,"FHM0061S","Persfilter FHM-006-1-S-A-A/A10-T2","Pressurefiltre FHM-006-1-S-A-A/A10-T2","Druckfilter FHM-006-1-S-A-A/A10-T2","Filtre à  pression FHM-006-1-S-A-A/A10-T2"]
[]
["LST_FINISH",null,null,null,null,null,null,null,null,null,null,null,null,null,null,null,null,null,null,null,null,null,null,null,null,null,"Color","Code","Oms_DUT","Oms_ENG","Oms_GER","Oms_FRE"]
[{"$f":"\"<\"&CHOOSE(SEL_LANGUAGE,AC250,AD250,AE250,AF250)&\">\"","v":"<ongespoten>"},null,null,null,null,null,null,null,null,null,null,null,null,null,null,null,null,null,null,null,null,null,null,null,null,null,null,null,"ongespoten","unpainted","unlackiert","non peinte"]
[{"$f":"AB251&\" - \"&CHOOSE(SEL_LANGUAGE,AC251,AD251,AE251,AF251)","v":"RAL1021 - Koolzaadgeel"},null,null,null,null,null,null,null,null,null,null,null,null,null,null,null,null,null,null,null,null,null,null,null,null,null,"252, 189, 031","RAL1021","Koolzaadgeel","Colza yellow","Rapsgelb","Jaune colza"]
["RAL1006 - Maïsgeel",null,null,null,null,null,null,null,null,null,null,null,null,null,null,null,null,null,null,null,null,null,null,null,null,null,"224, 130, 031","RAL1006","Maïsgeel","Maize yellow","Maisgelb","Jaune maïs"]
["RAL1007 - Narcissengeel",null,null,null,null,null,null,null,null,null,null,null,null,null,null,null,null,null,null,null,null,null,null,null,null,null,"227, 122, 031","RAL1007","Narcissengeel","Daffodil yellow","Narzissengelb","Jaune narcisse"]
["RAL3000 - Vuurrood",null,null,null,null,null,null,null,null,null,null,null,null,null,null,null,null,null,null,null,null,null,null,null,null,null,"171, 031, 028","RAL3000","Vuurrood","Flame red","Feuerrot","Rouge feu"]
["RAL3002 - Karmijnrood",null,null,null,null,null,null,null,null,null,null,null,null,null,null,null,null,null,null,null,null,null,null,null,null,null,"163, 026, 026","RAL3002","Karmijnrood","Carmine red","Karminrot","Rouge carmin"]
["RAL5010 - Gentiaanblauw",null,null,null,null,null,null,null,null,null,null,null,null,null,null,null,null,null,null,null,null,null,null,null,null,null,"000, 043, 112","RAL5010","Gentiaanblauw","Gentian blue","Enzianblau","Bleu gentiane"]
["RAL6005 - Mosgroen",null,null,null,null,null,null,null,null,null,null,null,null,null,null,null,null,null,null,null,null,null,null,null,null,null,"010, 056, 031","RAL6005","Mosgroen","Moss green","Moosgrün","Vert mousse"]
["RAL7021 - Zwartgrijs",null,null,null,null,null,null,null,null,null,null,null,null,null,null,null,null,null,null,null,null,null,null,null,null,null,"026, 033, 041","RAL7021","Zwartgrijs","Black grey","Schwarzgrau","Gris noir"]
["RAL7043 - Verkeersgrijs B",null,null,null,null,null,null,null,null,null,null,null,null,null,null,null,null,null,null,null,null,null,null,null,null,null,"064, 069, 069","RAL7043","Verkeersgrijs B","Traffic grey B","Verkehrsgrau B","Gris signalisation B"]
["RAL9001 - Crèmewit",null,null,null,null,null,null,null,null,null,null,null,null,null,null,null,null,null,null,null,null,null,null,null,null,null,"255, 252, 240","RAL9001","Crèmewit","Cream","Cremeweiß","Blanc crème"]
["RAL9005 - Gitzwart",null,null,null,null,null,null,null,null,null,null,null,null,null,null,null,null,null,null,null,null,null,null,null,null,null,"003, 005, 010","RAL9005","Gitzwart","Jet black","Tiefschwarz","Noir foncé"]

{"sheet":"BOM","index":4,"n_rows":114,"n_cols":20,"rows_kept":114,"cut":false,"hidden":true,"merged":[[2,4,2,5],[113,4,113,6]]}
[null,null,null,null,"Mini-Power-Pack",null,{"$f":"MPP!F9","v":"v2019.1 CE"}]
[]
[]
[]
[null,null,null,null,{"$f":"TextPerLanguage(SEL_LANGUAGE,157)","v":"Stuklijst"},2,"-",15,13,14,3,4,5,7,{"$f":"N5+1","v":8},9,10,11,12,13]
[]
["Opmerking","Cond.","Db.Veld","Db.Pos.",{"$f":"\" \"&TextPerLanguage(SEL_LANGUAGE,196)","v":" Materiaal"},{"$f":"\" \"&TextPerLanguage(SEL_LANGUAGE,186)","v":" Omschrijving"},{"$f":"TextPerLanguage(SEL_LANGUAGE,158)&\" \"","v":"Aantal "},null,"Eenheid","Magazijn",null,"Inb.Hoogte","SP666","Type","Eff.X","Eff.Y1","Eff.Y2","Eff.Z1","Eff.Z2","Extra.Info"]
["Tank",null,null,null,"-*"]
["Artikel 1 - Tank",null,"ARTIKEL1",{"$f":"MATCH(C9,OFFSET(DBS_TANK,0,0,1,COLUMNS(DBS_TANK)),0)","v":2},{"$f":"VLOOKUP(SEL_TANK,DBS_TANK,D9,FALSE)","v":"MPPT005"},{"$f":"VLOOKUP(E9,DBS_PARTLIST,$F$5,FALSE)","v":"Stalen tank 5 liter"},1,null,{"$f":"VLOOKUP($E9,DBS_PARTLIST,$I$5,FALSE)","v":"EA"},{"$f":"VLOOKUP($E9,DBS_PARTLIST,$J$5,FALSE)","v":"300"},null,null,null,{"$f":"T(VLOOKUP($E9,DBS_PARTLIST,N$5,FALSE))","v":"TB"},{"$f":"VLOOKUP($E9,DBS_PARTLIST,O$5,FALSE)","v":295},87,87,108,87,{"$f":"VLOOKUP(SEL_TANK,DBS_TANK,MATCH(\"OpstellingVertHor\",OFFSET(DBS_TANK,0,0,1,COLUMNS(DBS_TANK)),0),FALSE)","v":"H"}]
["Artikel 2 - Montage-voet",null,"ARTIKEL2",3,"MPPBF","Montagevoet",1,null,"EA","300",null,null,null,{"$f":"T(VLOOKUP($E10,DBS_PARTLIST,N$5,FALSE))","v":"FE"},0,0,0,0,48]
["Artikel 3 - Koppeling",null,"ARTIKEL3",4,"-","",1,null,"","",null,null,null,{"$f":"T(VLOOKUP($E11,DBS_PARTLIST,N$5,FALSE))","v":""},0,0,0,0,0]
["Artikel 4 - Anti-schuim filter",null,"ARTIKEL4",5,"-","",1,null,"",""]
["Artikel 5 - Aflaatstop",null,"ARTIKEL5",6,"-","",1,null,"",""]
["Artikel 6 - Tankvuldop",null,"ARTIKEL6",7,"-","",1,null,"",""]
["Pomp",null,null,null,"-*"]
["Artikel 1 - Pomp",null,"ARTIKEL1",{"$f":"MATCH(C16,OFFSET(DBS_PUMP,0,0,1,COLUMNS(DBS_PUMP)),0)","v":2},{"$f":"VLOOKUP(SEL_PUMP,DBS_PUMP,D16,FALSE)","v":"MPP32D"},{"$f":"VLOOKUP(E16,DBS_PARTLIST,$F$5,FALSE)","v":"Pump 3.2 cc D gr.1"},1,null,{"$f":"VLOOKUP($E16,DBS_PARTLIST,$I$5,FALSE)","v":"EA"},{"$f":"VLOOKUP($E16,DBS_PARTLIST,$J$5,FALSE)","v":"300"},null,null,null,{"$f":"T(VLOOKUP($E16,DBS_PARTLIST,N$5,FALSE))","v":""},{"$f":"VLOOKUP($E16,DBS_PARTLIST,O$5,FALSE)","v":0},0,0,0,0]
["Artikel 2 - Pomp-adapter",null,"ARTIKEL2",{"$f":"MATCH(C17,OFFSET(DBS_PUMP,0,0,1,COLUMNS(DBS_PUMP)),0)","v":3},{"$f":"VLOOKUP(SEL_PUMP,DBS_PUMP,D17,FALSE)","v":"-"},{"$f":"VLOOKUP(E17,DBS_PARTLIST,$F$5,FALSE)","v":""},1,null,{"$f":"VLOOKUP($E17,DBS_PARTLIST,$I$5,FALSE)","v":""},{"$f":"VLOOKUP($E17,DBS_PARTLIST,$J$5,FALSE)","v":""},null,null,null,{"$f":"T(VLOOKUP($E17,DBS_PARTLIST,N$5,FALSE))","v":""},0,0,0,0,0]
["Electromotor",null,null,null,"-*"]
["Artikel 1 - (Elektro)motor",null,"ARTIKEL1",{"$f":"MATCH(C19,OFFSET(DBS_MOTOR,0,0,1,COLUMNS(DBS_MOTOR)),0)","v":2},{"$f":"VLOOKUP(SEL_MOTOR,DBS_MOTOR,D19,FALSE)","v":"MPPDCM24V2100N"},{"$f":"VLOOKUP(E19,DBS_PARTLIST,$F$5,FALSE)","v":"DC-motor 24VDC 2100W incl. relais"},1,null,{"$f":"VLOOKUP($E19,DBS_PARTLIST,$I$5,FALSE)","v":"EA"},{"$f":"VLOOKUP($E19,DBS_PARTLIST,$J$5,FALSE)","v":"300"},null,null,null,{"$f":"T(VLOOKUP($E19,DBS_PARTLIST,N$5,FALSE))","v":"EB"},{"$f":"VLOOKUP($E19,DBS_PARTLIST,O$5,FALSE)","v":201},56,118,56,56]
["Artikel 2",null,"ARTIKEL2",{"$f":"MATCH(C20,OFFSET(DBS_MOTOR,0,0,1,COLUMNS(DBS_MOTOR)),0)","v":3},"MPPDCMC2200","DC-motor koppeling 2200 W",1,null,"EA","300",null,null,null,{"$f":"T(VLOOKUP($E20,DBS_PARTLIST,N$5,FALSE))","v":""},0,0,0,0,0]
["Artikel 3",null,"ARTIKEL3",4,"-","",1,null,"","",null,null,null,null,0,0,0,0,0]
["Artikel 4",null,"ARTIKEL4",5,"-","",1,null,"","",null,null,null,null,0,0,0,0,0]
["Artikel 5",null,"ARTIKEL5",6,"-","",1,null,"","",null,null,null,null,0,0,0,0,0]
["Artikel 6",null,"ARTIKEL6",7,"-","",1,null,"","",null,null,null,null,0,0,0,0,0]
["Artikel 7",null,"ARTIKEL7",8,"-","",1,null,"","",null,null,null,{"$f":"T(VLOOKUP($E25,DBS_PARTLIST,N$5,FALSE))","v":""},0,0,0,0,0]
["Artikel 8",null,"ARTIKEL8",{"$f":"MATCH(C26,OFFSET(DBS_MOTOR,0,0,1,COLUMNS(DBS_MOTOR)),0)","v":9},"-","",{"$f":"VLOOKUP(SEL_MOTOR,DBS_MOTOR,MATCH(\"ARTIKEL8.Aantal\",OFFSET(DBS_MOTOR,0,0,1,COLUMNS(DBS_MOTOR)),0),FALSE)","v":0},null,"","",null,null,null,{"$f":"T(VLOOKUP($E26,DBS_PARTLIST,N$5,FALSE))","v":""},0,0,0,0,0]
["Lantaarnstuk (handm. sel. indien geen elektr. motor)",null,null,null,"-*"]
["Artikel 1",null,"ARTIKEL1",{"$f":"MATCH(C28,OFFSET(DBS_BELL_HOUSING,0,0,1,COLUMNS(DBS_BELL_HOUSING)),0)","v":2},{"$f":"TableSearch(DBS_BELL_HOUSING,SEL_BELL_HOUSING,C28,\"-\")","v":"-"},{"$f":"VLOOKUP(E28,DBS_PARTLIST,$F$5,FALSE)","v":""},1,null,{"$f":"VLOOKUP($E28,DBS_PARTLIST,$I$5,FALSE)","v":""},{"$f":"VLOOKUP($E28,DBS_PARTLIST,$J$5,FALSE)","v":""},null,null,null,{"$f":"T(VLOOKUP($E28,DBS_PARTLIST,N$5,FALSE))","v":""},{"$f":"VLOOKUP($E28,DBS_PARTLIST,O$5,FALSE)","v":0},0,0,0,0]
["Artikel 2",null,"ARTIKEL2",{"$f":"MATCH(C29,OFFSET(DBS_BELL_HOUSING,0,0,1,COLUMNS(DBS_BELL_HOUSING)),0)","v":3},{"$f":"TableSearch(DBS_BELL_HOUSING,SEL_BELL_HOUSING,C29,\"-\")","v":"-"},{"$f":"VLOOKUP(E29,DBS_PARTLIST,$F$5,FALSE)","v":""},1,null,{"$f":"VLOOKUP($E29,DBS_PARTLIST,$I$5,FALSE)","v":""},{"$f":"VLOOKUP($E29,DBS_PARTLIST,$J$5,FALSE)","v":""},null,null,null,null,0,0,0,0,0]
["Artikel 3",null,"ARTIKEL3",{"$f":"MATCH(C30,OFFSET(DBS_BELL_HOUSING,0,0,1,COLUMNS(DBS_BELL_HOUSING)),0)","v":4},{"$f":"TableSearch(DBS_BELL_HOUSING,SEL_BELL_HOUSING,C30,\"-\")","v":"-"},{"$f":"VLOOKUP(E30,DBS_PARTLIST,$F$5,FALSE)","v":""},1,null,{"$f":"VLOOKUP($E30,DBS_PARTLIST,$I$5,FALSE)","v":""},{"$f":"VLOOKUP($E30,DBS_PARTLIST,$J$5,FALSE)","v":""},null,null,null,null,0,0,0,0,0]
["Overige",null,null,null,"-*"]
["Centrale flens",null,"<Fixed>",null,{"$f":"IF(LEFT(SEL_MOUNTING,2)=\"FC\",\"MPPIFC\",IF(LEFT(SEL_CHOICE_4,1)=\"A\",\"MPPIFA1\",\"MPPIFB1\"))","v":"MPPIFA1"},{"$f":"VLOOKUP(E32,DBS_PARTLIST,$F$5,FALSE)","v":"Centraleflens (3 keuzes)"},1,null,{"$f":"VLOOKUP($E32,DBS_PARTLIST,$I$5,FALSE)","v":"EA"},{"$f":"VLOOKUP($E32,DBS_PARTLIST,$J$5,FALSE)","v":"300"},null,null,null,{"$f":"T(VLOOKUP($E32,DBS_PARTLIST,N$5,FALSE))","v":"FB"},{"$f":"VLOOKUP($E32,DBS_PARTLIST,O$5,FALSE)","v":40},66.5,66.5,66.5,66.5]
["Zuigfilter",null,"<Fixed>",null,"MPPSF",{"$f":"VLOOKUP(E33,DBS_PARTLIST,$F$5,FALSE)","v":"Zuigfilter d.60mm 250 micr3/8\""},1,null,{"$f":"VLOOKUP($E33,DBS_PARTLIST,$I$5,FALSE)","v":"EA"},{"$f":"VLOOKUP($E33,DBS_PARTLIST,$J$5,FALSE)","v":"300"},null,null,null,{"$f":"T(VLOOKUP($E33,DBS_PARTLIST,N$5,FALSE))","v":""},0,0,0,0,0]
["Keuze 1 t/m Keuze 5",null,null,null,"-*"]
["Keuze 1 - Artikel 1",null,"ARTIKEL1",{"$f":"MATCH(C35,OFFSET(DBS_CHOICE_1,0,0,1,COLUMNS(DBS_CHOICE_1)),0)","v":2},{"$f":"VLOOKUP(SEL_CHOICE_1,DBS_CHOICE_1,D35,FALSE)","v":"MPPRVC"},{"$f":"IF(LEFT(E35,1)=\"-\",\"\",VLOOKUP(E35,DBS_PARTLIST,$F$5,FALSE)&\" <\"&LOWER(TextPerLanguage(SEL_LANGUAGE,14))&\" 1>\")","v":"Veiligheid 25-250 bar <keuze 1>"},1,null,{"$f":"VLOOKUP($E35,DBS_PARTLIST,$I$5,FALSE)","v":"EA"},{"$f":"VLOOKUP($E35,DBS_PARTLIST,$J$5,FALSE)","v":"300"},null,null,null,{"$f":"T(VLOOKUP($E35,DBS_PARTLIST,N$5,FALSE))","v":"FE"},{"$f":"VLOOKUP($E35,DBS_PARTLIST,O$5,FALSE)","v":0},50,0,0,0]
["Keuze 2 - Artikel 1",null,"ARTIKEL1",{"$f":"MATCH(C36,OFFSET(DBS_CHOICE_2,0,0,1,COLUMNS(DBS_CHOICE_2)),0)","v":2},{"$f":"VLOOKUP(SEL_CHOICE_2,DBS_CHOICE_2,D36,FALSE)","v":"MPPCV"},{"$f":"IF(LEFT(E36,1)=\"-\",\"\",VLOOKUP(E36,DBS_PARTLIST,$F$5,FALSE)&\" <\"&LOWER(TextPerLanguage(SEL_LANGUAGE,14))&\" 2>\")","v":"Terugslagklep <keuze 2>"},1,null,"EA","300",null,null,null,"FE",0,0,0,0,0]
["Keuze 2 - Artikel 2",null,"ARTIKEL2",{"$f":"MATCH(C37,OFFSET(DBS_CHOICE_2,0,0,1,COLUMNS(DBS_CHOICE_2)),0)","v":3},{"$f":"VLOOKUP(SEL_CHOICE_2,DBS_CHOICE_2,D37,FALSE)","v":"-"},{"$f":"IF(LEFT(E37,1)=\"-\",\"\",VLOOKUP(E37,DBS_PARTLIST,$F$5,FALSE)&\" <\"&LOWER(TextPerLanguage(SEL_LANGUAGE,14))&\" 2>\")","v":""},1,null,"","",null,null,null,"",0,0,0,0,0]
["Keuze 3 - Artikel 1",{"$f":"LEFT(SEL_MOUNTING,2)<>\"FC\"","v":true},"ARTIKEL1",{"$f":"MATCH(C38,OFFSET(DBS_CHOICE_3,0,0,1,COLUMNS(DBS_CHOICE_3)),0)","v":2},{"$f":"IF(B38,VLOOKUP(SEL_CHOICE_3,DBS_CHOICE_3,D38,FALSE),\"-\")","v":"MPPPSAE82"},{"$f":"IF(LEFT(E38,1)=\"-\",\"\",VLOOKUP(E38,DBS_PARTLIST,$F$5,FALSE)&\" <\"&LOWER(TextPerLanguage(SEL_LANGUAGE,14))&\" 3>\")","v":"Cavityplug SAE 8-2 <keuze 3>"},1,null,"EA","300",null,null,{"$f":"VLOOKUP(E38,DBS_PARTLIST,$M$5,FALSE)","v":0},"",0,0,0,0,0]
["Keuze 3 - Artikel 2",{"$f":"LEFT(SEL_MOUNTING,2)<>\"FC\"","v":true},"ARTIKEL2",{"$f":"MATCH(C39,OFFSET(DBS_CHOICE_3,0,0,1,COLUMNS(DBS_CHOICE_3)),0)","v":3},{"$f":"IF(B39,VLOOKUP(SEL_CHOICE_3,DBS_CHOICE_3,D39,FALSE),\"-\")","v":"-"},"",1,null,"","",null,null,{"$f":"VLOOKUP(E39,DBS_PARTLIST,$M$5,FALSE)","v":0},"",0,0,0,0,0]
["Keuze 3 - Artikel 1 (FC flens)",{"$f":"LEFT(SEL_MOUNTING,2)=\"FC\"","v":false},"ARTIKEL1",{"$f":"MATCH(C40,OFFSET(DBS_CHOICE_3_FC,0,0,1,COLUMNS(DBS_CHOICE_3_FC)),0)","v":2},{"$f":"IF(B40,VLOOKUP(SEL_CHOICE_3_FC,DBS_CHOICE_3_FC,D40,FALSE),\"-\")","v":"-"},"",1,null,"","",null,null,{"$f":"VLOOKUP(E40,DBS_PARTLIST,$M$5,FALSE)","v":0},"",0,0,0,0,0]
["Keuze 3 - Artikel 2 (FC flens)",{"$f":"LEFT(SEL_MOUNTING,2)=\"FC\"","v":false},"ARTIKEL2",{"$f":"MATCH(C41,OFFSET(DBS_CHOICE_3_FC,0,0,1,COLUMNS(DBS_CHOICE_3_FC)),0)","v":3},{"$f":"IF(B41,VLOOKUP(SEL_CHOICE_3_FC,DBS_CHOICE_3_FC,D41,FALSE),\"-\")","v":"-"},"",1,null,"","",null,null,{"$f":"VLOOKUP(E41,DBS_PARTLIST,$M$5,FALSE)","v":0},"",0,0,0,0,0]
["Keuze 3 - Artikel 3 (FC flens)",{"$f":"LEFT(SEL_MOUNTING,2)=\"FC\"","v":false},"ARTIKEL3",{"$f":"MATCH(C42,OFFSET(DBS_CHOICE_3_FC,0,0,1,COLUMNS(DBS_CHOICE_3_FC)),0)","v":4},{"$f":"IF(B42,VLOOKUP(SEL_CHOICE_3_FC,DBS_CHOICE_3_FC,D42,FALSE),\"-\")","v":"-"},"",2,null,"","",null,null,{"$f":"VLOOKUP(E42,DBS_PARTLIST,$M$5,FALSE)","v":0}]
["Keuze 3 - Artikel 4 (FC flens)",{"$f":"LEFT(SEL_MOUNTING,2)=\"FC\"","v":false},"ARTIKEL4",{"$f":"MATCH(C43,OFFSET(DBS_CHOICE_3_FC,0,0,1,COLUMNS(DBS_CHOICE_3_FC)),0)","v":5},{"$f":"IF(B43,VLOOKUP(SEL_CHOICE_3_FC,DBS_CHOICE_3_FC,D43,FALSE),\"-\")","v":"-"},"",{"$f":"SUM(M40:M42)","v":0},null,"",""]
["Keuze 4 - Artikel 1",{"$f":"OR(LEFT(SEL_CHOICE_4,1)<>\"A\",LEFT(SEL_MOUNTING,2)=\"FC\")","v":false},"ARTIKEL1",{"$f":"MATCH(C44,OFFSET(DBS_CHOICE_4,0,0,1,COLUMNS(DBS_CHOICE_4)),0)","v":2},{"$f":"IF(B44,VLOOKUP(SEL_CHOICE_4,DBS_CHOICE_4,D44,FALSE),\"-\")","v":"-"},{"$f":"IF(LEFT(E44,1)=\"-\",\"\",VLOOKUP(E44,DBS_PARTLIST,$F$5,FALSE)&\" <\"&LOWER(TextPerLanguage(SEL_LANGUAGE,14))&\" 4>\")","v":""},1,null,"","",null,null,null,"",0,0,0,0,0]
["Keuze 4 - Artikel 2",{"$f":"LEFT(SEL_CHOICE_4,1)<>\"A\"","v":false},"ARTIKEL2",{"$f":"MATCH(C45,OFFSET(DBS_CHOICE_4,0,0,1,COLUMNS(DBS_CHOICE_4)),0)","v":3},{"$f":"IF(B45,VLOOKUP(SEL_CHOICE_4,DBS_CHOICE_4,D45,FALSE),\"-\")","v":"-"},{"$f":"IF(LEFT(E45,1)=\"-\",\"\",VLOOKUP(E45,DBS_PARTLIST,$F$5,FALSE)&\" <\"&LOWER(TextPerLanguage(SEL_LANGUAGE,14))&\" 4>\")","v":""},1,null,"","",null,null,null,"",0,0,0,0,0]
["Keuze 5 - Artikel 1",{"$f":"AND(LEFT(SEL_CHOICE_4,1)<>\"A\",LEFT(SEL_MOUNTING,2)<>\"FC\")","v":false},"ARTIKEL1",{"$f":"MATCH(C46,OFFSET(DBS_CHOICE_5,0,0,1,COLUMNS(DBS_CHOICE_5)),0)","v":2},{"$f":"IF(B46,VLOOKUP(SEL_CHOICE_5,DBS_CHOICE_5,D46,FALSE),\"-\")","v":"-"},{"$f":"IF(LEFT(E46,1)=\"-\",\"\",VLOOKUP(E46,DBS_PARTLIST,$F$5,FALSE)&\" <\"&LOWER(TextPerLanguage(SEL_LANGUAGE,14))&\" 5>\")","v":""},1,null,"","",null,null,null,"",0,0,0,0,0]
["Keuze 5 - Artikel 2",{"$f":"AND(LEFT(SEL_CHOICE_4,1)<>\"A\",LEFT(SEL_MOUNTING,2)<>\"FC\")","v":false},"ARTIKEL2",{"$f":"MATCH(C47,OFFSET(DBS_CHOICE_5,0,0,1,COLUMNS(DBS_CHOICE_5)),0)","v":3},{"$f":"IF(B47,VLOOKUP(SEL_CHOICE_5,DBS_CHOICE_5,D47,FALSE),\"-\")","v":"-"},{"$f":"IF(LEFT(E47,1)=\"-\",\"\",VLOOKUP(E47,DBS_PARTLIST,$F$5,FALSE)&\" <\"&LOWER(TextPerLanguage(SEL_LANGUAGE,14))&\" 5>\")","v":""},1,null,"","",null,null,null,"",0,0,0,0,0]
["Manometer & Afstandsbediening",null,null,null,"-*"]
["Manometer - Artikel 1",null,"ARTIKEL1",{"$f":"MATCH(C49,OFFSET(DBS_GAUGE,0,0,1,COLUMNS(DBS_GAUGE)),0)","v":2},{"$f":"VLOOKUP(SEL_GAUGE,DBS_GAUGE,D49,FALSE)","v":"-"},{"$f":"VLOOKUP(E49,DBS_PARTLIST,$F$5,FALSE)","v":""},1,null,{"$f":"VLOOKUP($E49,DBS_PARTLIST,$I$5,FALSE)","v":""},{"$f":"VLOOKUP($E49,DBS_PARTLIST,$J$5,FALSE)","v":""},null,null,null,{"$f":"T(VLOOKUP($E49,DBS_PARTLIST,N$5,FALSE))","v":""},{"$f":"VLOOKUP($E49,DBS_PARTLIST,O$5,FALSE)","v":0},0,0,0,0]
["EM18090",{"$f":"E49<>\"-\"","v":false},"<Fixed>",null,{"$f":"IF(B50,\"EM18090\",\"-\")","v":"-"},{"$f":"VLOOKUP(E50,DBS_PARTLIST,$F$5,FALSE)","v":""},1,null,{"$f":"VLOOKUP($E50,DBS_PARTLIST,$I$5,FALSE)","v":""},{"$f":"VLOOKUP($E50,DBS_PARTLIST,$J$5,FALSE)","v":""},null,null,null,{"$f":"T(VLOOKUP($E50,DBS_PARTLIST,N$5,FALSE))","v":""},0,0,0,0,0]
["Afstandsbediening - Artikel 1",null,"ARTIKEL1",{"$f":"MATCH(C51,OFFSET(DBS_REMOTE_CONTROL,0,0,1,COLUMNS(DBS_REMOTE_CONTROL)),0)","v":2},{"$f":"VLOOKUP(SEL_REMOTE_CONTROL,DBS_REMOTE_CONTROL,D51,FALSE)","v":"-"},{"$f":"VLOOKUP(E51,DBS_PARTLIST,$F$5,FALSE)","v":""},1,null,{"$f":"VLOOKUP($E51,DBS_PARTLIST,$I$5,FALSE)","v":""},{"$f":"VLOOKUP($E51,DBS_PARTLIST,$J$5,FALSE)","v":""},null,null,null,{"$f":"T(VLOOKUP($E51,DBS_PARTLIST,N$5,FALSE))","v":""},0,0,0,0,0]
["Cetop02",null,null,null,"-*"]
["Cetop02 - Artikel 1 (basis)",{"$f":"LEFT(SEL_MOUNTING,2)=\"C2\"","v":false},null,null,{"$f":"IF(B53,Cetop02!A2,\"-\")","v":"-"},{"$f":"VLOOKUP(E53,DBS_PARTLIST,$F$5,FALSE)","v":""},{"$f":"IF(LEFT(SEL_MOUNTING,2)=\"C2\",Cetop02!B2,0)","v":0},null,{"$f":"VLOOKUP($E53,DBS_PARTLIST,$I$5,FALSE)","v":""},{"$f":"VLOOKUP($E53,DBS_PARTLIST,$J$5,FALSE)","v":""},null,null,null,{"$f":"T(VLOOKUP($E53,DBS_PARTLIST,N$5,FALSE))","v":""},{"$f":"VLOOKUP($E53,DBS_PARTLIST,O$5,FALSE)","v":0},0,0,0,0]
["Cetop02 - Artikel 2",false,null,null,{"$f":"IF(B54,Cetop02!A3,\"-\")","v":"-"},"",{"$f":"IF(LEFT(SEL_MOUNTING,2)=\"C2\",Cetop02!B3,0)","v":0},null,"","",null,null,{"$f":"VLOOKUP(E54,DBS_PARTLIST,$M$5,FALSE)*G54","v":0},"",0,0,0,0,0,1]
["Cetop02 - Artikel 3",false,null,null,{"$f":"IF(B55,Cetop02!A4,\"-\")","v":"-"},"",{"$f":"IF(LEFT(SEL_MOUNTING,2)=\"C2\",Cetop02!B4,0)","v":0},null,"","",null,null,0,"",0,0,0,0,0,1]
["Cetop02 - Artikel 4",false,null,null,{"$f":"IF(B56,Cetop02!A5,\"-\")","v":"-"},"",{"$f":"IF(LEFT(SEL_MOUNTING,2)=\"C2\",Cetop02!B5,0)","v":0},null,"","",null,null,0,"",0,0,0,0,0,1]
["Cetop02 - Artikel 5",false,null,null,{"$f":"IF(B57,Cetop02!A6,\"-\")","v":"-"},"",{"$f":"IF(LEFT(SEL_MOUNTING,2)=\"C2\",Cetop02!B6,0)","v":0},null,"","",null,null,0,"",0,0,0,0,0,1]
["Cetop02 - Artikel 6",false,null,null,{"$f":"IF(B58,Cetop02!A7,\"-\")","v":"-"},"",{"$f":"IF(LEFT(SEL_MOUNTING,2)=\"C2\",Cetop02!B7,0)","v":0},null,"","",null,null,0,"",0,0,0,0,0,1]
["Cetop02 - Artikel 7",false,null,null,{"$f":"IF(B59,Cetop02!A8,\"-\")","v":"-"},"",{"$f":"IF(LEFT(SEL_MOUNTING,2)=\"C2\",Cetop02!B8,0)","v":0},null,"","",null,null,0,"",0,0,0,0,0,1]
["Cetop02 - Artikel 8",false,null,null,{"$f":"IF(B60,Cetop02!A9,\"-\")","v":"-"},"",{"$f":"IF(LEFT(SEL_MOUNTING,2)=\"C2\",Cetop02!B9,0)","v":0},null,"","",null,null,0,"",0,0,0,0,0,1]
["Cetop02 - Artikel 9",false,null,null,{"$f":"IF(B61,Cetop02!A10,\"-\")","v":"-"},"",{"$f":"IF(LEFT(SEL_MOUNTING,2)=\"C2\",Cetop02!B10,0)","v":0},null,"","",null,null,0,"",0,0,0,0,0,1]
["Cetop02 - Artikel 10",false,null,null,{"$f":"IF(B62,Cetop02!A11,\"-\")","v":"-"},"",{"$f":"IF(LEFT(SEL_MOUNTING,2)=\"C2\",Cetop02!B11,0)","v":0},null,"","",null,null,0,"",0,0,0,0,0,1]
["Cetop02 - Artikel 11",false,null,null,{"$f":"IF(B63,Cetop02!A12,\"-\")","v":"-"},"",{"$f":"IF(LEFT(SEL_MOUNTING,2)=\"C2\",Cetop02!B12,0)","v":0},null,"","",null,null,0,"",0,0,0,0,0,1]
["Cetop02 - Artikel 12",false,null,null,{"$f":"IF(B64,Cetop02!A13,\"-\")","v":"-"},"",{"$f":"IF(LEFT(SEL_MOUNTING,2)=\"C2\",Cetop02!B13,0)","v":0},null,"","",null,null,0,"",0,0,0,0,0,1]
["Cetop02 - Artikel 13",false,null,null,{"$f":"IF(B65,Cetop02!A14,\"-\")","v":"-"},"",{"$f":"IF(LEFT(SEL_MOUNTING,2)=\"C2\",Cetop02!B14,0)","v":0},null,"","",null,null,0,"",0,0,0,0,0,1]
["Cetop02 - Artikel 14 - spoel(en)",false,null,null,{"$f":"IF(B66,Cetop02!A15,\"-\")","v":"-"},"",{"$f":"IF(LEFT(SEL_MOUNTING,2)=\"C2\",SUM(M54:M65,0),0)","v":0},null,"","",null,null,null,"",0,0,0,0,0]
["Opbouwbasis",null,null,null,"-*"]
["Artikel 1",null,"ARTIKEL1",{"$f":"MATCH(C68,OFFSET(DBS_MOUNTING,0,0,1,COLUMNS(DBS_MOUNTING)),0)","v":2},{"$f":"VLOOKUP(SEL_MOUNTING,DBS_MOUNTING,D68,FALSE)","v":"-"},{"$f":"VLOOKUP(E68,DBS_PARTLIST,$F$5,FALSE)","v":""},1,null,{"$f":"VLOOKUP($E68,DBS_PARTLIST,$I$5,FALSE)","v":""},{"$f":"VLOOKUP($E68,DBS_PARTLIST,$J$5,FALSE)","v":""},null,null,{"$f":"VLOOKUP(E68,DBS_PARTLIST,$M$5,FALSE)","v":0},{"$f":"T(VLOOKUP($E68,DBS_PARTLIST,N$5,FALSE))","v":""},{"$f":"VLOOKUP($E68,DBS_PARTLIST,O$5,FALSE)","v":0},0,0,0,0]
["Artikel 2",null,"ARTIKEL2",{"$f":"MATCH(C69,OFFSET(DBS_MOUNTING,0,0,1,COLUMNS(DBS_MOUNTING)),0)","v":3},{"$f":"VLOOKUP(SEL_MOUNTING,DBS_MOUNTING,D69,FALSE)","v":"-"},{"$f":"VLOOKUP(E69,DBS_PARTLIST,$F$5,FALSE)","v":""},1,null,{"$f":"VLOOKUP($E69,DBS_PARTLIST,$I$5,FALSE)","v":""},{"$f":"VLOOKUP($E69,DBS_PARTLIST,$J$5,FALSE)","v":""},null,null,{"$f":"VLOOKUP(E69,DBS_PARTLIST,$M$5,FALSE)","v":0},{"$f":"T(VLOOKUP($E69,DBS_PARTLIST,N$5,FALSE))","v":""},0,0,0,0,0]
["Artikel 3",null,"ARTIKEL3",{"$f":"MATCH(C70,OFFSET(DBS_MOUNTING,0,0,1,COLUMNS(DBS_MOUNTING)),0)","v":4},{"$f":"IF(SYS_INCLUDE_BOLTS,VLOOKUP(SEL_MOUNTING,DBS_MOUNTING,D70,FALSE),\"-\")","v":"-"},{"$f":"VLOOKUP(E70,DBS_PARTLIST,$F$5,FALSE)","v":""},2,null,{"$f":"VLOOKUP($E70,DBS_PARTLIST,$I$5,FALSE)","v":""},{"$f":"VLOOKUP($E70,DBS_PARTLIST,$J$5,FALSE)","v":""},null,null,{"$f":"VLOOKUP(E70,DBS_PARTLIST,$M$5,FALSE)","v":0},{"$f":"T(VLOOKUP($E70,DBS_PARTLIST,N$5,FALSE))","v":""},0,0,0,0,0]
["Artikel 4",null,"ARTIKEL4",{"$f":"MATCH(C71,OFFSET(DBS_MOUNTING,0,0,1,COLUMNS(DBS_MOUNTING)),0)","v":5},{"$f":"IF(G71=0,\"-\",VLOOKUP(SEL_MOUNTING,DBS_MOUNTING,D71,FALSE))","v":"VSR04WD"},{"$f":"VLOOKUP(E71,DBS_PARTLIST,$F$5,FALSE)","v":"Afsluitplug inbus VSR 1/4 BSP"},{"$f":"TableSearch(DBS_MOUNTING,SEL_MOUNTING,\"Aantal4\")","v":1},null,{"$f":"VLOOKUP($E71,DBS_PARTLIST,$I$5,FALSE)","v":"EA"},{"$f":"VLOOKUP($E71,DBS_PARTLIST,$J$5,FALSE)","v":"300"},null,null,null,{"$f":"T(VLOOKUP($E71,DBS_PARTLIST,N$5,FALSE))","v":""},0,0,0,0,0]
["Opbouw.1",null,null,null,"-*"]
["Opbouw 1 - Stuurschuif",{"$f":"AND(SEL_MOUNT_COUNT>=1,TRIM(SEL_SECT1_VALVE)<>\"\")","v":false},"ARTIKEL1",{"$f":"MATCH(C73,OFFSET(DBS_VALVE,0,0,1,COLUMNS(DBS_VALVE)),0)","v":2},{"$f":"IF(B73,VLOOKUP(SEL_SECT1_VALVE,DBS_VALVE,D73,FALSE),\"-\")","v":"-"},{"$f":"VLOOKUP(E73,DBS_PARTLIST,$F$5,FALSE)","v":""},1,null,{"$f":"VLOOKUP($E73,DBS_PARTLIST,$I$5,FALSE)","v":""},{"$f":"VLOOKUP($E73,DBS_PARTLIST,$J$5,FALSE)","v":""},null,{"$f":"VLOOKUP(E73,DBS_PARTLIST,$L$5,FALSE)","v":0},{"$f":"VLOOKUP(E73,DBS_PARTLIST,$M$5,FALSE)","v":0},{"$f":"T(VLOOKUP($E73,DBS_PARTLIST,N$5,FALSE))","v":""},{"$f":"VLOOKUP($E73,DBS_PARTLIST,O$5,FALSE)","v":0},0,0,0,0,1]
["Opbouw 1 - Onderbouw 1 - Artikel 1",{"$f":"AND(SEL_MOUNT_COUNT>=1,TRIM(SEL_SECT1_FUNCT1)<>\"\")","v":false},"ARTIKEL1",{"$f":"MATCH(C74,OFFSET(DBS_VALVE_MOD,0,0,1,COLUMNS(DBS_VALVE_MOD)),0)","v":2},{"$f":"IF(B74,VLOOKUP(SEL_SECT1_FUNCT1,DBS_VALVE_MOD,D74,FALSE),\"-\")","v":"-"},"",1,null,"","",null,0,null,"",0,0,0,0,0,1]
["Opbouw 1 - Onderbouw 1 - Artikel 2",{"$f":"AND(SEL_MOUNT_COUNT>=1,TRIM(SEL_SECT1_FUNCT1)<>\"\")","v":false},"ARTIKEL2",{"$f":"MATCH(C75,OFFSET(DBS_VALVE_MOD,0,0,1,COLUMNS(DBS_VALVE_MOD)),0)","v":3},{"$f":"IF(B75,VLOOKUP(SEL_SECT1_FUNCT1,DBS_VALVE_MOD,D75,FALSE),\"-\")","v":"-"},"",1,null,"","",null,0,null,"",0,0,0,0,0,1]
["Opbouw 1 - Onderbouw 2 - Artikel 1",{"$f":"AND(SEL_MOUNT_COUNT>=1,TRIM(SEL_SECT1_FUNCT2)<>\"\")","v":false},null,{"$f":"D74","v":2},{"$f":"IF(B76,VLOOKUP(SEL_SECT1_FUNCT2,DBS_VALVE_MOD,D76,FALSE),\"-\")","v":"-"},"",1,null,"","",null,0,null,"",0,0,0,0,0,1]
["Opbouw 1 - Onderbouw 2 - Artikel 2",{"$f":"AND(SEL_MOUNT_COUNT>=1,TRIM(SEL_SECT1_FUNCT2)<>\"\")","v":false},null,{"$f":"D75","v":3},{"$f":"IF(B77,VLOOKUP(SEL_SECT1_FUNCT2,DBS_VALVE_MOD,D77,FALSE),\"-\")","v":"-"},"",1,null,"","",null,0,null,"",0,0,0,0,0,1]
["Opbouw 1 - Onderbouw 3 - Artikel 1",{"$f":"AND(SEL_MOUNT_COUNT>=1,TRIM(SEL_SECT1_FUNCT3)<>\"\")","v":false},null,{"$f":"D74","v":2},{"$f":"IF(B78,VLOOKUP(SEL_SECT1_FUNCT3,DBS_VALVE_MOD,D78,FALSE),\"-\")","v":"-"},"",1,null,"","",null,0,null,"",0,0,0,0,0,1]
["Opbouw 1 - Onderbouw 3 - Artikel 2",{"$f":"AND(SEL_MOUNT_COUNT>=1,TRIM(SEL_SECT1_FUNCT3)<>\"\")","v":false},null,{"$f":"D75","v":3},{"$f":"IF(B79,VLOOKUP(SEL_SECT1_FUNCT3,DBS_VALVE_MOD,D79,FALSE),\"-\")","v":"-"},"",1,null,"","",null,0,null,"",0,0,0,0,0,1]
["Afdekplaat",{"$f":"AND(LEFT(E73,1)<>\"-\",LEFT(E73,9)<>\"KREV903DEK\")","v":false},"<Fixed>",{"$f":"D74","v":2},{"$f":"IF(B80,\"KREV95\"&(SUM(L73:L80)),\"-\")","v":"-"},"",1,null,"","",null,{"$f":"IF(SUM(L73:L78)>150,5,0)","v":0},null,"",0,0,0,0,0,1]
[null,null,null,null,"-*","Opbouw.2"]
["Opbouw 2 - Stuurschuif",{"$f":"AND(SEL_MOUNT_COUNT>=2,TRIM(SEL_SECT2_VALVE)<>\"\")","v":false},null,{"$f":"D73","v":2},{"$f":"IF(B82,VLOOKUP(SEL_SECT2_VALVE,DBS_VALVE,D82,FALSE),\"-\")","v":"-"},{"$f":"VLOOKUP(E82,DBS_PARTLIST,$F$5,FALSE)","v":""},1,null,{"$f":"VLOOKUP($E82,DBS_PARTLIST,$I$5,FALSE)","v":""},{"$f":"VLOOKUP($E82,DBS_PARTLIST,$J$5,FALSE)","v":""},null,{"$f":"VLOOKUP(E82,DBS_PARTLIST,$L$5,FALSE)","v":0},{"$f":"VLOOKUP(E82,DBS_PARTLIST,$M$5,FALSE)","v":0},{"$f":"T(VLOOKUP($E82,DBS_PARTLIST,N$5,FALSE))","v":""},{"$f":"VLOOKUP($E82,DBS_PARTLIST,O$5,FALSE)","v":0},0,0,0,0,2]
["Opbouw 2 - Onderbouw 1 - Artikel 1",{"$f":"AND(SEL_MOUNT_COUNT>=2,TRIM(SEL_SECT2_FUNCT1)<>\"\")","v":false},null,{"$f":"D74","v":2},{"$f":"IF(B83,VLOOKUP(SEL_SECT2_FUNCT1,DBS_VALVE_MOD,D83,FALSE),\"-\")","v":"-"},"",1,null,"","",null,0,null,"",0,0,0,0,0,2]
["Opbouw 2 - Onderbouw 1 - Artikel 2",{"$f":"AND(SEL_MOUNT_COUNT>=2,TRIM(SEL_SECT2_FUNCT1)<>\"\")","v":false},null,{"$f":"D75","v":3},{"$f":"IF(B84,VLOOKUP(SEL_SECT2_FUNCT1,DBS_VALVE_MOD,D84,FALSE),\"-\")","v":"-"},"",1,null,"","",null,0,null,"",0,0,0,0,0,2]
["Opbouw 2 - Onderbouw 2 - Artikel 1",{"$f":"AND(SEL_MOUNT_COUNT>=2,TRIM(SEL_SECT2_FUNCT2)<>\"\")","v":false},null,{"$f":"D74","v":2},{"$f":"IF(B85,VLOOKUP(SEL_SECT2_FUNCT2,DBS_VALVE_MOD,D85,FALSE),\"-\")","v":"-"},"",1,null,"","",null,0,null,"",0,0,0,0,0,2]
["Opbouw 2 - Onderbouw 2 - Artikel 2",{"$f":"AND(SEL_MOUNT_COUNT>=2,TRIM(SEL_SECT2_FUNCT2)<>\"\")","v":false},null,{"$f":"D75","v":3},{"$f":"IF(B86,VLOOKUP(SEL_SECT2_FUNCT2,DBS_VALVE_MOD,D86,FALSE),\"-\")","v":"-"},"",1,null,"","",null,0,null,"",0,0,0,0,0,2]
["Opbouw 2 - Onderbouw 3 - Artikel 1",{"$f":"AND(SEL_MOUNT_COUNT>=2,TRIM(SEL_SECT2_FUNCT3)<>\"\")","v":false},null,{"$f":"D74","v":2},{"$f":"IF(B87,VLOOKUP(SEL_SECT2_FUNCT3,DBS_VALVE_MOD,D87,FALSE),\"-\")","v":"-"},"",1,null,"","",null,0,null,"",0,0,0,0,0,2]
["Opbouw 2 - Onderbouw 3 - Artikel 2",{"$f":"AND(SEL_MOUNT_COUNT>=2,TRIM(SEL_SECT2_FUNCT3)<>\"\")","v":false},null,{"$f":"D75","v":3},{"$f":"IF(B88,VLOOKUP(SEL_SECT2_FUNCT3,DBS_VALVE_MOD,D88,FALSE),\"-\")","v":"-"},"",1,null,"","",null,0,null,"",0,0,0,0,0,2]
["Afdekplaat",{"$f":"AND(LEFT(E82,1)<>\"-\",LEFT(E82,9)<>\"KREV903DEK\")","v":false},"<Fixed>",{"$f":"D74","v":2},{"$f":"IF(B89,\"KREV95\"&(SUM(L82:L89)),\"-\")","v":"-"},"",1,null,"","",null,{"$f":"IF(SUM(L82:L87)>150,5,0)","v":0},null,"",0,0,0,0,0,2]
[null,null,null,null,"-*","Opbouw.3"]
["Opbouw 3 - Stuurschuif",{"$f":"AND(SEL_MOUNT_COUNT>=3,TRIM(SEL_SECT3_VALVE)<>\"\")","v":false},null,{"$f":"D73","v":2},{"$f":"IF(B91,VLOOKUP(SEL_SECT3_VALVE,DBS_VALVE,D91,FALSE),\"-\")","v":"-"},{"$f":"VLOOKUP(E91,DBS_PARTLIST,$F$5,FALSE)","v":""},1,null,{"$f":"VLOOKUP($E91,DBS_PARTLIST,$I$5,FALSE)","v":""},{"$f":"VLOOKUP($E91,DBS_PARTLIST,$J$5,FALSE)","v":""},null,{"$f":"VLOOKUP(E91,DBS_PARTLIST,$L$5,FALSE)","v":0},{"$f":"VLOOKUP(E91,DBS_PARTLIST,$M$5,FALSE)","v":0},{"$f":"T(VLOOKUP($E91,DBS_PARTLIST,N$5,FALSE))","v":""},{"$f":"VLOOKUP($E91,DBS_PARTLIST,O$5,FALSE)","v":0},0,0,0,0,3]
["Opbouw 3 - Onderbouw 1 - Artikel 1",{"$f":"AND(SEL_MOUNT_COUNT>=3,TRIM(SEL_SECT3_FUNCT1)<>\"\")","v":false},null,{"$f":"D74","v":2},{"$f":"IF(B92,VLOOKUP(SEL_SECT3_FUNCT1,DBS_VALVE_MOD,D92,FALSE),\"-\")","v":"-"},"",1,null,"","",null,0,null,"",0,0,0,0,0,3]
["Opbouw 3 - Onderbouw 1 - Artikel 2",{"$f":"AND(SEL_MOUNT_COUNT>=3,TRIM(SEL_SECT3_FUNCT1)<>\"\")","v":false},null,{"$f":"D75","v":3},{"$f":"IF(B93,VLOOKUP(SEL_SECT3_FUNCT1,DBS_VALVE_MOD,D93,FALSE),\"-\")","v":"-"},"",1,null,"","",null,0,null,"",0,0,0,0,0,3]
["Opbouw 3 - Onderbouw 2 - Artikel 1",{"$f":"AND(SEL_MOUNT_COUNT>=3,TRIM(SEL_SECT3_FUNCT2)<>\"\")","v":false},null,{"$f":"D74","v":2},{"$f":"IF(B94,VLOOKUP(SEL_SECT3_FUNCT2,DBS_VALVE_MOD,D94,FALSE),\"-\")","v":"-"},"",1,null,"","",null,0,null,"",0,0,0,0,0,3]
["Opbouw 3 - Onderbouw 2 - Artikel 2",{"$f":"AND(SEL_MOUNT_COUNT>=3,TRIM(SEL_SECT3_FUNCT2)<>\"\")","v":false},null,{"$f":"D75","v":3},{"$f":"IF(B95,VLOOKUP(SEL_SECT3_FUNCT2,DBS_VALVE_MOD,D95,FALSE),\"-\")","v":"-"},"",1,null,"","",null,0,null,"",0,0,0,0,0,3]
["Opbouw 3 - Onderbouw 3 - Artikel 1",{"$f":"AND(SEL_MOUNT_COUNT>=3,TRIM(SEL_SECT3_FUNCT3)<>\"\")","v":false},null,{"$f":"D74","v":2},{"$f":"IF(B96,VLOOKUP(SEL_SECT3_FUNCT3,DBS_VALVE_MOD,D96,FALSE),\"-\")","v":"-"},"",1,null,"","",null,0,null,"",0,0,0,0,0,3]
["Opbouw 3 - Onderbouw 3 - Artikel 2",{"$f":"AND(SEL_MOUNT_COUNT>=3,TRIM(SEL_SECT3_FUNCT3)<>\"\")","v":false},null,{"$f":"D75","v":3},{"$f":"IF(B97,VLOOKUP(SEL_SECT3_FUNCT3,DBS_VALVE_MOD,D97,FALSE),\"-\")","v":"-"},"",1,null,"","",null,0,null,"",0,0,0,0,0,3]
["Afdekplaat",{"$f":"AND(LEFT(E91,1)<>\"-\",LEFT(E91,9)<>\"KREV903DEK\")","v":false},"<Fixed>",{"$f":"D74","v":2},{"$f":"IF(B98,\"KREV95\"&(SUM(L91:L98)),\"-\")","v":"-"},"",1,null,"","",null,{"$f":"IF(SUM(L91:L96)>150,5,0)","v":0},null,"",0,0,0,0,0,3]
[null,null,null,null,"-*","Opbouw.4"]
["Opbouw 4 - Stuurschuif",{"$f":"AND(SEL_MOUNT_COUNT=4,TRIM(SEL_SECT4_VALVE)<>\"\")","v":false},null,{"$f":"D73","v":2},{"$f":"IF(B100,VLOOKUP(SEL_SECT4_VALVE,DBS_VALVE,D100,FALSE),\"-\")","v":"-"},{"$f":"VLOOKUP(E100,DBS_PARTLIST,$F$5,FALSE)","v":""},1,null,{"$f":"VLOOKUP($E100,DBS_PARTLIST,$I$5,FALSE)","v":""},{"$f":"VLOOKUP($E100,DBS_PARTLIST,$J$5,FALSE)","v":""},null,{"$f":"VLOOKUP(E100,DBS_PARTLIST,$L$5,FALSE)","v":0},{"$f":"VLOOKUP(E100,DBS_PARTLIST,$M$5,FALSE)","v":0},{"$f":"T(VLOOKUP($E100,DBS_PARTLIST,N$5,FALSE))","v":""},{"$f":"VLOOKUP($E100,DBS_PARTLIST,O$5,FALSE)","v":0},0,0,0,0,4]
["Opbouw 4 - Onderbouw 1 - Artikel 1",{"$f":"AND(SEL_MOUNT_COUNT=4,TRIM(SEL_SECT4_FUNCT1)<>\"\")","v":false},null,{"$f":"D74","v":2},{"$f":"IF(B101,VLOOKUP(SEL_SECT4_FUNCT1,DBS_VALVE_MOD,D101,FALSE),\"-\")","v":"-"},"",1,null,"","",null,0,null,"",0,0,0,0,0,4]
["Opbouw 4 - Onderbouw 1 - Artikel 2",{"$f":"AND(SEL_MOUNT_COUNT=4,TRIM(SEL_SECT4_FUNCT1)<>\"\")","v":false},null,{"$f":"D75","v":3},{"$f":"IF(B102,VLOOKUP(SEL_SECT4_FUNCT1,DBS_VALVE_MOD,D102,FALSE),\"-\")","v":"-"},"",1,null,"","",null,0,null,"",0,0,0,0,0,4]
["Opbouw 4 - Onderbouw 2 - Artikel 1",{"$f":"AND(SEL_MOUNT_COUNT=4,TRIM(SEL_SECT4_FUNCT2)<>\"\")","v":false},null,{"$f":"D74","v":2},{"$f":"IF(B103,VLOOKUP(SEL_SECT4_FUNCT2,DBS_VALVE_MOD,D103,FALSE),\"-\")","v":"-"},"",1,null,"","",null,0,null,"",0,0,0,0,0,4]
["Opbouw 4 - Onderbouw 2 - Artikel 2",{"$f":"AND(SEL_MOUNT_COUNT=4,TRIM(SEL_SECT4_FUNCT2)<>\"\")","v":false},null,{"$f":"D75","v":3},{"$f":"IF(B104,VLOOKUP(SEL_SECT4_FUNCT2,DBS_VALVE_MOD,D104,FALSE),\"-\")","v":"-"},"",1,null,"","",null,0,null,"",0,0,0,0,0,4]
["Opbouw 4 - Onderbouw 3 - Artikel 1",{"$f":"AND(SEL_MOUNT_COUNT=4,TRIM(SEL_SECT4_FUNCT3)<>\"\")","v":false},null,{"$f":"D74","v":2},{"$f":"IF(B105,VLOOKUP(SEL_SECT4_FUNCT3,DBS_VALVE_MOD,D105,FALSE),\"-\")","v":"-"},"",1,null,"","",null,0,null,"",0,0,0,0,0,4]
["Opbouw 4 - Onderbouw 3 - Artikel 2",{"$f":"AND(SEL_MOUNT_COUNT=4,TRIM(SEL_SECT4_FUNCT3)<>\"\")","v":false},null,{"$f":"D75","v":3},{"$f":"IF(B106,VLOOKUP(SEL_SECT4_FUNCT3,DBS_VALVE_MOD,D106,FALSE),\"-\")","v":"-"},"",1,null,"","",null,0,null,"",0,0,0,0,0,4]
["Afdekplaat",{"$f":"AND(LEFT(E100,1)<>\"-\",LEFT(E100,9)<>\"KREV903DEK\")","v":false},"<Fixed>",{"$f":"D74","v":2},{"$f":"IF(B107,\"KREV95\"&(SUM(L100:L107)),\"-\")","v":"-"},"",1,null,"","",null,{"$f":"IF(SUM(L100:L105)>150,5,0)","v":0},null,"",0,0,0,0,0,4]
[null,null,null,null,"-*","SP666 & kleinmateriaal"]
["SP666",{"$f":"G109>0","v":false},"<Fixed>",null,{"$f":"IF(B109,\"SP666\",\"-\")","v":"-"},{"$f":"VLOOKUP(E109,DBS_PARTLIST,$F$5,FALSE)","v":""},{"$f":"M114","v":0},null,{"$f":"VLOOKUP($E109,DBS_PARTLIST,$I$5,FALSE)","v":""},{"$f":"VLOOKUP($E109,DBS_PARTLIST,$J$5,FALSE)","v":""},null,null,null,{"$f":"T(VLOOKUP($E109,DBS_PARTLIST,N$5,FALSE))","v":""},{"$f":"VLOOKUP($E109,DBS_PARTLIST,O$5,FALSE)","v":0},{"$f":"VLOOKUP($E109,DBS_PARTLIST,P$5,FALSE)","v":0},{"$f":"VLOOKUP($E109,DBS_PARTLIST,Q$5,FALSE)","v":0},{"$f":"VLOOKUP($E109,DBS_PARTLIST,R$5,FALSE)","v":0},{"$f":"VLOOKUP($E109,DBS_PARTLIST,S$5,FALSE)","v":0}]
["Finish",{"$f":"LEFT(SEL_FINISH,1)<>\"<\"","v":false},null,null,{"$f":"IF(B110,\"PAINT\",\"-\")","v":"-"},{"$f":"VLOOKUP(SEL_FINISH,LST_FINISH,1,0)","v":"<ongespoten>"},{"$f":"IF(NOT(B110),0,4)","v":0},null,{"$f":"VLOOKUP($E110,DBS_PARTLIST,$I$5,FALSE)","v":""},{"$f":"VLOOKUP($E110,DBS_PARTLIST,$J$5,FALSE)","v":""}]
["Voorziening tbv diverse kleine materialen",null,null,null,"KSCKLMAT",{"$f":"VLOOKUP(E111,DBS_PARTLIST,$F$5,FALSE)","v":"<montage materiaal>"},1,null,{"$f":"VLOOKUP($E111,DBS_PARTLIST,$I$5,FALSE)","v":"EA"},{"$f":"VLOOKUP($E111,DBS_PARTLIST,$J$5,FALSE)","v":"300"}]
["Engineering",null,"<Fixed>",null,"ENG",{"$f":"VLOOKUP(E112,DBS_PARTLIST,$F$5,FALSE)","v":"<engineering>"},15,null,"EA",{"$f":"VLOOKUP($E112,DBS_PARTLIST,$J$5,FALSE)","v":"300"}]
["Bewerkingstijd",null,null,null,"KSCB1",{"$f":"VLOOKUP(E113,DBS_PARTLIST,$F$5,FALSE)","v":"Servicemonteur - Intern - 7-18 uur - ma-vr"},{"$f":"SYS_CLC_ASSEMBLY_HOURS","v":0.75},null,{"$f":"VLOOKUP($E113,DBS_PARTLIST,$I$5,FALSE)","v":"HRS"},{"$f":"VLOOKUP($E113,DBS_PARTLIST,$J$5,FALSE)","v":"300"}]
[null,null,null,null,{"$f":"TODAY()","v":"2019-03-13"},null,null,null,null,null,null,null,{"$f":"SUM(M9:M107)","v":0}]

{"sheet":"Partlist","index":5,"n_rows":274,"n_cols":19,"rows_kept":274,"cut":false,"hidden":true,"merged":[[9,10,9,11],[9,8,9,9]]}
[null,"Maat-typen:"]
[null,"TB = Tank Basis maten."]
[null,"TE = Tank Effect maten (max. maat wordt opgeteld bij TB).",null,null,null,null,null,null,null,"Ref.Z1"]
[null,"FB = Flens Basis.",null,null,null,null,null,null,"Ref.Y1","•","Ref.Y2"]
[null,"FE = Flens Effect maten (max. maat wordt opgeteld bij FB).",null,null,null,null,25,null,null,"Ref.Z2"]
[null,"EB = Elektromotor Basis maten.",null,null,null,null,"Y-Correctie Voetplaat",null,null,"Achteraanzicht Elektromotor"]
[null,"EE = Elektromotor Effect maten (max. maat wordt opgeteld bij EB)."]
[null,"OB = Opbouwventielen Basis maten."]
[null,"OE = Opbouwventielen Effect maten (max. maat wordt opgeteld bij OB)."]
[null,"FO = Idem FE maar de X-maat wordt gebruikt bij het bepalen van de configuratie-lengte.",null,null,null,null,null,"X=Lengte","Y=Breedte",null,"Z=Hoogte"]
[null,"FZ = Idien aanwezig in configuratie dan worden de Z1-maten van de opbouwventielen niet meegenomen.",null,null,null,null,null,"(hartlijn electromotor)"]
[]
["Artikel","Oms",null,"Inb.Hoogte","SP666","Image","Type","Eff.X","Eff.Y1","Eff.Y2","Eff.Z1","Eff.Z2","UOM","STOCKNO","ORIGIN","OMS_DUT","OMS_ENG","OMS_GER","OMS_FRE"]
["","",null,null,null,null,null,null,null,null,null,null,"",""]
["-","",null,null,null,null,null,null,null,null,null,null,"",""]
["EMF12",{"$f":"CHOOSE(SEL_LANGUAGE,P16,Q16,R16,S16)","v":"MW knie bi-bu KIS ½ x ½"},null,null,null,null,null,null,null,null,null,null,"EA","300",null,"MW knie bi-bu KIS ½ x ½","Elbow 1/2 x 1/2 ","Winkelverschraubung 1/2 x 1/2","Coude 1/2 x 1/2 ext./int."]
["ENG","<engineering>",null,null,null,null,null,null,null,null,null,null,"EA","300",null,"<engineering>","<engineering>","<engineering>","<engineering>"]
["912616","Inbusbout M6x16",null,null,null,null,null,null,null,null,null,null,"EA","300",null,"Inbusbout M6x16","Hex socket bolt M 6x16","Zyl.Schr. M6x16","Boulon à six pans creux M6x16"]
["9128110129B","Inbusbout M 8x110 12.9 Din 912",null,null,null,null,null,null,null,null,null,null,"EA","300",null,"Inbusbout M 8x110 12.9 Din 912","Hex socket bolt M 8x110 12.9","Zyl.Schr. M8x110 12.9 DIN912","Boulon à six pans creux M8x110 12.9 DIN912"]
["9128130129BP001","Inbusbout M 8x130 12.9 Din 912",null,null,null,null,null,null,null,null,null,null,"EA","300",null,"Inbusbout M 8x130 12.9 Din 912","Hex socket bolt M 8x130 12.9","Zyl.Schr. M8x130 12.9 DIN912","Boulon à six pans creux M8x130 12.9 DIN912"]
["9128140129B","Inbusbout M 8x140 12.9 Din 912",null,null,null,null,null,null,null,null,null,null,"EA","300",null,"Inbusbout M 8x140 12.9 Din 912","Hex socket bolt M 8x140 12.9","Zyl.Schr. M8x140 12.9 DIN912","Boulon à six pans creux M8x140 12.9 DIN912"]
["9128145129B","Inbusbout M 8x145 12.9 Din 912",null,null,null,null,null,null,null,null,null,null,"EA","300",null,"Inbusbout M 8x145 12.9 Din 912","Hex socket bolt M 8x145 12.9","Zyl.Schr. M8x145 12.9 DIN912","Boulon à six pans creux M8x145 12.9 DIN912"]
["912825","Inbusbout M8x25",null,null,null,null,null,null,null,null,null,null,"EA","300",null,"Inbusbout M8x25","Hex socket bolt M 8x25","Zyl.Schr. M8x25","Boulon à six pans creux M8x25"]
["912840","Inbusbout M8x40 8.8 DIN912",null,null,null,null,null,null,null,null,null,null,"EA","300",null,"Inbusbout M8x40 8.8 DIN912","Hex socket bolt M8x40 8.8 DIN912","Zyl.Schr. M8x40 8.8 DIN912","Boulon à six pans creux M8x40 8.8 DIN912"]
["912840129B","Inbusbout M 8x 40 12.9 Din 912",null,null,null,null,null,null,null,null,null,null,"EA","300",null,"Inbusbout M 8x 40 12.9 Din 912","Hex socket bolt M 8x40 12.9","Zyl.Schr. M8x40 12.9 DIN912","Boulon à six pans creux M8x40 12.9 DIN912"]
["912860","Inbusbout M8x60",null,null,null,null,null,null,null,null,null,null,"EA","300",null,"Inbusbout M8x60","Hex socket bolt M 8x60","Zyl.Schr. M8x60","Boulon à six pans creux M8x60"]
["912890129B","Inbusbout M8x90 -12.9 DIN 912",null,null,null,null,null,null,null,null,null,null,"EA","300",null,"Inbusbout M8x90 -12.9 DIN 912","Hex socket bolt M 8x90 12.9","Zyl.Schr. M8x90 12.9 DIN912","Boulon à six pans creux M8x90 12.9 DIN912"]
["CB10HVM03009","Balanceerklep NG6",null,50,null,"CB10HVM03009","OB",0,0,0,50,0,"EA","300",null,"Balanceerklep NG6","Counterbalance valve","Gegenhalteventil","Valve d'équilibrage"]
["CB10HVM03017","Balanceerklep NG6",null,50,null,"CB10HVM03017","OB",0,0,0,50,0,"EA","300",null,"Balanceerklep NG6","Counterbalance valve","Gegenhalteventil","Valve d'équilibrage"]
["COB81400","Elektr.bediening DC unit2 knops 4m Kabel",null,null,null,null,null,null,null,null,null,null,"EA","300",null,"Elektr.bediening DC unit2 knops 4m Kabel","Electr. Control DC UNIT 4MTR.","Elek Bedienung DC Aggregat 4 meter Kabel","Commande électrique Centrale DC cable de 4 mètres"]
["COB81600","Elektr.bediening DC unit2 knops 6m Kabel",null,null,null,null,null,null,null,null,null,null,"EA","300",null,"Elektr.bediening DC unit2 knops 6m Kabel","Electr. Control DC UNIT 6MTR.","Elek Bedienung DC Aggregat 6 meter Kabel","Commande électrique Centrale DC cable de 6 mètres"]
["EM100LA4B141A0AKR","E-motor 2,2kW 1500rpm B14 230V A 0",null,null,null,null,"EB",{"$f":"368-58","v":310},177,{"$f":"I32","v":177},{"$f":"195/2","v":97.5},{"$f":"I32","v":177},"EA","300",null,"E-motor 2,2kW 1500rpm B14 230V A 0","Electric motor 2,20 kW","Elektromotor 2,20 kW","Moteur électrique 2,20 kW"]
["EM100LA4B14300IE3A","E-motor 2.2kW-1500rpm-B14-2/4-0-0 IE3",null,null,null,null,"EB",{"$f":"368-58","v":310},177,{"$f":"I33","v":177},{"$f":"195/2","v":97.5},{"$f":"I33","v":177},"EA","300",null,"E-motor 2.2kW-1500rpm-B14-2/4-0-0 IE3","Electric motor 2,20 kW IE3","Elektromotor 2,20 kW IE3","Moteur électrique 2,20 kW IE3"]
["EM100LB4B14500IE3A","E-motor 3kW-1500rpm-B14-4/6-0-0 IE3",null,null,null,null,"EB",{"$f":"368-58","v":310},177,{"$f":"I34","v":177},{"$f":"195/2","v":97.5},{"$f":"I34","v":177},"EA","300",null,"E-motor 3kW-1500rpm-B14-4/6-0-0 IE3","Electric motor 3,00 kW IE3","Elektromotor 3,00 kW IE3","Moteur électrique 3,00 kW IE3"]
["EM18090","Manometer afsluiter EM 180-90'",null,null,null,null,null,null,null,null,null,null,"EA","300",null,"Manometer afsluiter EM 180-90'","Pressure gauge shut-off valve","Manometerabsperrhahn","Robinet de fermeture pour manomètre"]
["EM71B2B141B0AKR","E-motor 0.55kW-3000rpm-B14-230V-B-0 CCW",null,null,null,null,"EB",215,110,{"$f":"I36","v":110},{"$f":"141/2","v":70.5},{"$f":"I36","v":110},"EA","300",null,"E-motor 0.55kW-3000rpm-B14-230V-B-0 CCW","Electric motor 0,55 kW","Elektromotor 0,55 kW","Moteur électrique 0,55 kW"]
["EM71B4B14300IE1AKR","E-motor 0.37kW-1500rpm-B14-2/4-0-0",null,null,null,null,"EB",215,110,110,{"$f":"141/2","v":70.5},110,"EA","300",null,"E-motor 0.37kW-1500rpm-B14-2/4-0-0","Electric motor 0,37 kW","Elektromotor 0,37 kW","Moteur électrique 0,37 kW"]
["EM80A2B141B0AKR","E-motor 0.75kW-3000rpm-B14-230V-B-0 CCW",null,null,null,null,"EB",{"$f":"264-22","v":242},152,152,{"$f":"160/2","v":80},152,"EA","300",null,"E-motor 0.75kW-3000rpm-B14-230V-B-0 CCW","Electric motor 0,75 kW","Elektromotor 0,75 kW","Moteur électrique 0,75 kW"]
["EM80A4B141B0AKR","E-motor 0.55kW-1500rpm-B14-230V-B-0",null,null,null,null,"EB",242,152,152,80,152,"EA","300",null,"E-motor 0.55kW-1500rpm-B14-230V-B-0","Electric motor 0,55 kW","Elektromotor 0,55 kW","Moteur électrique 0,55 kW"]
["EM80A4MPP1B0","E-motor 0.55kW-1500rpm-B14-230V-B-0 <Compact>",null,null,null,null,"EB",242,152,{"$f":"I40","v":152},80,{"$f":"I40","v":152},"EA","300",null,{"$f":"P39&\" <Compact>\"","v":"E-motor 0.55kW-1500rpm-B14-230V-B-0 <Compact>"},{"$f":"Q39&\" <Compact>\"","v":"Electric motor 0,55 kW <Compact>"},{"$f":"R39&\" <Compact>\"","v":"Elektromotor 0,55 kW <Compact>"},{"$f":"S39&\" <Compact>\"","v":"Moteur électrique 0,55 kW <Compact>"}]
["EM80A4B14300IE1AKR","E-motor 0.55 kW-1500rpm-B14-2/4-0-0",null,null,null,null,"EB",242,152,152,80,152,"EA","300",null,"E-motor 0.55 kW-1500rpm-B14-2/4-0-0","Electric motor 0,55 kW","Elektromotor 0,55 kW","Moteur électrique 0,55 kW"]
["EM80B2B141A0AKR","E-motor 1.1kW-3000rpm-B14-230V-A-0 CCW",null,null,null,null,"EB",242,152,152,80,152,"EA","300",null,"E-motor 1.1kW-3000rpm-B14-230V-A-0 CCW","Electric motor 1,10 kW","Elektromotor 1,10 kW","Moteur électrique 1,10 kW"]
["EM80B4B141B0AKR","E-motor 0.75kW-1500rpm-B14-230V-B-0",null,null,null,null,"EB",242,152,152,80,152,"EA","300",null,"E-motor 0.75kW-1500rpm-B14-230V-B-0","Electric motor 0,75 kW","Elektromotor 0,75 kW","Moteur électrique 0,75 kW"]
["EM80B4MPP1B0","E-motor 0.75kW-1500rpm-B14-230V-B-0 <Compact>",null,null,null,null,"EB",242,152,{"$f":"I44","v":152},80,{"$f":"I44","v":152},"EA","300",null,{"$f":"P43&\" <Compact>\"","v":"E-motor 0.75kW-1500rpm-B14-230V-B-0 <Compact>"},{"$f":"Q43&\" <Compact>\"","v":"Electric motor 0,75 kW <Compact>"},"Elektromotor 0,75 kW <Compact>","Moteur électrique 0,75 kW <Compact>"]
["EM80B4B14300IE3AKR","E-motor 0.75 kW-1500rpm-B14-2/4-0-0 IE3",null,null,null,null,"EB",242,152,152,80,152,"EA","300",null,"E-motor 0.75 kW-1500rpm-B14-2/4-0-0 IE3","Electric motor 0,75 kW IE3","Elektromotor 0,75 kW IE3","Moteur électrique 0,75 kW IE3"]
["EM90L2B141A0","E-motor 2.2kW-3000rpm-B14-230V-A-0 CCW",null,null,null,null,"EB",{"$f":"314-32","v":282},158,158,{"$f":"178/2","v":89},158,"EA","300",null,"E-motor 2.2kW-3000rpm-B14-230V-A-0 CCW","Electric motor 2,20 kW","Elektromotor 2,20 kW","Moteur électrique 2,20 kW"]
["EM90L4B141A0AKR","E-motor 1.5 kW-1500rpm-B14-230V-A-0",null,null,null,null,"EB",{"$f":"314-32","v":282},158,158,89,158,"EA","300",null,"E-motor 1.5 kW-1500rpm-B14-230V-A-0","Electric motor 1,50 kW","Elektromotor 1,50 kW","Moteur électrique 1,50 kW"]
["EM90L4B14300IE3AKR","E-motor 1.5 kW-1500rpm-B14-2/4-0-0 IE3",null,null,null,null,"EB",{"$f":"314-32","v":282},158,158,89,158,"EA","300",null,"E-motor 1.5 kW-1500rpm-B14-2/4-0-0 IE3","Electric motor 1,50 kW IE3","Elektromotor 1,50 kW IE3","Moteur électrique 1,50 kW IE3"]
["EM90L4MPP300IE2","E-motor 1.5 kW-1500rpm-B14-2/4-0-0 IE3 <Compact>",null,null,null,null,"EB",{"$f":"314-32","v":282},158,{"$f":"I49","v":158},89,{"$f":"I49","v":158},"EA","300",null,{"$f":"P48&\" <Compact>\"","v":"E-motor 1.5 kW-1500rpm-B14-2/4-0-0 IE3 <Compact>"},{"$f":"Q48&\" <Compact>\"","v":"Electric motor 1,50 kW IE3 <Compact>"},"Elektromotor 1,50 kW IE3 <Compact>","Moteur électrique 1,50 kW IE3 <Compact>"]
["EM90S2B141A0AKR","E-motor 1.5kW-3000rpm-B14-230V-A-0 CCW",null,null,null,null,"EB",{"$f":"300-32","v":268},158,158,89,158,"EA","300",null,"E-motor 1.5kW-3000rpm-B14-230V-A-0 CCW","Electric motor 1,50 kW","Elektromotor 1,50 kW","Moteur électrique 1,50 kW"]
["EM90S4B141A0AKR","E-motor 1.1kW-1500rpm-B14-230V-A-0",null,null,null,null,"EB",{"$f":"300-32","v":268},158,158,89,158,"EA","300",null,"E-motor 1.1kW-1500rpm-B14-230V-A-0","Electric motor 1,10 kW","Elektromotor 1,10 kW","Moteur électrique 1,10 kW"]
["EM90S4B14300IE3AKR","E-motor 1.1kW-4-B14-3-0-0 IE3",null,null,null,null,"EB",{"$f":"300-32","v":268},158,158,89,158,"EA","300",null,"E-motor 1.1kW-4-B14-3-0-0 IE3","Electric motor 1,10 kW IE3","Elektromotor 1,10 kW IE3","Moteur électrique 1,10 kW IE3"]
["EM90S4MPP300IE2","E-motor 1.1kW-4-B14-3-0-0 IE3 <Compact>",null,null,null,null,"EB",{"$f":"300-32","v":268},158,{"$f":"I53","v":158},89,{"$f":"I53","v":158},"EA","300",null,{"$f":"P52&\" <Compact>\"","v":"E-motor 1.1kW-4-B14-3-0-0 IE3 <Compact>"},{"$f":"Q52&\" <Compact>\"","v":"Electric motor 1,10 kW IE3 <Compact>"},"Elektromotor 1,10 kW IE3 <Compact>","Moteur électrique 1,10 kW IE3 <Compact>"]
["FGP012625","Spiestaal 3/16\" x 3/16\" l=300",null,null,null,null,null,null,null,null,null,null,"EA","300",null,"Spiestaal 3/16\" x 3/16\" l=300","","",""]
["FHM0061S","Persfilter FHM-006-1-S-A-A/A10-T2",null,60,null,"FHM0061S","OB",0,0,0,60,0,"EA","300",null,"Persfilter FHM-006-1-S-A-A/A10-T2","Pressurefiltre FHM-006-1-S-A-A/A10-T2","Druckfilter FHM-006-1-S-A-A/A10-T2","Filtre à pression FHM-006-1-S-A-A/A10-T2"]
["GX160UT2QX4OH","Motor Honda 5.5 pk 3/4\"",null,null,null,null,"EB",425,123,{"$f":"360-I56","v":237},108,{"$f":"380-K56","v":272},"EA","300",null,"Motor Honda 5.5 pk 3/4\"","Motor Honda 5.5 hp 3/4\"","Motor Honda 5.5 ps 3/4\"","Motor Honda 5.5 cv 3/4\""]
["H12PBTRAILER","Draadloos afstandbediening",null,null,null,null,null,null,null,null,null,null,"EA","300",null,"Draadloos afstandbediening","Wireless remote control","Drahtlose Fernbedienung","Télécommande"]
["K55TO","Drukschakelaar K55",null,null,null,null,"OB",0,0,0,40,0,"EA","300",null,"Drukschakelaar K55","Pressure-switch K55","Druckschalter K55","Pressostat K55"]
["K59P","Drukschakelaar K59",null,null,null,null,"OB",0,0,0,40,0,"EA","300",null,"Drukschakelaar K59","Pressure-switch K59","Druckschalter K59","Pressostat K59"]
["KREV02S96100","Boutenset voor KREV02S 3 secti KREV 02S-9-6100",null,null,null,null,null,null,null,null,null,null,"SET","300","Cetop02","Boutenset voor KREV02S 3 secti KREV 02S-9-6100","Screw set for SEV02S 3-section KREV 02S-9-6100","Schraubensatz f. SEV02S 3-Sek. KREV 02S-9-6100","Jeu de boulons p. SEV02S sec.3 KREV 02S-9-6100"]
["KREV02S96130","Boutenset voor KREV02S 4 secti KREV 02S-9-6130",null,null,null,null,null,null,null,null,null,null,"SET","300","Cetop02","Boutenset voor KREV02S 4 secti KREV 02S-9-6130","Screw set for SEV02S 4-section KREV 02S-9-6130","Schraubensatz f. SEV02S 4-Sek. KREV 02S-9-6130","Jeu de boulons p. SEV02S sec.4 KREV 02S-9-6130"]
["KREV02S96165","Boutenset voor KREV02S 5 secti KREV 02S-9-6165",null,null,null,null,null,null,null,null,null,null,"SET","300","Cetop02","Boutenset voor KREV02S 5 secti KREV 02S-9-6165","Screw set for SEV02S 5-section KREV 02S-9-6165","Schraubensatz f. SEV02S 5-Sek. KREV 02S-9-6165","Jeu de boulons p. SEV02S sec.5 KREV 02S-9-6165"]
["KREV02S96195","Boutenset voor KREV02S 6 secti KREV 02S-9-6195",null,null,null,null,null,null,null,null,null,null,"SET","300","Cetop02","Boutenset voor KREV02S 6 secti KREV 02S-9-6195","Screw set for SEV02S 6-section KREV 02S-9-6195","Schraubensatz f. SEV02S 6-Sek. KREV 02S-9-6195","Jeu de boulons p. SEV02S sec.6 KREV 02S-9-6195"]
["KREV02S9640","Boutenset voor KREV02S 1 secti KREV 02S-9-640",null,null,null,null,null,null,null,null,null,null,"SET","300","Cetop02","Boutenset voor KREV02S 1 secti KREV 02S-9-640","Screw set for SEV02S 1-section KREV 02S-9-640","Schraubensatz f. SEV02S 1-Sek. KREV 02S-9-640","Jeu de boulons p. SEV02S sec.1 KREV 02S-9-640"]
["KREV02S9670","Boutenset voor KREV02S 2 secti KREV 02S-9-670",null,null,null,null,null,null,null,null,null,null,"SET","300","Cetop02","Boutenset voor KREV02S 2 secti KREV 02S-9-670","Screw set for SEV02S 2-section KREV 02S-9-670","Schraubensatz f. SEV02S 2-Sek. KREV 02S-9-670","Jeu de boulons p. SEV02S sec.2 KREV 02S-9-670"]
["KREV02SC2000","Stuurventiel elektr. KREV-02S- KREV 02S-C2-000",null,45,2,"SEV03C2","OB",0,{"$f":"(172/2)-SYS_DIMS_OB_Y_OFFSET","v":61},{"$f":"(172/2)+SYS_DIMS_OB_Y_OFFSET","v":111},0,0,"EA","300","Cetop02","Stuurventiel elektr. KREV-02S- KREV 02S-C2-000","Elec. control valve KREV-02S-C KREV 02S-C2-000","Steuerventil elektr. KREV-02S- KREV 02S-C2-000","Distributeur electr. KREV-02S KREV 02S-C2-000"]
["KREV02SC4000","Stuurventiel elektr. KREV-02S- KREV 02S-C4-000",null,45,2,"SEV03C4","OB",0,{"$f":"(172/2)-SYS_DIMS_OB_Y_OFFSET","v":61},{"$f":"(172/2)+SYS_DIMS_OB_Y_OFFSET","v":111},0,0,"EA","300","Cetop02","Stuurventiel elektr. KREV-02S- KREV 02S-C4-000","Elec. control valve KREV-02S-C KREV 02S-C4-000","Steuerventil elektr. KREV-02S- KREV 02S-C4-000","Distributeur electr. KREV-02S KREV 02S-C4-000"]
["KREV02SEC2000","Stuurventiel elektr. KREV-02S- KREV 02S-E-C2-000",null,45,2,"SEV03C2","OB",0,{"$f":"(172/2)-SYS_DIMS_OB_Y_OFFSET","v":61},{"$f":"(172/2)+SYS_DIMS_OB_Y_OFFSET","v":111},0,0,"EA","300","Cetop02","Stuurventiel elektr. KREV-02S- KREV 02S-E-C2-000","Elec. control valve KREV-02S-E KREV 02S-E-C2-000","Steuerventil elektr. KREV-02S- KREV 02S-E-C2-000","Distributeur electr. KREV-02S KREV 02S-E-C2-000"]
["KREV02SEC4000","Stuurventiel elektr. KREV-02S- KREV 02S-E-C4-000",null,45,2,"SEV03C4","OB",0,{"$f":"(172/2)-SYS_DIMS_OB_Y_OFFSET","v":61},{"$f":"(172/2)+SYS_DIMS_OB_Y_OFFSET","v":111},0,0,"EA","300","Cetop02","Stuurventiel elektr. KREV-02S- KREV 02S-E-C4-000","Elec. control valve KREV-02S-E KREV 02S-E-C4-000","Steuerventil elektr. KREV-02S- KREV 02S-E-C4-000","Distributeur electr. KREV-02S KREV 02S-E-C4-000"]
["KREV02SEP","Eindplaat voor KREV-02S KREV 02S-EP",null,null,null,null,null,null,null,null,null,null,"EA","300","Cetop02","Eindplaat voor KREV-02S KREV 02S-EP","Cover plate for KREV-02S KREV 02S-EP","Endplatte fur KREV-02S KREV 02S-EP","Plaque d'extremite p. KREV-02S KREV 02S-EP"]
["KREV02SMC2000","Stuurventiel elektr. KREV-02S- KREV 02S-M-C2-000",null,45,2,"SEV03C2","OB",0,{"$f":"(172/2)-SYS_DIMS_OB_Y_OFFSET","v":61},{"$f":"(172/2)+SYS_DIMS_OB_Y_OFFSET","v":111},0,0,"EA","300","Cetop02","Stuurventiel elektr. KREV-02S- KREV 02S-M-C2-000","Elec. control valve KREV-02S-M KREV 02S-M-C2-000","Steuerventil elektr. KREV-02S- KREV 02S-M-C2-000","Distributeur electr. KREV-02S KREV 02S-M-C2-000"]
["KREV02SMC4000","Stuurventiel elektr. KREV-02S- KREV 02S-M-C4-000",null,45,2,"SEV03C4","OB",0,{"$f":"(172/2)-SYS_DIMS_OB_Y_OFFSET","v":61},{"$f":"(172/2)+SYS_DIMS_OB_Y_OFFSET","v":111},0,0,"EA","300","Cetop02","Stuurventiel elektr. KREV-02S- KREV 02S-M-C4-000","Elec. control valve KREV-02S-M KREV 02S-M-C4-000","Steuerventil elektr. KREV-02S- KREV 02S-M-C4-000","Distributeur electr. KREV-02S KREV 02S-M-C4-000"]
["KREV03B2012C","Stuurventiel elektrisch NG6 KREV 03-B2-012C",null,45,1,"SEV03B2","OB",0,{"$f":"(214/2)-SYS_DIMS_OB_Y_OFFSET","v":82},{"$f":"(214/2)+SYS_DIMS_OB_Y_OFFSET","v":132},88,0,"EA","300",null,"Stuurventiel elektrisch NG6 KREV 03-B2-012C","Electric control valve NG6 KREV 03-B2-012C","Steuerventil NG6, 350bar, 12V KREV 03-B2-012C","Distributeur electrique NG6 KREV 03-B2-012C"]
["KREV03B20230A","Stuurventiel elektrisch NG6 KREV 03-B20-230A",null,45,1,"SEV03B20","OB",0,82,132,88,0,"EA","300",null,"Stuurventiel elektrisch NG6 KREV 03-B20-230A","Electric control valve NG6 KREV 03-B20-230A","Steuerventil NG6, 350bar, 230V KREV 03-B20-230A","Distributeur electrique NG6 KREV 03-B20-230A"]
["KREV03B2024C","Stuurventiel elektrisch NG6 KREV 03-B2-024C",null,45,1,"SEV03B20","OB",0,82,132,88,0,"EA","300",null,"Stuurventiel elektrisch NG6 KREV 03-B2-024C","Electric control valve NG6 KREV 03-B2-024C","Steuerventil elektr. NG6 KREV 03-B2-024C","Distributeur electrique NG6 KREV 03-B2-024C"]
["KREV03B2230A","Stuurventiel elektrisch NG6 KREV 03-B2-230A",null,45,1,"SEV03B2","OB",0,82,132,88,0,"EA","300",null,"Stuurventiel elektrisch NG6 KREV 03-B2-230A","Electric control valve NG6 KREV 03-B2-230A","Steuerventil NG6, 350bar, 230V KREV 03-B2-230A","Distributeur electrique NG6 KREV 03-B2-230A"]
["KREV03B3230A","Stuurventiel elektrisch NG6 KREV 03-B3-230A",null,45,1,"SEV03B3","OB",0,82,132,88,0,"EA","300",null,"Stuurventiel elektrisch NG6 KREV 03-B3-230A","Electric control valve NG6 KREV 03-B3-230A","Steuerventil NG6, 350bar, 230V KREV 03-B3-230A","Distributeur electrique NG6 KREV 03-B3-230A"]
["KREV03B3S230A","Stuurventiel elektrisch NG6 KREV 03-B3S-230A",null,45,1,"SEV03B3S","OB",0,82,132,88,0,"EA","300",null,"Stuurventiel elektrisch NG6 KREV 03-B3S-230A","Electric control valve NG6 KREV 03-B3S-230A","Steuerventil NG6, 350bar, 230V KREV 03-B3S-230A","Distributeur electrique NG6 KREV 03-B3S-230A"]
["KREV03C2230A","Stuurventiel elektrisch NG6 KREV 03-C2-230A",null,45,2,"SEV03C2","OB",0,82,132,88,0,"EA","300",null,"Stuurventiel elektrisch NG6 KREV 03-C2-230A","Electric control valve NG6 KREV 03-C2-230A","Steuerventil NG6, 350bar, 230V KREV 03-C2-230A","Distributeur electrique NG6 KREV 03-C2-230A"]
["KREV03C3230A","Stuurventiel elektrisch NG6 KREV 03-C3-230A",null,45,2,"SEV03C3","OB",0,82,132,88,0,"EA","300",null,"Stuurventiel elektrisch NG6 KREV 03-C3-230A","Electric control valve NG6 KREV 03-C3-230A","Steuerventil NG6, 350bar, 230V KREV 03-C3-230A","Distributeur electrique NG6 KREV 03-C3-230A"]
["KREV03C3B230A","Stuurventiel elektrisch NG6 KREV 03-C3B-230A",null,45,1,"SEV03C3B","OB",0,82,132,88,0,"EA","300",null,"Stuurventiel elektrisch NG6 KREV 03-C3B-230A","Electric control valve NG6 KREV 03-C3B-230A","Steuerventil NG6, 350bar, 230V KREV 03-C3B-230A","Distributeur electrique NG6 KREV 03-C3B-230A"]
["KREV03C4230A","Stuurventiel elektrisch NG6 KREV 03-C4-230A",null,45,2,"SEV03C4","OB",0,82,132,88,0,"EA","300",null,"Stuurventiel elektrisch NG6 KREV 03-C4-230A","Electric control valve NG6 KREV 03-C4-230A","Steuerventil NG6, 350bar, 230V KREV 03-C4-230A","Distributeur electrique NG6 KREV 03-C4-230A"]
["KREV03C6230A","Stuurventiel elektrisch NG6 KREV 03-C6-230A",null,45,2,"SEV03C6","OB",0,82,132,88,0,"EA","300",null,"Stuurventiel elektrisch NG6 KREV 03-C6-230A","Electric control valve NG6 KREV 03-C6-230A","Steuerventil NG6, 350bar, 230V KREV 03-C6-230A","Distributeur electrique NG6 KREV 03-C6-230A"]
["KREV03C6LO","Handbed.Stuurschuif HD3-LO-4-C-*-*- (3 pos.) NG6",null,45,null,"KREV03C6LO","OB",0,0,0,45,0,"EA","300",null,"Handbed.Stuurschuif HD3-LO-4-C-*-*- (3 pos.) NG6","Control valvemanual control NG","Steuerventil Handbedienung NG6","Distributeur manuel NG6"]
["KREV03SB20012C",{"$f":"CHOOSE(SEL_LANGUAGE,P85,Q85,R85,S85)","v":"Stuurventiel elektrisch NG6 KREV 03S-B20-012C"},null,45,2,"SEV03B20","OB",0,{"$f":"(199/2)-SYS_DIMS_OB_Y_OFFSET","v":74.5},{"$f":"(199/2)+SYS_DIMS_OB_Y_OFFSET","v":124.5},88,0,"EA","300",null,"Stuurventiel elektrisch NG6 KREV 03S-B20-012C","Electric control valve NG6 KREV 03S-B20-012C","Steuerventil NG6, 320bar, 12V KREV 03S-B20-012C","Distributeur electrique NG6 KREV 03S-B20-012C"]
["KREV03SB20024C","Stuurventiel elektrisch NG6 KREV 03S-B20-024C",null,45,2,"SEV03B20","OB",0,74.5,124.5,88,0,"EA","300",null,"Stuurventiel elektrisch NG6 KREV 03S-B20-024C","Electric control valve NG6 KREV 03S-B20-024C","Steuerventil NG6, 320bar, 24V KREV 03S-B20-024C","Distributeur electrique NG6 KREV 03S-B20-024C"]
["KREV03SB3012C","Stuurventiel elektrisch NG6 KREV 03S-B3-012C",null,45,2,"SEV03B3","OB",0,74.5,124.5,88,0,"EA","300",null,"Stuurventiel elektrisch NG6 KREV 03S-B3-012C","Electric control valve NG6 KREV 03S-B3-012C","Steuerventil NG6, 320bar, 12V KREV 03S-B3-012C","Distributeur electrique NG6 KREV 03S-B3-012C"]
["KREV03SB3024C","Stuurventiel elektrisch NG6 KREV 03S-B3-024C",null,45,2,"SEV03B3","OB",0,74.5,124.5,88,0,"EA","300",null,"Stuurventiel elektrisch NG6 KREV 03S-B3-024C","Electric control valve NG6 KREV 03S-B3-024C","Steuerventil NG6, 320bar, 24V KREV 03S-B3-024C","Distributeur electrique NG6 KREV 03S-B3-024C"]
["KREV03SB3S012C","Stuurventiel elektrisch NG6 KREV 03S-B3S-012C",null,45,2,"SEV03B3S","OB",0,74.5,124.5,88,0,"EA","300",null,"Stuurventiel elektrisch NG6 KREV 03S-B3S-012C","Electric control valve NG6 KREV 03S-B3S-012C","Steuerventil NG6, 320bar, 12V KREV 03S-B3S-012C","Distributeur electrique NG6 KREV 03S-B3S-012C"]
["KREV03SB3S024C","Stuurventiel elektrisch NG6 KREV 03S-B3S-024C",null,45,2,"SEV03B3S","OB",0,74.5,124.5,88,0,"EA","300",null,"Stuurventiel elektrisch NG6 KREV 03S-B3S-024C","Electric control valve NG6 KREV 03S-B3S-024C","Steuerventil NG6, 320bar, 24V KREV 03S-B3S-024C","Distributeur electrique NG6 KREV 03S-B3S-024C"]
["KREV03SC2012C","Stuurventiel elektrisch NG6 KREV 03S-C2-012C",null,45,2,"SEV03C2","OB",0,74.5,124.5,88,0,"EA","300",null,"Stuurventiel elektrisch NG6 KREV 03S-C2-012C","Electric control valve NG6 KREV 03S-C2-012C","Steuerventil NG6, 320bar, 12V KREV 03S-C2-012C","Distributeur electrique NG6 KREV 03S-C2-012C"]
["KREV03SC2024C","Stuurventiel elektrisch NG6 KREV 03S-C2-024C",null,45,2,"SEV03C2","OB",0,74.5,124.5,88,0,"EA","300",null,"Stuurventiel elektrisch NG6 KREV 03S-C2-024C","Electric control valve NG6 KREV 03S-C2-024C","Steuerventil NG6, 320bar, 24V KREV 03S-C2-024C","Distributeur electrique NG6 KREV 03S-C2-024C"]
["KREV03SC3012C","Stuurventiel elektrisch NG6 KREV 03S-C3-012C",null,45,2,"SEV03C3","OB",0,74.5,124.5,88,0,"EA","300",null,"Stuurventiel elektrisch NG6 KREV 03S-C3-012C","Electric control valve NG6 KREV 03S-C3-012C","Steuerventil NG6, 320bar, 12V KREV 03S-C3-012C","Distributeur electrique NG6 KREV 03S-C3-012C"]
["KREV03SC3024C","Stuurventiel elektrisch NG6 KREV 03S-C3-024C",null,45,2,"SEV03C3","OB",0,74.5,124.5,88,0,"EA","300",null,"Stuurventiel elektrisch NG6 KREV 03S-C3-024C","Electric control valve NG6 KREV 03S-C3-024C","Steuerventil NG6, 320bar, 24V KREV 03S-C3-024C","Distributeur electrique NG6 KREV 03S-C3-024C"]
["KREV03SC3B012C","Stuurventiel elektrisch NG6 KREV 03S-C3B-012C",null,45,2,"SEV03C3B","OB",0,74.5,124.5,88,0,"EA","300",null,"Stuurventiel elektrisch NG6 KREV 03S-C3B-012C","Electric control valve NG6 KREV 03S-C3B-012C","Steuerventil NG6, 320bar, 12V KREV 03S-C3B-012C","Distributeur electrique NG6 KREV 03S-C3B-012C"]
["KREV03SC3B024C","Stuurventiel elektrisch NG6 KREV 03S-C3B-024C",null,45,2,"SEV03C3B","OB",0,74.5,124.5,88,0,"EA","300",null,"Stuurventiel elektrisch NG6 KREV 03S-C3B-024C","Electric control valve NG6 KREV 03S-C3B-024C","Steuerventil NG6, 320bar, 24V KREV 03S-C3B-024C","Distributeur electrique NG6 KREV 03S-C3B-024C"]
["KREV03SC4012C","Stuurventiel elektrisch NG6 KREV 03S-C4-012C",null,45,2,"SEV03C4","OB",0,74.5,124.5,88,0,"EA","300",null,"Stuurventiel elektrisch NG6 KREV 03S-C4-012C","Electric control valve NG6 KREV 03S-C4-012C","Steuerventil NG6, 320bar, 12V KREV 03S-C4-012C","Distributeur electrique NG6 KREV 03S-C4-012C"]
["KREV03SC4024C","Stuurventiel elektrisch NG6 KREV-03S-C4-024C",null,45,2,"SEV03C4","OB",0,74.5,124.5,88,0,"EA","300",null,"Stuurventiel elektrisch NG6 KREV-03S-C4-024C","Electric control valve NG6 KREV-03S-C4-024C","Steuerventil NG6, 320bar, 24V KREV-03S-C4-024C","Distributeur electrique NG6 KREV-03S-C4-024C"]
["KREV03SC6012C","Stuurventiel elektrisch NG6 KREV 03S-C6-012C",null,45,2,"SEV03C6","OB",0,74.5,124.5,88,0,"EA","300",null,"Stuurventiel elektrisch NG6 KREV 03S-C6-012C","Electric control valve NG6 KREV 03S-C6-012C","Steuerventil NG6, 320bar, 12V KREV 03S-C6-012C","Distributeur electrique NG6 KREV 03S-C6-012C"]
["KREV03SC6024C","Stuurventiel elektrisch NG6 KREV 03S-C6-024C",null,45,2,"SEV03C6","OB",0,74.5,124.5,88,0,"EA","300",null,"Stuurventiel elektrisch NG6 KREV 03S-C6-024C","Electric control valve NG6 KREV 03S-C6-024C","Steuerventil NG6, 320bar, 24V KREV 03S-C6-024C","Distributeur electrique NG6 KREV 03S-C6-024C"]
["KREV902012C","Spoel v. KREV-02(S) 12 VDC KREV 9-02-012C",null,null,null,null,null,null,null,null,null,null,"EA","300","Cetop02","Spoel v. KREV-02(S) 12 VDC KREV 9-02-012C","Coil for KREV-02(S) 12 V DC KREV 9-02-012C","Spule fur KREV-02(S) 12 V DC KREV 9-02-012C","Bobine p. KREV-02(S) 12 V c.c. KREV 9-02-012C"]
["KREV902024C","Spoel v. KREV-02(S) 24 VDC KREV 9-02-024C",null,null,null,null,null,null,null,null,null,null,"EA","300","Cetop02","Spoel v. KREV-02(S) 24 VDC KREV 9-02-024C","Coil for KREV-02(S) 24 V DC KREV 9-02-024C","Spule fur KREV-02(S) 24 V DC KREV 9-02-024C","Bobine p. KREV-02(S) 24 V c.c. KREV 9-02-024C"]
["KREV902230A","Spoel v. KREV-02(S) 230 VAC KREV 9-02-230A",null,null,null,null,null,null,null,null,null,null,"EA","300","Cetop02","Spoel v. KREV-02(S) 230 VAC KREV 9-02-230A","Coil for KREV-02(S) 230 V AC KREV 9-02-230A","Spule fur KREV-02(S) 230 V AC KREV 9-02-230A","Bobine p. KREV-02(S) 230V c.a. KREV 9-02-230A"]
["KREV903DEK","Afdekplaat NG-6 KREV 9-03-DEK",null,30,null,"SEV903DEK","OB",0,0,0,15,0,"EA","300",null,"Afdekplaat NG-6 KREV 9-03-DEK","Cover plate NG-6 KREV 9-03-DEK","Abdeckplatte NG-6 KREV 9-03-DEK","Plaque de recouvrement NG-6 KREV 9-03-DEK"]
["KREV95105","Set bouten M5 x 105 (4) NG6 KREV 9-5105",null,null,null,null,null,null,null,null,null,null,"SET","300",null,"Set bouten M5 x 105 (4) NG6 KREV 9-5105","Set of screws, M5 x 105 (4) NG6 KREV 9-5105","Satz Schrauben M5 x 105 (4) NG6 KREV 9-5105","Jeu de boulons M5 x 105 (4) NG6 KREV 9-5105"]
["KREV95125","Set bouten M5 x 125 (4) NG6 KREV 9-5125",null,null,null,null,null,null,null,null,null,null,"SET","300",null,"Set bouten M5 x 125 (4) NG6 KREV 9-5125","Set of screws, M5 x 125 (4) NG6 KREV 9-5125","Satz Schrauben M5 x 125 (4) NG6 KREV 9-5125","Jeu de boulons M5 x 125 (4) NG6 KREV 9-5125"]
["KREV95135","Set bouten M5 x 135 (4) NG6 KREV 9-5135",null,null,null,null,null,null,null,null,null,null,"SET","300",null,"Set bouten M5 x 135 (4) NG6 KREV 9-5135","Set of screws, M5 x 135 (4) NG6 KREV 9-5135","Satz Schrauben M5 x 135 (4) NG6 KREV 9-5135","Jeu de boulons M5 x 135 (4) NG6 KREV 9-5135"]
["KREV95145","Set bouten M5 x 145 (4) NG6 KREV 9-5145",null,null,null,null,null,null,null,null,null,null,"SET","300",null,"Set bouten M5 x 145 (4) NG6 KREV 9-5145","Set of screws, M5 x 145 (4) NG6 KREV 9-5145","Satz Schrauben M5 x 145 (4) NG6 KREV 9-5145","Jeu de boulons M5 x 145 (4) NG6 KREV 9-5145"]
["KREV95170","Set bouten M5 x 170 (4) NG6 KREV 9-5170",null,null,null,null,null,null,null,null,null,null,"SET","300",null,"Set bouten M5 x 170 (4) NG6 KREV 9-5170","Set of screws, M5 x 170 (4) NG6 KREV 9-5170","Satz Schrauben M5 x 170 (4) NG6 KREV 9-5170","Jeu de boulons M5 x 170 (4) NG6 KREV 9-5170"]
["KREV95180","Set bouten M5 x 180 (4) NG6 KREV 9-5180",null,null,null,null,null,null,null,null,null,null,"SET","300",null,"Set bouten M5 x 180 (4) NG6 KREV 9-5180","Set of screws, M5 x 180 (4) NG6 KREV 9-5180","Satz Schrauben M5 x 180 (4) NG6 KREV 9-5180","Jeu de boulons M5 x 180 (4) NG6 KREV 9-5180"]
["KREV95190","Set bouten M5 x 190 (4) NG6 KREV 9-5190",null,null,null,null,null,null,null,null,null,null,"SET","300",null,"Set bouten M5 x 190 (4) NG6 KREV 9-5190","Set of screws, M5 x 190 (4) NG6 KREV 9-5190","Satz Schrauben M5 x 190 (4) NG6 KREV 9-5190","Jeu de boulons M5 x 190 (4) NG6 KREV 9-5190"]
["KREV9530",{"$f":"CHOOSE(SEL_LANGUAGE,P112,Q112,R112,S112)","v":"Set bouten M5 x 30 (4) NG6 KREV 9-530"},null,null,null,null,null,null,null,null,null,null,"SET","300",null,"Set bouten M5 x 30 (4) NG6 KREV 9-530","Set of screws, M5 x 30 (4) NG6 KREV 9-530","Satz Schrauben M5 x 30 (4) NG6 KREV 9-530","Jeu de boulons M5 x 30 (4) NG6 KREV 9-530"]
["KREV9545","Set bouten M5 x 45 (4) NG6 KREV 9-545",null,null,null,null,null,null,null,null,null,null,"SET","300",null,"Set bouten M5 x 45 (4) NG6 KREV 9-545","Set of screws, M5 x 45 (4) NG6 KREV 9-545","Satz Schrauben M5 x 45 (4) NG6 KREV 9-545","Jeu de boulons M5 x 45 (4) NG6 KREV 9-545"]
["KREV9585","Set bouten M5 x 85 (4) NG6 KREV 9-585",null,null,null,null,null,null,null,null,null,null,"SET","300",null,"Set bouten M5 x 85 (4) NG6 KREV 9-585","Set of screws, M5 x 85 (4) NG6 KREV 9-585","Satz Schrauben M5 x 85 (4) NG6 KREV 9-585","Jeu de boulons M5 x 85 (4) NG6 KREV 9-585"]
["KREV9595","Set bouten M5 x 95 (4) NG6 KREV 9-595",null,null,null,null,null,null,null,null,null,null,"SET","300",null,"Set bouten M5 x 95 (4) NG6 KREV 9-595","Set of screws, M5 x 95 (4) NG6 KREV 9-595","Satz Schrauben M5 x 95 (4) NG6 KREV 9-595","Jeu de boulons M5 x 95 (4) NG6 KREV 9-595"]
["KRMPC02SW","Gest terugslagklep SMPC-02S-W NG4",null,null,null,null,"OB",0,0,0,40,0,"EA","300","Cetop02","Gest terugslagklep SMPC-02S-W NG4","Check-valve SMPC-02S-W NG4","Rückschlagventil SMPC-02S-W NG4","Clapet anti-retour piloté SMPC-02S-W NG4"]
["KRMPC03A","Gest terugslagklep SMPC-03-A NG6 (veer 2Bar)",null,40,null,"SMPC03A","OB",0,0,0,40,0,"EA","300",null,"Gest terugslagklep SMPC-03-A NG6 (veer 2Bar)","03-Saturn Pilot check Valve","Entsp.bares Rückschlagventil N","Clapet anti-retour piloté SMPC-03-A NG6 (veer 2Bar)"]
["KRMPC03B","Gest terugslagklep SMPC-03-B NG6",null,40,null,"SMPC03B","OB",0,0,0,40,0,"EA","300",null,"Gest terugslagklep SMPC-03-B NG6","03-Saturn Pilot check Valve","Entsp.bares Rückschlagventil N","Clapet anti-retour piloté SMPC-03-B NG6"]
["KRMPC03W","Gest terugslagklep SMPC-03W-4 NG6",null,40,null,"SMPC03W","OB",0,0,0,40,0,"EA","300",null,"Gest terugslagklep SMPC-03W-4 NG6","03-Saturn Pilot check Valve","Entsp.bares Rückschlagventil N","Clapet anti-retour piloté SMPC-03W-4 NG6"]
["KRMPR03A3","Reduceerklep SMPR-03-A-S-3/ P in A NG6",null,40,null,"SMPR03A3","OB",0,0,0,40,0,"EA","300",null,"Reduceerklep SMPR-03-A-S-3/ P in A NG6","03-Saturn Reducing Valve","Druckminderventil NW 6","Réducteur de pression SMPR-03-A-S-3/ P dans A NG6"]
["KRMPR03B3","Reduceerklep SMPR-03-B-S-3/P in B NG6",null,40,null,"SMPR03B3","OB",0,0,0,40,0,"EA","300",null,"Reduceerklep SMPR-03-B-S-3/P in B NG6","03-Saturn Reducing Valve","Druckminderventil NW 6","Réducteur de pression SMPR-03-B-S-3/P dans B NG6"]
["KRMPS9030","Tussenplaat MPS-03-0 PS ongeboord",null,40,null,"SMPS030","OB",0,0,0,40,0,"EA","300",null,"Tussenplaat MPS-03-0 PS ongeboord","03 Intermediate Plate (no bore)","Zwischenplatte MPS-02-0","Plaque intermédiaire MPS-03-0 PS"]
["KRMPS903A","Tussenplaat MPS-03-A PS in A-poort",null,40,null,"SMPS03A","OB",0,0,0,40,0,"EA","300",null,"Tussenplaat MPS-03-A PS in A-poort","Intermediate Plate A-Cetop 03","Zwischenplatte MPS-02-A","Plaque intermédiaire MPS-03-A PS en A"]
["KRMPS903B","Tussenplaat MPS-03-B PS in B-poort",null,40,null,"SMPS03B","OB",0,0,0,40,0,"EA","300",null,"Tussenplaat MPS-03-B PS in B-poort","Intermediate Plate B-Cetop 03","Zwischenplatte MPS-02-B","Plaque intermédiaire MPS-03-B PS en B"]
["KRMRF02SC3","Drukregelklep SMRF-02S-C-3 NG4",null,null,null,null,"OB",0,0,0,40,0,"EA","300","Cetop02","Drukregelklep SMRF-02S-C-3 NG4","Relief-valve SMRF-02S-C-3 NG4","Druckbegrenzungsventil SMRF-02S-C-3 NG4","Valve de réglage de pression SMRF-02S-C-3 NG4"]
["KRMRF03A3","Drukregelklep SMRF-03-A-S-3 NG6",null,40,null,"SMRF03A3","OB",0,0,0,40,0,"EA","300",null,"Drukregelklep SMRF-03-A-S-3 NG6","03-Saturn Relief Valve","Druckbegrenzungsventil NW 6","Valve de réglage de pression SMRF-03-A-S-3 NG6"]
["KRMRF03B3","Drukregelklep SMRF-03-B-S-3 NG6",null,40,null,"SMRF03B3","OB",0,0,0,40,0,"EA","300",null,"Drukregelklep SMRF-03-B-S-3 NG6","03-Saturn Relief Valve","Druckbegrenzungsventil NW 6","Valve de réglage de pression SMRF-03-B-S-3 NG6"]
["KRMRF03C3","Drukregelklep SMRF-03-C-S-3 NG6",null,40,null,"SMRF03C3","OB",0,0,0,40,0,"EA","300",null,"Drukregelklep SMRF-03-C-S-3 NG6","03-Saturn Relief Valve","Druckbegrenzungsventil NW 6","Valve de réglage de pression SMRF-03-C-S-3 NG6"]
["KRMRF03D3","Drukregelklep SMRF-03-D-S-3 NG6",null,40,null,"SMRF03D3","OB",0,0,0,40,0,"EA","300",null,"Drukregelklep SMRF-03-D-S-3 NG6","03-Saturn Relief Valve","Druckbegrenzungsventil NW 6","Valve de réglage de pression SMRF-03-D-S-3 NG6"]
["KRMSC03A012C","Elek. terugslagklep MSC-03A-12 NG6",null,40,null,"SMSC03A","OB",0,0,0,40,0,"EA","300",null,"Elek. terugslagklep MSC-03A-12 NG6","solenoid check valve","Rückschlagventil elektr. NG6","Clapet anti-retour électrique MSC-03A-12 NG6"]
["KRMSC03A024C","Elek. terugslagklep MSC-03A-24 NG6",null,40,null,"SMSC03A","OB",0,0,0,40,0,"EA","300",null,"Elek. terugslagklep MSC-03A-24 NG6","solenoid check valve","Rückschlagventil elektr. NG6","Clapet anti-retour électrique MSC-03A-24 NG6"]
["KRMSC03B012C","Elek. terugslagklep MSC-03B-12 NG6",null,40,null,"SMSC03B","OB",0,0,0,40,0,"EA","300",null,"Elek. terugslagklep MSC-03B-12 NG6","solenoid check valve","Rückschlagventil elektr. NG6","Clapet anti-retour électrique MSC-03B-12 NG6"]
["KRMSC03B024C","Elek. terugslagklep MSC-03B-24 NG6",null,40,null,"SMSC03B","OB",0,0,0,40,0,"EA","300",null,"Elek. terugslagklep MSC-03B-24 NG6","solenoid check valve","Rückschlagventil elektr. NG6","Clapet anti-retour électrique MSC-03B-24 NG6"]
["KRMSC03W012C","Elek. terugslagklep MSC-03W-12 NG6",null,40,null,"SMSC03W","OB",0,0,0,40,0,"EA","300",null,"Elek. terugslagklep MSC-03W-12 NG6","solenoid check valve","Rückschlagventil elektr. NG6","Clapet anti-retour électrique MSC-03W-12 NG6"]
["KRMSC03W024C","Elek. terugslagklep MSC-03W-24 NG6",null,40,null,"SMSC03W","OB",0,0,0,40,0,"EA","300",null,"Elek. terugslagklep MSC-03W-24 NG6","solenoid check valve","Rückschlagventil elektr. NG6","Clapet anti-retour électrique MSC-03W-24 NG6"]
["KRMTI03A","Smoorterugslagklep SMTI-03A-S A in NG6",null,40,null,"SMTI03A","OB",0,0,0,40,0,"EA","300",null,"Smoorterugslagklep SMTI-03A-S A in NG6","03-Saturn Throtted check Valve","Drosselrückschlagventil NW6","Etrangleur de débit unidirectionnel SMTI-03A-S A in NG6"]
["KRMTI03B","Smoorterugslagklep SMTI-03B-SB in NG6",null,40,null,"SMTI03B","OB",0,0,0,40,0,"EA","300",null,"Smoorterugslagklep SMTI-03B-SB in NG6","03-Saturn Throtted check Valve","Drosselrückschlagventil NW6","Etrangleur de débit unidirectionnel SMTI-03B-SB in NG6"]
["KRMTI03W","Smoorterugslagklep SMTI-03-W-S A+B in NG6",null,40,null,"SMTI03W","OB",0,0,0,40,0,"EA","300",null,"Smoorterugslagklep SMTI-03-W-S A+B in NG6","03-Saturn Throtted check Valve","Drosselrückschlagventil NW6","Etrangleur de débit unidirectionnel SMTI-03-W-S A+B in NG6"]
["KRMTO03A","Smoorterugslagklep SMTO-03-A-S A uit NG6",null,40,null,"SMTO03A","OB",0,0,0,40,0,"EA","300",null,"Smoorterugslagklep SMTO-03-A-S A uit NG6","03-Saturn Throtted check Valve","Drosselrückschlagventil NW6","Etrangleur de débit unidirectionnel SMTO-03-A-S A uit NG6"]
["KRMTO03B","Smoorterugslagklep SMTO-03-B-S B uit NG6",null,40,null,"SMTO03B","OB",0,0,0,40,0,"EA","300",null,"Smoorterugslagklep SMTO-03-B-S B uit NG6","03-Saturn Throtted check Valve","Drosselrückschlagventil NW6","Etrangleur de débit unidirectionnel SMTO-03-B-S B uit NG6"]
["KRMTO03W","Smoorterugslagklep SMTO-03W-S A+B uit NG6",null,40,null,"SMTO03W","OB",0,0,0,40,0,"EA","300",null,"Smoorterugslagklep SMTO-03W-S A+B uit NG6","03-Saturn Throtted check Valve","Drosselrückschlagventil NW6","Etrangleur de débit unidirectionnel SMTO-03W-S A+B uit NG6"]
["KSCB1","Servicemonteur - Intern - 7-18 uur - ma-vr",null,null,null,null,null,null,null,null,null,null,"HRS","300",null,"Servicemonteur - Intern - 7-18 uur - ma-vr","Service Technician - Internal - 7-18 uur Mon-Fri","Servicetechniker - Intern - 7-18 uur Mo-Fr","Service Technician - Internal - 7-18 uur - Lun-Ven"]
["KSCKLMAT","<montage materiaal>",null,null,null,null,null,null,null,null,null,null,"EA","300",null,"<montage materiaal>","<mounting material>","<Montagematerial>","<matériel de fixation>"]
["LC08C1H","Spoel voor LSV2 12VDC",null,null,1,null,null,null,null,null,null,null,"EA","300",null,"Spoel voor LSV2 12VDC","Coil for LSV2 12VDC","Spule für LSV2 12VDC","Bobine pour LSV2 12VDC"]
["LC08C2H","Spoel voor LSV2 24VDC",null,null,1,null,null,null,null,null,null,null,"EA","300",null,"Spoel voor LSV2 24VDC","Coil for LSV2 24VDC","Spule für LSV2 24VDC","Bobine pour LSV2 24VDC"]
["LC08C4H","Spoel voor LSV2 230C",null,null,1,null,null,null,null,null,null,null,"EA","300",null,"Spoel voor LSV2 230C","Coil for LSV2 230C","Spule für LSV2 230C","Bobine pour LSV2 230C"]
["LSV0834O","4/3 klep AB open",null,null,2,null,"FE",0,0,88,0,0,"EA","300",null,"4/3 klep AB open","4/3 valve AB open","4/3 Wegeventil AB offen","4/3 vanne AB open"]
["LSV0834T","4/3 klep AB dicht",null,null,2,null,"FE",0,0,88,0,0,"EA","300",null,"4/3 klep AB dicht","4/3 valve AB closed","4/3 Wegeventil AB geschlossen","4/3 vanne AB closed"]
["LSV2082NCP","2/2 klep LSV2-08-2NCP",null,null,null,null,"FE",0,0,50,0,0,"EA","300",null,"2/2 klep LSV2-08-2NCP","2/2 valve LSV2-08-2NCP","2/2 Wegeventil LSV2-08-2NCP","Vanne 2/2 LSV2-08-2NCP"]
["LSV2082NCPM","2/2 klep LSV2-08-2NCP-M",null,null,null,null,"FE",0,0,60,0,0,"EA","300",null,"2/2 klep LSV2-08-2NCP-M","2/2 valve LSV2-08-2NCP-M","2/2 Wegeventil LSV2-08-2NCP-M","Vanne 2/2 LSV2-08-2NCP-M"]
["LSV2082NOP",{"$f":"CHOOSE(SEL_LANGUAGE,P151,Q151,R151,S151)","v":"2/2 klep LSV2-08-2NOP"},null,null,null,null,"FE",0,0,53,0,0,"EA","300",null,"2/2 klep LSV2-08-2NOP","2/2 valve LSV2-08-2NOP","2/2 Wegeventil LSV2-08-2NOP","Vanne 2/2 LSV2-08-2NOP"]
["LSV2084CO","4/2 klep",null,null,1,null,"FE",0,0,48,0,0,"EA","300",null,"4/2 klep","4/2 valve","4/2 Wegeventil","4/2 vanne"]
["MA63100L04PLGF","Manometer D. 63 0-100 Bar onderaansl.",null,null,null,null,"OE",0,0,0,63,0,"EA","300",null,"Manometer D. 63 0-100 Bar onderaansl.","Gauge (back) d. 63 0-100 bar","Manometer D. 63 0-100 Bar .","Manomètre D. 63 0-100 Bar raccordement en dessous"]
["MA63160L04PLGF","Manometer D. 63 0-160 Bar onderaansl.",null,null,null,null,"OE",0,0,0,63,0,"EA","300",null,"Manometer D. 63 0-160 Bar onderaansl.","Gauge (back) d. 63 0-160 bar","Manometer D. 63 0-160 Bar .","Manomètre D. 63 0-160 Bar raccordement en dessous"]
["MA63250L04PLGF","Manometer D. 63 0-250 Bar onderaansl.",null,null,null,null,"OE",0,0,0,63,0,"EA","300",null,"Manometer D. 63 0-250 Bar onderaansl.","Gauge (back) d. 63 0-250 bar","Manometer D. 63 0-250 Bar .","Manomètre D. 63 0-250 Bar raccordement en dessous"]
["MEV2018","Meetpuntkoppeling MEV 20-R 1/8 BSP",null,null,null,null,null,null,null,null,null,null,"EA","300",null,"Meetpuntkoppeling MEV 20-R 1/8 BSP","Pressure gauge connector","Messpunktverschraubung","Raccord minimess"]
["MPP09D","Pump 0.85 cc D gr.1 ",null,null,null,null,null,null,null,null,null,null,"EA","300",null,"Pomp 0.85 cc D gr.1 ","Pump 0.85 cc D gr.1 ","Pumpe 0.85 cc D Gr.1 ","Pompe 0.85 cc D Gr.1 "]
["MPP12D","Pump 1.2 cc D gr.1",null,null,null,null,null,null,null,null,null,null,"EA","300",null,"Pomp 1.2 cc D gr.1","Pump 1.2 cc D gr.1","Pumpe 1.2 cc D Gr.1","Pompe 1.2 cc D Gr.1"]
["MPP16D","Pump 1.7 cc D gr.1",null,null,null,null,null,null,null,null,null,null,"EA","300",null,"Pomp 1.7 cc D gr.1","Pump 1.7 cc D gr.1","Pumpe 1.7 cc D Gr.1","Pompe 1.7 cc D Gr.1"]
["MPP20D","Pump 2.0 cc D gr.1",null,null,null,null,null,null,null,null,null,null,"EA","300",null,"Pomp 2.0 cc D gr.1","Pump 2.0 cc D gr.1","Pumpe 2.0 cc D Gr.1","Pompe 2.0 cc D Gr.1"]
["MPP22DS","Pump 2.2 cc D gr.1 *silent*",null,null,null,null,null,null,null,null,null,null,"EA","300",null,"Pomp 2.2 cc D gr.1 *stil*","Pump 2.2 cc D gr.1 *silent*","Pumpe 2.2 cc D Gr.1 *still*","Pompe 2.2 cc D Gr.1 *silencieux*"]
["MPP25D","Pump 2.6 cc D gr.1",null,null,null,null,null,null,null,null,null,null,"EA","300",null,"Pomp 2.6 cc D gr.1","Pump 2.6 cc D gr.1","Pumpe 2.6 cc D Gr.1","Pompe 2.6 cc D Gr.1"]
["MPP26DS","Pump 2.6 cc D gr.1 *silent*",null,null,null,null,null,null,null,null,null,null,"EA","300",null,"Pomp 2.6 cc D gr.1 *stil*","Pump 2.6 cc D gr.1 *silent*","Pumpe 2.6 cc D Gr.1 *still*","Pompe 2.6 cc D Gr.1 *silencieux*"]
["MPP2DS","Pump 2.0 cc D gr.1 *silent*",null,null,null,null,null,null,null,null,null,null,"EA","300",null,"Pomp 2.0 cc D gr.1 *stil*","Pump 2.0 cc D gr.1 *silent*","Pumpe 2.0 cc D Gr.1 *still*","Pompe 2.0 cc D Gr.1 *silencieux*"]
["MPP32D","Pump 3.2 cc D gr.1",null,null,null,null,null,null,null,null,null,null,"EA","300",null,"Pomp 3.2 cc D gr.1","Pump 3.2 cc D gr.1","Pumpe 3.2 cc D Gr.1","Pompe 3.2 cc D Gr.1"]
["MPP32DS","Pump 3.2 cc D gr.1 *silent*",null,null,null,null,null,null,null,null,null,null,"EA","300",null,"Pomp 3.2 cc D gr.1 *stil*","Pump 3.2 cc D gr.1 *silent*","Pumpe 3.2 cc D Gr.1 *still*","Pompe 3.2 cc D Gr.1 *silencieux*"]
["MPP37D","Pump 3.8 cc D gr.1",null,null,null,null,null,null,null,null,null,null,"EA","300",null,"Pomp 3.8 cc D gr.1","Pump 3.8 cc D gr.1","Pumpe 3.8 cc D Gr.1","Pompe 3.8 cc D Gr.1"]
["MPP38DS","Pump 3.8 cc D gr.1 *silent*",null,null,null,null,null,null,null,null,null,null,"EA","300",null,"Pomp 3.8 cc D gr.1 *stil*","Pump 3.8 cc D gr.1 *silent*","Pumpe 3.8 cc D Gr.1 *still*","Pompe 3.8 cc D Gr.1 *silencieux*"]
["MPP42D","Pump 4.3 cc D gr.1",null,null,null,null,null,null,null,null,null,null,"EA","300",null,"Pomp 4.3 cc D gr.1","Pump 4.3 cc D gr.1","Pumpe 4.3 cc D Gr.1","Pompe 4.3 cc D Gr.1"]
["MPP43DS","Pump 4.3 cc D gr.1 *silent*",null,null,null,null,null,null,null,null,null,null,"EA","300",null,"Pomp 4.3 cc D gr.1 *stil*","Pump 4.3 cc D gr.1 *silent*","Pumpe 4.3 cc D Gr.1 *still*","Pompe 4.3 cc D Gr.1 *silencieux*"]
["MPP50D","Pump 5.0 cc D gr.1",null,null,null,null,null,null,null,null,null,null,"EA","300",null,"Pomp 5.0 cc D gr.1","Pump 5.0 cc D gr.1","Pumpe 5.0 cc D Gr.1","Pompe 5.0 cc D Gr.1"]
["MPP5DS","Pump 5.0 cc D gr.1 *silent*",null,null,null,null,null,null,null,null,null,null,"EA","300",null,"Pomp 5.0 cc D gr.1 *stil*","Pump 5.0 cc D gr.1 *silent*","Pumpe 5.0 cc D Gr.1 *still*","Pompe 5.0 cc D Gr.1 *silencieux*"]
["MPP63D","Pump 6.0 cc D gr.1",null,null,null,null,null,null,null,null,null,null,"EA","300",null,"Pomp 6.0 cc D gr.1","Pump 6.0 cc D gr.1","Pumpe 6.0 cc D Gr.1","Pompe 6.0 cc D Gr.1"]
["MPP78D","Pump 7.8 cc D gr.1",null,null,null,null,null,null,null,null,null,null,"EA","300",null,"Pomp 7.8 cc D gr.1","Pump 7.8 cc D gr.1","Pumpe 7.8 cc D Gr.1","Pompe 7.8 cc D Gr.1"]
["MPP98D","Pump 9.8 cc D gr.1",null,null,null,null,null,null,null,null,null,null,"EA","300",null,"Pomp 9.8 cc D gr.1","Pump 9.8 cc D gr.1","Pumpe 9.8 cc D Gr.1","Pompe 9.8 cc D Gr.1"]
["MPP2649D","Double pump 2.6-4.9 cc D",null,null,null,null,null,null,null,null,null,null,"EA","300",null,"Dubbelpomp 2.6-4.9 cc D","Double pump 2.6-4.9 cc D","Doppelpumpe 2.6-4.9 cc D","Pompe double 2.6-4.9 cc D"]
["MPP9MC100","Koppeling voor EM100B14",null,null,null,null,null,0,0,0,0,0,"EA","300",null,"Koppeling voor EM100B14","IEC100B14A Motor Coupling","IEC100B14A Motor Kupplung","Accouplement pour EM100B14"]
["MPP9MC71","Koppeling voor EM71B14",null,null,null,null,null,0,0,0,0,0,"EA","300",null,"Koppeling voor EM71B14","IEC71B14A Motor Coupling","IEC71B14A Motor Kupplung","Accouplement pour EM71B14"]
["MPP9MC71HD","Koppeling voor EM71B14 HD",null,null,null,null,null,0,0,0,0,0,"EA","300",null,"Koppeling voor EM71B14 HD","IEC71B14A Motor Coupling HD","IEC71B14A Motor Kupplung HD","Accouplement pour EM71B14 HD"]
["MPP9MC80","Koppeling voor EM80B14",null,null,null,null,null,0,0,0,0,0,"EA","300",null,"Koppeling voor EM80B14","IEC80B14A Motor Coupling","IEC80B14A Motor Kupplung","Accouplement pour EM80B14"]
["MPP9MC90","Koppeling voor EM90B14",null,null,null,null,null,0,0,0,0,0,"EA","300",null,"Koppeling voor EM90B14","IEC90B14A Motor Coupling","IEC90B14A Motor Kupplung","Accouplement pour EM90B14"]
["MPP9MCBSH","Motorkoppeling Honda",null,null,null,null,null,null,null,null,null,null,"EA","300",null,"Motorkoppeling Honda","Motor coupling Honda","Motorkupplung Honda","Accouplenemt pour Honda"]
["MPP9MF100","Flens voor EM100B14",null,null,null,null,"EE",58,0,0,0,0,"EA","300",null,"Flens voor EM100B14","IEC100B14A Flange","IEC100B14A Flansch","Bride pour EM100B14"]
["MPP9MF71","Flens voor EM71B14",null,null,null,null,"EE",20,0,0,0,0,"EA","300",null,"Flens voor EM71B14","IEC71B14A Flange","IEC71B14A Flansch","Bride pour EM71B14"]
["MPP9MF80","Flens voor EM80B14",null,null,null,null,"EE",22,0,0,0,0,"EA","300",null,"Flens voor EM80B14","IEC80B14A Flange","IEC80B14A Flansch","Bride pour EM80B14"]
["MPP9MF90","Flens voor EM90B14",null,null,null,null,"EE",32,0,0,0,0,"EA","300",null,"Flens voor EM90B14","IEC90B14A Flange","IEC90B14A Flansch","Bride pour EM90B14"]
["MPPMF90H","Flens Adapter IEC90-GX160",null,null,null,null,null,null,null,null,null,null,"EA","300",null,"Flens Adapter IEC90-GX160","Flange Adaptor IEC90-GX160","Flansch Adapter IEC90-GX160","MPP Bride Adaptateur IEC90-GX160"]
["MPP9PCAC","Pompkoppeling voor AC-motor",null,null,null,null,null,null,null,null,null,null,"EA","300",null,"Pompkoppeling voor AC-motor","Drive Coupling for AC-motor","Kupplung für AC Motor","Accouplenemt moteur-AC"]
["MPP9PCAC05","Pompkoppeling voor AC-motor Gr. 0.5",null,null,null,null,null,null,null,null,null,null,"EA",300,null,"Pompkoppeling voor AC-motor Gr. 0.5","Drive Coupling for AC-motor Gr. 0.5","Kupplung für AC Motor Gr. 0.5","Accouplenemt moteur-AC Gr. 0.5"]
["MPPBF","Montagevoet",null,null,null,null,"FE",0,0,0,0,48,"EA","300",null,"Montagevoet","Mounting Bracket","Montagefuss","pied de montage"]
["MPPCV","Terugslagklep",null,null,null,null,"FE",0,0,0,0,0,"EA","300",null,"Terugslagklep","Check Valve","Rückschlagventil","clapet anti-retour"]
["MPPCVMP","Terugslagklep met meetpuntaansluiting",null,null,null,null,"FE",0,0,41,0,0,"EA","300",null,"Terugslagklep met meetpuntaansluiting","Check Valve with pressure gauge connector","Rückschlagventil mit Messpunkt Anschluss","clapet anti-retour"]
["MPPDCM12V2100N","DC-motor 12VDC 2100W incl. relais",null,null,null,null,"EB",201,{"$f":"112/2","v":56},{"$f":"I193+62","v":118},{"$f":"I193","v":56},{"$f":"I193","v":56},"EA","300",null,"DC-motor 12VDC 2100W incl. relais","DC-motor 12VDC 2100W starter","Gleichstrommotor 12VDC 2100W mit Relais","Moteur-DC 12VDC 2100Wrelais incl."]
["MPPDCM12V2500N","DC-motor 12VDC 2500W B14A IEC90",null,null,null,null,"EB",316,{"$f":"220/2","v":110},{"$f":"I194","v":110},110,110,"EA","300",null,"DC-motor 12VDC 2500W B14A IEC90","DC-motor 12VDC 2500W B14AIEC90 1700rpm CCW","Gleichstrommotor 12VDC 2500W B14A IEC90","Moteur-DC 12VDC 2500W B14A IEC90"]
["MPPDCM12V800N","DC-motor 12VDC 800W incl. relais",null,null,null,null,"EB",138,{"$f":"80/2","v":40},{"$f":"I195+62","v":102},40,40,"EA","300",null,"DC-motor 12VDC 800W incl. relais","DC-motor 12VDC 800W starter","Gleichstrommotor 12VDC 800W mit Relais","Moteur-DC 12VDC 800W relais incl."]
["MPPDCM24V2100N","DC-motor 24VDC 2100W incl. relais",null,null,null,null,"EB",201,{"$f":"112/2","v":56},{"$f":"I196+62","v":118},56,56,"EA","300",null,"DC-motor 24VDC 2100W incl. relais","DC-motor 24VDC 2100W starter","Gleichstrommotor 24VDC 2100W mit Relais","Moteur-DC 24VDC 2100W relais incl."]
["MPPDCM24V3000N","DC-motor 24VDC 3000W B14A IEC90",null,null,null,null,"EB",316,{"$f":"220/2","v":110},{"$f":"I197","v":110},110,110,"EA","300",null,"DC-motor 24VDC 3000W B14A IEC90","DC-motor 24VDC 3000W B14AIEC90 1700rpm CCW","Gleichstrommotor 24VDC 3000W B14A IEC90","Moteur-DC 24VDC 3000W B14A IEC90"]
["MPPDCM24V800N","DC-motor 24VDC 800W incl. relais",null,null,null,null,"EB",138,{"$f":"80/2","v":40},{"$f":"I198+62","v":102},40,40,"EA","300",null,"DC-motor 24VDC 800W incl. relais","DC-motor 24VDC 800W starter","Gleichstrommotor 24VDC 800W mit Relais","Moteur-DC 24VDC 800W relais incl."]
["MPPDCMC2200","DC-motor koppeling 2200 W",null,null,null,null,null,null,null,null,null,null,"EA","300",null,"DC-motor koppeling 2200 W","Drive Coupling - 2200/Gr1","Kupplung für 2100 W Motor","Accouplenemt moteur-DC 2200 W"]
["MPPDCMC800","DC-motor koppeling 800 W Gr. 1",null,null,null,null,null,null,null,null,null,null,"EA","300",null,"DC-motor koppeling 800 W Gr. 1","Drive Coupling - 800 W Gr. 1","Kupplung für 800 W Motor Gr. 1","Accouplement moteur-DC 800 W Gr. 1"]
["MPPDCMC805","DC-motor koppeling 800 W Gr. 0.5",null,null,null,null,null,null,null,null,null,null,"EA","300",null,"DC-motor koppeling 800 W Gr. 0.5","Drive Coupling - 800 W Gr. 0.5","Kupplung für 800 W Motor Gr. 0.5","Accouplement moteur-DC 800 W Gr. 0.5"]
["MPPDCMCB2200","DC-motorkabel relais<>motor L=150mm",null,null,null,null,null,null,null,null,null,null,"EA","300",null,"DC-motorkabel relais<>motor L=150mm","MPP DC-motor cable relais <> m","MPP DC-Motor Kabel Relais <> M","Cable de moteur DC relais<>moteur L=150mm"]
["MPPDCMPC","Beschermkap voor DC-motor",null,null,null,null,null,null,null,null,null,null,"EA","300",null,"Beschermkap voor DC-motor","Protection cap voor DC-motor","Schutzkappe Für DC-motor","Casque de protection pour moteur-DC"]
["MPPDCMR12VHD","DC-motor relais 12V 800/200 Amp HD",null,null,null,null,null,null,null,null,null,null,"EA","300",null,"DC-motor relais 12V 800/200 Amp HD","DC Motor Relay - 12V, 800/200A HD","MPP DC-motor Relais 12V 800/200 Amp HD","Moteur-DC relais 12V 800/200 Amp HD"]
["MPPDCMR24VHD","DC-motor relais 24V 800/200 Amp HD",null,null,null,null,null,null,null,null,null,null,"EA","300",null,"DC-motor relais 24V 800/200 Amp HD","DC Motor Relay - 24V, 800/200A HD","MPP DC-motor Relais 24V 800/200 Amp HD","Moteur-DC relais 24V 800/200 Amp HD"]
["MPPIFA1","Centraleflens (3 keuzes)",null,null,null,null,"FB",40,{"$f":"133/2","v":66.5},{"$f":"I206","v":66.5},{"$f":"I206","v":66.5},{"$f":"I206","v":66.5},"EA","300",null,"Centraleflens (3 keuzes)","Central Flange (3 choices)","Zentraler Flansch (3 Auswahlen)","Bride centrale (3 Choix)"]
["MPPIFB1","Centraleflens (5 keuzes)",null,null,null,null,"FB",40,{"$f":"133/2","v":66.5},{"$f":"I207","v":66.5},{"$f":"I207","v":66.5},{"$f":"I207","v":66.5},"EA","300",null,"Centraleflens (5 keuzes)","Central Flange (5 choices)","Zentraler Flansch (5 Auswahlen)","Bride centrale (5 Choix)"]
["MPPIFC","Flens F4 Cavity SAE 8/4",null,null,null,null,"FB",40,{"$f":"133/2","v":66.5},{"$f":"I208","v":66.5},{"$f":"I208","v":66.5},{"$f":"I208","v":66.5},"EA","300",null,"Flens F4 Cavity SAE 8/4","Flange F4 Cavity SAE 8/4","Flansch F4 Cavity SAE 8/4","Bride F4 Cavity SAE 8/4"]
["MPPM01","Manifold 1 sectie",null,null,null,null,"FZ",0,0,0,83,0,"EA","300",null,"Manifold 1 sectie","1 Section Manifold","Fussplatte 1 Ventil","Embase 1 section "]
["MPPM02","Manifold 2 secties",null,null,null,null,"FO",{"$f":"130-40","v":90},0,0,40,0,"EA","300",null,"Manifold 2 secties","2 Section Manifold","Fussplatte 2 Ventile","Embase 2 sections"]
["MPPM03","Manifold 3 secties",null,null,null,null,"FO",{"$f":"180-40","v":140},0,0,40,0,"EA","300",null,"Manifold 3 secties","3 Section Manifold","Fussplatte 3 Ventile","Embase 3 sections"]
["MPPM04","Manifold 4 secties",null,null,null,null,"FO",{"$f":"230-40","v":190},0,0,40,0,"EA","300",null,"Manifold 4 secties","4 Section Manifold","Fussplatte 4 Ventile","Embase 4 sections"]
["MPPM302D","Manifold voor SEV-02S Dubbel",null,null,null,null,"FZ",0,0,0,108,0,"EA","300","Cetop02","Manifold voor SEV-02S Dubbel","Manifold for SEV-02S Double","Manifold for SEV-02S Doppelt","Manifold pour SEV-02S Double"]
["MPPM302S","Manifold voor SEV-02S Enkel",null,null,null,null,"FZ",0,0,0,108,0,"EA","300","Cetop02","Manifold voor SEV-02S Enkel","Manifold for SEV-02S Single","Manifold for SEV-02S Einfach","Manifold pour SEV-02S Simple"]
["MPPMFBSH","Motor Adapter Honda",null,null,null,null,"EE",59,0,0,0,0,"EA","300",null,"Motor Adapter Honda","Motor Adaptor Honda","Motor Adaptor Honda","Motor Adapteur Honda"]
["MPPMVENC","Daalklep NC handbediend",null,null,null,null,"FE",0,0,31,0,0,"EA","300",null,"Daalklep NC handbediend","NC Valve - Hand Operated","2/2 Wegeventil NC Handbedient","Valve de descente NC commande manuel"]
["MPPMVNC","2/2-klep NC handbediend met microswitch",null,null,null,null,"FE",0,0,84,0,0,"EA","300",null,"2/2-klep NC handbediend met microswitch","2-way NC Hand Control with m/s","2/2 Wegeventil NC Handbedient mit Schalter","Vanne 2/2NC commande manuel avec microrupteur"]
["MPPP34UNF","Plug 3/4\" UNF",null,null,null,null,null,null,null,null,null,null,"EA","300",null,"Plug 3/4\" UNF","3/4\" UNF Plug","3/4\" UNF Stopfen","Bouchon 3/4\" UNF"]
["MPPPA05","Pompadapter groep 0,5",null,null,null,null,null,null,null,null,null,null,"EA","300",null,"Pompadapter groep 0,5","Drive Coupling - Gr 0,5","Kupplung für Gruppe 0,5","Accouplenemt pompe groupe 0,5"]
["MPPPOCV","Terugslagklep",null,null,null,null,null,null,null,null,null,null,"EA","300",null,"Terugslagklep","Check Valve","Rückschlagventil","clapet anti-retour"]
["MPPPSAE82","Cavityplug SAE 8-2",null,null,null,null,null,null,null,null,null,null,"EA","300",null,"Cavityplug SAE 8-2","SAE 8-2 Cavity Plug","SAE 8-2 Blindstopfen","Bouchon SAE 8-2"]
["MPPPSAE82P","Cavityplug SAE 8-2 + extra 1/4\" aansluiting 2",null,null,null,null,null,null,null,null,null,null,"EA","300",null,"Cavityplug SAE 8-2 + extra 1/4\" aansluiting 2","SAE 8-2 Cavity Plug with 1/4\" connection","Stopfen + extra 1/4 Anschluss P","Bouchon SAE 8-2 + raccordement suppl. 1/4\" 2"]
["MPPPSAE82PT","Cavityplug SAE 8-2 + extra 1/4\" aansluiting 1+2",null,null,null,null,null,null,null,null,null,null,"EA","300",null,"Cavityplug SAE 8-2 + extra 1/4\" aansluiting 1+2","SAE 8-2 Cavity Plug with 1/4\" connection","Stopfen + extra 1/4 Anschluss P + T","Bouchon SAE 8-2 + raccordement suppl. 1/4\" 1+2"]
["MPPPSAE82T",{"$f":"CHOOSE(SEL_LANGUAGE,P224,Q224,R224,S224)","v":"Cavityplug SAE 8-2 + extra 1/4\" aansluiting 1"},null,null,null,null,null,null,null,null,null,null,"EA","300",null,"Cavityplug SAE 8-2 + extra 1/4\" aansluiting 1","SAE 8-2 Cavity Plug with 1/4\" connection","Stopfen + extra 1/4 Anschluss T","Bouchon SAE 8-2 + raccordement suppl. 1/4\" 1"]
["MPPRF","Retourfilter 15 micron",null,null,null,null,"FE",0,0,0,48,0,"EA","300",null,"Retourfilter 15 micron","Return line filter 15 micron","Rücklauffilter 15 micron","Filtre à retour 15 micron"]
["MPPRVC","Veiligheid 25-250 bar",null,null,null,null,"FE",0,50,0,0,0,"EA","300",null,"Veiligheid 25-250 bar","Relief Valve 25 - 250 bar","DBV 25-250 bar","Sécurité 25-250 bar"]
["MPPSF","Zuigfilter d.60mm 250 micr3/8\"",null,null,null,null,null,null,null,null,null,null,"EA","300",null,"Zuigfilter d.60mm 250 micr3/8\"","Suction Filter - 250 micron","Saugfilter 250 micron","Filtre d'aspiration d.60mm 250 micr3/8\""]
["MPPSFEP01D","Anti-spat filter",null,null,null,null,null,null,null,null,null,null,"EA","300",null,"Anti-spat filter","Anti-splash filter","Spritzschutzfilter","Filtre anti-éclaboussures"]
["MPPSP48","Vulplaat 48mm",null,null,null,null,"FE",0,0,0,48,0,"EA","300",null,"Vulplaat 48mm","Adapter Plate - 48mm","Distanzplatte 48 mm","plaque intermédiaire 48mm"]
["MPPSUPP","Voorzetlager voor poelie aandrijving as Ø24 spie 8mm",null,null,null,null,"EB",45,0,0,0,0,"EA","300",null,"Voorzetlager voor poelie aandrijving as Ø24 spie 8mm","Support Shaft rod 24 key 8mm","Vorsatzlager mit Welle 24mm und Nut 8mm","Palier pour entraînement par poulie arbre Ø24 spie 8mm"]
["MPPT001","Stalen tank 1 liter",null,null,null,null,"TB",150,{"$f":"125/2","v":62.5},{"$f":"I231","v":62.5},{"$f":"I231+21","v":83.5},{"$f":"I231","v":62.5},"EA","300",null,"Stalen tank 1 liter","Steel Tank - 1L","Stahlbehälter - 1L","Réservoir en acier 1 liter"]
["MPPT001P","Plastic tank 1 liter",null,null,null,null,"TB",150,{"$f":"140/2","v":70},70,100,70,"EA","300",null,"Plastic tank 1 liter","Plastic Reservoir - 1L","Plastik Ölbehälter - 1L","Réservoir en plastique 1 liter"]
["MPPT002","Stalen tank 2.5 liter",null,null,null,null,"TB",235,{"$f":"125/2","v":62.5},62.5,{"$f":"I233+21","v":83.5},{"$f":"I233","v":62.5},"EA","300",null,"Stalen tank 2.5 liter","Steel Tank - 2L","Stahlbehälter - 2L","Réservoir en acier 2.5 liter"]
["MPPT003","Stalen tank 3.5 liter",null,null,null,null,"TB",325,{"$f":"125/2","v":62.5},62.5,{"$f":"I234+21","v":83.5},{"$f":"I234","v":62.5},"EA","300",null,"Stalen tank 3.5 liter","Steel Tank - 3L","Stahlbehälter - 3L","Réservoir en acier 3.5 liter"]
["MPPT003P","Plastic tank 3,5 liter",null,null,null,null,"TB",265,{"$f":"140/2","v":70},70,100,70,"EA","300",null,"Plastic tank 3,5 liter","Plastic Reservoir - 3,5L","Plastik Ölbehälter - 3,5L","Réservoir en plastique 3,5 liter"]
["MPPT005","Stalen tank 5 liter",null,null,null,null,"TB",295,{"$f":"174/2","v":87},87,{"$f":"J236+21","v":108},{"$f":"J236","v":87},"EA","300",null,"Stalen tank 5 liter","Steel Tank - 5L","Stahlbehälter - 5L","Réservoir en acier 5 liter"]
["MPPT005P","Plastic tank 5 liter",null,null,null,null,"TB",270,{"$f":"170/2","v":85},85,120,70,"EA","300",null,"Plastic tank 5 liter","Plastic Reservoir - 5L","Plastik Ölbehälter - 5L","Réservoir en plastique 5 liter"]
["MPPT006A","Aluminium tank 6 liter",null,null,null,null,"TB",206,{"$f":"200/2","v":100},100,100,180,"EA","300",null,"Aluminium tank 6 liter","Aluminium Reservoir - 6L","Aluminium Ölbehälter - 6L","Réservoir en aluminium 6 liter"]
["MPPT008","Stalen tank 8 liter",null,null,null,null,"TB",420,{"$f":"174/2","v":87},87,108,{"$f":"I239","v":87},"EA","300",null,"Stalen tank 8 liter","Steel Tank - 8L","Stahlbehälter - 8L","Réservoir en acier 8 liter"]
["MPPT008P","Plastic tank 8 liter",null,null,null,null,"TB",375,{"$f":"170/2","v":85},85,120,70,"EA","300",null,"Plastic tank 8 liter","Plastic Reservoir - 8L","Plastik Ölbehälter - 8L","Réservoir en plastique 8 liter"]
["MPPT010","Stalen tank 10 liter",null,null,null,null,"TB",265,{"$f":"224/2","v":112},112,{"$f":"I241+21","v":133},{"$f":"I241","v":112},"EA","300",null,"Stalen tank 10 liter","Steel Tank - 10L","Stahlbehälter - 10L","Réservoir en acier 10 liter"]
["MPPT010A","Aluminium tank 10 liter",null,null,null,null,"TB",250,{"$f":"247/2","v":123.5},123.5,100,240,"EA","300",null,"Aluminium tank 10 liter","Aluminium Reservoir - 10L","Aluminium Ölbehälter - 10L","Réservoir en aluminium 10 liter"]
["MPPT012","Stalen tank 12 liter",null,null,null,null,"TB",380,{"$f":"224/2","v":112},112,{"$f":"I243+21","v":133},{"$f":"I243","v":112},"EA","300",null,"Stalen tank 12 liter","Steel Tank - 12L","Stahlbehälter - 12L","Réservoir en acier 12 liter"]
["MPPT015","Stalen tank 15 liter",null,null,null,null,"TB",235,{"$f":"300/2","v":150},150,100,260,"EA","300",null,"Stalen tank 15 liter","Steel Tank - 15L","Stahlbehälter - 15L","Réservoir en acier 15 liter"]
["MPPT020","Stalen tank 20 liter",null,null,null,null,"TB",365,78,{"$f":"200-I245","v":122},90,{"$f":"500-90","v":410},"EA","300",null,"Stalen tank 20 liter","Steel Tank - 20L","Stahlbehälter - 20L","Réservoir en acier 20 liter"]
["MPPT022","Stalen tank 22 liter",null,null,null,null,"TB",470,{"$f":"ROUND(223/2,0)","v":112},{"$f":"I246","v":112},{"$f":"ROUND((245+44)/2,0)","v":145},{"$f":"K246","v":145},"EA","300",null,"Stalen tank 22 liter","Steel Tank - 22L","Stahlbehälter - 22L","Réservoir en acier 22 liter"]
["MPPTC","MPP lasflens voor tank",null,null,null,null,"TB",25,0,0,0,0,"EA","300",null,"MPP lasflens voor tank","welding adapter for tank","Anschweissflansch für Ölbehälter","Adapteur a souder pour réservoir"]
["MPPTH12L","Smoring drukgecompenseerd 12 ltr. vast",null,null,null,null,null,null,null,null,null,null,"EA","300",null,"Smoring drukgecompenseerd 12 ltr. vast","12L Pressure Compensated Fixed Throttle","12L Druckkompensierte feste Drossel","Etranglement fixe compensé en pression12 ltr."]
["MPPTH1L","Smoring drukgecompenseerd 1 ltr. vast",null,null,null,null,null,null,null,null,null,null,"EA","300",null,"Smoring drukgecompenseerd 1 ltr. vast","1L Pressure Compensated Fixed Throttle","1L Druckkompensierte feste Drossel","Etranglement fixe compensé en pression1 ltr."]
["MPPTH2L","Smoring drukgecompenseerd 2 ltr. vast",null,null,null,null,null,null,null,null,null,null,"EA","300",null,"Smoring drukgecompenseerd 2 ltr. vast","2L Pressure Compensated Fixed Throttle","2L Druckkompensierte feste Drossel","Etranglement fixe compensé en pression2 ltr."]
["MPPTH3L","Smoring drukgecompenseerd 3 ltr. vast",null,null,null,null,null,null,null,null,null,null,"EA","300",null,"Smoring drukgecompenseerd 3 ltr. vast","3L Pressure Compensated Fixed Throttle","3L Druckkompensierte feste Drossel","Etranglement fixe compensé en pression3 ltr."]
["MPPTH4L","Smoring drukgecompenseerd 4 ltr. vast",null,null,null,null,null,null,null,null,null,null,"EA","300",null,"Smoring drukgecompenseerd 4 ltr. vast","4L Pressure Compensated Fixed Throttle","4L Druckkompensierte feste Drossel","Etranglement fixe compensé en pression4 ltr."]
["MPPTH5L","Smoring drukgecompenseerd 5 ltr. Vast",null,null,null,null,null,null,null,null,null,null,"EA","300",null,"Smoring drukgecompenseerd 5 ltr. Vast","5L Pressure Compensated Fixed Throttle","5L Druckkompensierte feste Drossel","Etranglement fixe compensé en pression5 ltr."]
["MPPTH6L","Smoring drukgecompenseerd 6 ltr. vast",null,null,null,null,null,null,null,null,null,null,"EA","300",null,"Smoring drukgecompenseerd 6 ltr. vast","6L Pressure Compensated Fixed Throttle","6L Druckkompensierte feste Drossel","Etranglement fixe compensé en pression6 ltr."]
["MPPTH9L","Smoring drukgecompenseerd 9 ltr. Vast",null,null,null,null,null,null,null,null,null,null,"EA","300",null,"Smoring drukgecompenseerd 9 ltr. Vast","9L Pressure Compensated Fixed Throttle","9L Druckkompensierte feste Drossel","Etranglement fixe compensé en pression9 ltr."]
["MPPTHEN","Smoring inbus verstelling 0-16 l/m",null,null,null,null,"FE",0,54,0,0,0,"EA","300",null,"Smoring inbus verstelling 0-16 l/m","Adjustable flow Control Valve","Einstellbare Drossel","Etranglement à réglage par boulon à six pans creux 0-16 l/m"]
["MPPTHK","smoring knop verstelling 0-12 l/m",null,null,null,null,"FE",0,38,0,0,0,"EA","300",null,"smoring knop verstelling 0-12 l/m","Adjustable flow Control Valve with knob","Einstellbare Drossel mit Knopf","Etranglement pourvu d'un bouton 0-12 l/m"]
["MPPTHPC","Smoring drukgecompenseerd inbus-verstelbaar 2-16 l/min",null,null,null,null,"FE",0,60,0,0,0,"EA","300",null,"Smoring drukgecompenseerd inbus-verstelbaar 2-16 l/min","Pressure Comp. Adjustable Throttle","Druckkompensierte einstellbare Drossel","Etranglement compensé en pression réglable par boulon à six pans creux 2-16 l/min"]
["MPPTHPCK","Smoring drukgecompenseerd knop-verstelbaar 2-16 l/min",null,null,null,null,"FE",0,60,0,0,0,"EA","300",null,"Smoring drukgecompenseerd knop-verstelbaar 2-16 l/min","Pressure Comp. Adjustable Throttle with knob.","Druckkompensierte einstellbare Drossel mit Knopf","Etranglement compensé en pression réglable par bouton 2-16 l/min"]
["MPP9TP","Tankvuldop 1/2\" BSP",null,null,null,null,null,null,null,null,null,null,"EA","300",null,"Tankvuldop 1/2\" BSP","Fill cap 1/2\" BSP","Tankeinfüllstutzen 1/2\" BSP","Bouchon de réservoir 1/2\" BSP"]
["MPP9FC","Aflaatstop 1/2\" BSP",null,null,null,null,null,null,null,null,null,null,"EA","300",null,"Aflaatstop 1/2\" BSP","Drain plug 1/2\" BSP","Entleerungsstopfen 1/2\" BSP","Bouchon de vidange 1/2\" BSP"]
["PAINT",null,null,null,null,null,null,null,null,null,null,null,"EA","300"]
["SP666","Stekker SP 666 standaard",null,null,null,null,null,null,null,null,null,null,"EA","300",null,"Stekker SP 666 standaard","Hirschmann connector","Stecker","Fiche SP 666 standard"]
["VSR04WD","Afsluitplug inbus VSR 1/4 BSP",null,null,null,null,null,null,null,null,null,null,"EA","300",null,"Afsluitplug inbus VSR 1/4 BSP","Plug VSR 1/4 BSP","Stopfen VSR 1/4 BSP","Bouchon VSR 1/4 BSP"]
["MPP02D",{"$f":"CHOOSE(SEL_LANGUAGE,P265,Q265,R265,S265)","v":"MPP pomp 0.26 cc D gr. 0.5"},null,null,null,null,null,null,null,null,null,null,"","","BOMDET","MPP pomp 0.26 cc D gr. 0.5","MPP pump 0.26 cc D gr. 0.5","MPP Pumpe 0.26 cc D gr. 0.5","Pompe MPP 0.26 cc D gr. 0.5"]
["MPP04D","MPP pomp 0.38 cc D gr. 0.5",null,null,null,null,null,null,null,null,null,null,"","","BOMDET","MPP pomp 0.38 cc D gr. 0.5","MPP pump 0.38 cc D gr. 0.5","MPP Pumpe 0.38 cc D gr. 0.5","Pompe MPP 0.38 cc D gr. 0.5"]
["MPP06D","MPP pomp 0.64 cc D gr. 0.5",null,null,null,null,null,null,null,null,null,null,"","","BOMDET","MPP pomp 0.64 cc D gr. 0.5","MPP pump 0.64 cc D gr. 0.5","MPP Pumpe 0.64 cc D gr. 0.5","Pompe MPP 0.64 cc D gr. 0.5"]
["MPPHP2","Handpomp 2cc 3/4-UNFhandel (L=200mm)",null,null,null,null,"FE",0,0,{"$f":"58-4","v":54},0,0,"","","BOMDET","Handpomp 2cc 3/4-UNFhandel (L=200mm)","(KPA) MPP handpump 2cc 3/4-UNFhandle (L=200mm)","Handpumpe 2 Kubik","Pmpe à main 2cc 3/4-UNF levier (L=200mm)"]
["KREV03D2012C","Stuurschuif elekt. SEV-03-D2-012C NG6",null,45,2,"SEV03D2","OB",0,{"$f":"(214/2)-SYS_DIMS_OB_Y_OFFSET","v":82},{"$f":"(214/2)+SYS_DIMS_OB_Y_OFFSET","v":132},88,0,"","","BOMDET","Stuurschuif elekt. SEV-03-D2-012C NG6","Cetop 03 Valve 4/2 - 12V-DC","Elektromagnetventil 4/2 NW6","Distributeur éléctr. SEV-03-D2-012C NG6"]
["KREV03D2024C","Stuurschuif elekt. SEV-03-D2-024C NG6",null,45,2,"SEV03D2","OB",0,{"$f":"(214/2)-SYS_DIMS_OB_Y_OFFSET","v":82},{"$f":"(214/2)+SYS_DIMS_OB_Y_OFFSET","v":132},88,0,"","","BOMDET","Stuurschuif elekt. SEV-03-D2-024C NG6","Cetop 03 Valve 4/2 - 24V-DC","Elektromagnetventil 4/2 NW6","Distributeur éléctr. SEV-03-D2-024C NG6"]
["KREV03D2230A","Stuurschuif elekt. SEV-03-D2-230A NG6",null,45,2,"SEV03D2","OB",0,{"$f":"(214/2)-SYS_DIMS_OB_Y_OFFSET","v":82},{"$f":"(214/2)+SYS_DIMS_OB_Y_OFFSET","v":132},88,0,"","","BOMDET","Stuurschuif elekt. SEV-03-D2-230A NG6","Cetop 03 Valve 4/2 - 230V-AC","Elektromagnetventil 4/2 NW6","Distributeur éléctr. SEV-03-D2-230A NG6"]
["SMSC03A230A","Elek. terugslagklep MSC-03A-230 NG6",null,40,null,"SMSC03A","OB",0,0,0,40,0,"","","BOMDET","Elek. terugslagklep MSC-03A-230 NG6","solenoid check valve","Rückschlagventil elektr. NG6","Clapet anti-retour électrique MSC-03A-230 NG6"]
["SMSC03B230A","Elek. terugslagklep MSC-03B-230 NG6",null,40,null,"SMSC03B","OB",0,0,0,40,0,"","","BOMDET","Elek. terugslagklep MSC-03B-230 NG6","solenoid check valve","Rückschlagventil elektr. NG6","Clapet anti-retour électrique MSC-03B-230 NG6"]
["SMSC03W230A","Elek. terugslagklep MSC-03W-230 NG6",null,40,null,"SMSC03W","OB",0,0,0,40,0,"","","BOMDET","Elek. terugslagklep MSC-03W-230 NG6","solenoid check valve","Rückschlagventil elektr. NG6","Clapet anti-retour électrique MSC-03W-230 NG6"]

{"sheet":"Calculations","index":6,"n_rows":40,"n_cols":23,"rows_kept":40,"cut":false,"hidden":true,"merged":[]}
["Tijd-staffel-tabel",null,null,null,null,null,"Berekenen max. werkdruk en inschakelduur"]
[]
["Secties","1 t/m 5","6 t/m 10","> 10",null,null,"MOTOR/CC",0.26,0.38,0.64,0.85,1.2,1.7,2,2.2000000000000002,2.6,3.2,3.8,4.3,5,6,7.8,9.8000000000000007]
[0,40,35,30,null,null,"MPPDCM12V2100N",null,null,null,210,210,210,120,110,105,90,75]
[1,{"$f":"B4+3","v":43},{"$f":"C4+3","v":38},{"$f":"D4+3","v":33},null,null,"MPPDCM24V2100N",null,null,null,210,210,210,150,135,125,110,100,80,65,55,45]
[2,{"$f":"B4+6","v":46},{"$f":"C4+6","v":41},{"$f":"D4+6","v":36},null,null,"MPPDCM12V800N",210,210,140,100,80,60,50,45]
[3,{"$f":"B6+3","v":49},{"$f":"C6+3","v":44},{"$f":"D6+3","v":39},null,null,"MPPDCM24V800N",210,210,160,110,90,70,60,55]
[4,{"$f":"B6+6","v":52},{"$f":"C6+6","v":47},{"$f":"D6+6","v":42},null,null,"MPPDCM12V2500N",null,null,null,null,null,210,210,200,190,170,140,115,110,100]
[null,null,null,null,null,null,"MPPDCM24V3000N",null,null,null,null,null,210,210,210,210,210,200,160,150,130]
["Montage uren"]
[null,null,null,null,null,null,"MOTOR","Duur"]
["Aantal ledige voetplaat",null,null,{"$f":"VALUE(SEL_MOUNT_COUNT)","v":0},null,null,"MPPDCM12V2100N",1]
["Aantal units",null,null,{"$f":"SEL_QUANTITY","v":1},null,null,"MPPDCM24V2100N",4]
["Extra montagetijd",null,null,{"$f":"TableSearch(DBS_MOTOR,SEL_MOTOR,\"ExtraMontagetijd\")","v":5},null,null,"MPPDCM12V800N",4]
["Finish",null,null,{"$f":"60*IF(LEFT(SEL_FINISH,1)=\"<\",0,0.75)","v":0},null,null,"MPPDCM24V800N",4]
["Montage minuten",null,null,{"$f":"IF(D13<6,(VLOOKUP(D12,A3:D8,2,FALSE)),IF(D13<11,(VLOOKUP(D12,A3:D8,3,FALSE)),VLOOKUP(D12,A3:D8,4,FALSE)))+SUM(D14:D15)","v":45},{"$f":"TEXT((D16-MOD(D16,60))/60,\"#0\")&\":\"&TEXT(MOD(D16,60),\"00\")","v":"0:45"},null,"MPPDCM12V2500N",16]
[null,null,null,null,{"$f":"ROUND(D16/60,2)","v":0.75},null,"MPPDCM24V3000N",16]
[]
[null,null,null,null,null,null,"Geselecteerde Motor"]
[null,null,null,null,null,null,"SEL_MOTOR",{"$f":"SEL_MOTOR","v":"B  : DC-motor 24 Volt, 2100 Watt"}]
[null,null,null,null,null,null,"SEL_MOTOR(AC/DC)",{"$f":"TableSearch(DBS_MOTOR,SEL_MOTOR,\"AcDc\")","v":"DC"}]
[null,null,null,null,null,null,"SEL_MOTOR(ARTIKEL)",{"$f":"VLOOKUP(SEL_MOTOR,DBS_MOTOR,2,0)","v":"MPPDCM24V2100N"}]
[null,null,null,null,null,null,"SEL_MOTOR(kW)",{"$f":"TableSearch(DBS_MOTOR,SEL_MOTOR,\"kW\")","v":2.1}]
[null,null,null,null,null,null,"SEL_MOTOR(Rendement)",{"$f":"TableSearch(DBS_MOTOR,SEL_MOTOR,\"Rendement\")","v":0.85}]
[null,null,null,null,null,null,"SEL_MOTOR(Flow)",{"$f":"TableSearch(DBS_MOTOR,SEL_MOTOR,\"Flow\")","v":"nvt"}]
[]
[null,null,null,null,null,null,"Geselecteerde Pomp"]
[null,null,null,null,null,null,"SEL_PUMP",{"$f":"SEL_PUMP","v":"32 : Pomp 3.2 cc D gr.1"}]
[null,null,null,null,null,null,"SEL_PUMP(CC)",{"$f":"TableSearch(DBS_PUMP,SEL_PUMP,\"CC\")","v":3.2}]
[null,null,null,null,null,null,"SEL_PUMP(MaxWP)",{"$f":"TableSearch(DBS_PUMP,SEL_PUMP,\"MaxWP\")","v":210}]
[]
[null,null,null,null,null,null,"Calculatie",null,"DC","AC"]
[null,null,null,null,null,null,"Max. werkdruk (bar)",{"$f":"IF(H21<>\"DC\",MIN(H30,J33),I33)","v":110},{"$f":"IF(H21=\"DC\",TableSearch(SYS_DC_MOTOR_MAX_WP,H22,H29),0)","v":110},{"$f":"IF(H21=\"AC\",FLOOR((H23*600*H24)/H25,5),0)","v":0}]
[null,null,null,null,null,null,"Inschakelduur (min.)",{"$f":"IF(H21<>\"DC\",0,VLOOKUP(H22,SYS_DC_MOTOR_MAX_INSCHAKELDUUR,2,0))","v":4}]
[]
[null,null,null,null,null,null,"SYS_CLC_MAX_WP"]
[null,null,null,null,null,null,{"$f":"IF(SYS_CLC_MAX_WP_BAR>0,SYS_CLC_MAX_WP_BAR&\" bar\"&IF(H34>0,\" (\"&H34&\" min.)\",\"\"),TextPerLanguage(SEL_LANGUAGE,167))","v":"110 bar (4 min.)"}]
[]
[null,null,null,null,null,null,"SYS_CLC_FLOW"]
[null,null,null,null,null,null,{"$f":"IF(ISNUMBER(H25),H25&\" ltr/min\",TextPerLanguage(SEL_LANGUAGE,167))","v":"Niet van toepassing"}]

{"sheet":"Translations","index":7,"n_rows":90,"n_cols":6,"rows_kept":90,"cut":false,"hidden":true,"merged":[]}
["ID","Nederlands","English","Deutsch","Français"]
[1,"Taal","Language","Sprache","Langue"]
[2,"Bedrijfsnaam:","Company name:","Firma:","Nom de client:"]
[3,"Contactpersoon:","Att.:","Zu Händen:","à l'att.de:"]
[4,"in overleg","to be agreed upon","nach Vereinbarung","à déterminer"]
[5,"Artikel:","Part:","Artikel:","Article:"]
[6,"Datum:","Date:","Datum:","Date:"]
[7,"Tank:","Oil tank:","Ölbehälter:","Réservoir:"]
[8,"Pomp:","Pump:","Pumpe:","Pompe:"]
[9,"Motor:","Motor:","Motor:","Moteur:"]
[10,"Opbouw:","Cetop mounting:","Zwischenplatten:","Montage Cetop:"]
[11,"Tekeningnummer:","Drawing number:","Zeichnungsnummer:","Numéro de dessin:"]
[12,"Max. werkdruk:","Max. pressure:","Max. Druck:","Pression max.:"]
[13,"Flow:","Flow:","Förderstrom:","Débit:"]
[14,"Keuze","Choice","Auswahl","Choix"]
[15,"Lengte","Length","Länge","Longueur"]
[16,"Breedte","Width","Breite","Largeur"]
[17,"Hoogte","Height","Höhe","Hauteur"]
[18,"Manometer:","Pressure Gauge:","Manometer:","Manomètre:"]
[19,"Voltage opbouw:","Voltage cetop:","Spannung Ventile:","Voltage cetop:"]
[20,"Aantal units:","Number of units:","Anzahl der Einheiten:","Quantité centrales:"]
[21,"Opbouwsecties:","Cetop mounting:","Ventilaufbau:","Montage Cetop:"]
[22,"Klantspecifiek","Customised","Kundenspezifisch","Spécifiquement pour client"]
[23,"Nettoprijs:","Net price:","Netto-Preis:","Prix net:"]
[24,"Levertijd:","Deliverytime:","Liefertermin:","Délai:"]
[25,"Ongeldige Pomp/Motor combinatie!","Invalid Pump/Motor combination!","Ungültige Pumpe/Motor-Kombination!","Blancs Pompe/Moteur combinaison!"]
[26,"De unit is compleet gemonteerd, getest op de max. werkdruk.","The complete assembled mini powerpack is tested to the max. pressure.","Das komplett montierte Aggregat ist mit max. Arbeitsdruck getestet.","La mini centrale est testée à pression max."]
[27,"De unit is excl. olie en bekabeling.","The mini powerpack is deliverd without oil and electrical cables.","Das Aggregat wird ohne Hydrauliköl und elektrische Verdrahtung geliefert.","La mini centrale est livrée sans huile et cables électrique"]
[28,"excl. BTW","excl. VAT","zzgl. MWST","TVA non compris"]
[29,"Deze offerte is geldig tot 30 dagen na dagtekening.","This quotation is valid for 30 days.","Die Geltungsdauer dieses Angebot ist 30 tage.","Validité de l'offre: 30 jours."]
[30,{"$f":"IF($F31=0,B5,\"gereed voor verzending in \"&TEXT($F31,\"0\")&\" dagen\")","v":"gereed voor verzending in 3 dagen"},{"$f":"IF($F31=0,C5,\"ready to ship in \"&TEXT($F31,\"0\")&\" days\")","v":"ready to ship in 3 days"},{"$f":"IF($F31=0,D5,\"fertig für Versand in \"&TEXT($F31,\"0\")&\" Tage\")","v":"fertig für Versand in 3 Tage"},{"$f":"IF($F31=0,E5,\"prêt pour expédition en \"&TEXT($F31,\"0\")&\" Jours\")","v":"prêt pour expédition en 3 Jours"},3]
[31,"Levertijd (dagen):","Deliverytime (days):","Liefertermin (Tage):","Délai (Jours):"]
[32,"Levering volgens onze algemene leverings- en montagevoorwaarden","Delivery according to our general terms of delivery and assembly","Lieferung nach unseren allgemeinen Liefer- und Montage-Bedingungen","Livraison suivant notre condition de vente et d'assemblage"]
[33,"Handtekening","Signature","Unterschrift","Signature"]
[34,"Referentie:","Reference:","Referenz:","Référence:"]
[35,"Tank keuze: alleen horizontaal zonder voet is mogelijk!","Choice tank: only horizontal without baseframe is possible!","Auswahl Tank: nur horizontal ohne Fuss ist möglich!","Choix réservoir: seulement horizontale sans pied possible!"]
[36,"Vulplaat verplicht!","Adapter Plate required!","Distanzplatte benötigt!","Plaque intermédiaire obligatoire!"]
[140,"Sectie1 - Onderb. 3:","Sect.1 - Mod.valve 3:","Sektion 1 - Z-platte 3:","Sect.1 - Valve mod. 3:"]
[141,"Sectie1 - Onderb. 2:","Sect.1 - Mod.valve 2:","Sektion 1 - Z-platte 2:","Sect.1 - Valve mod. 2:"]
[142,"Sectie1 - Onderb. 1:","Sect.1 - Mod.valve 1:","Sektion 1 - Z-platte 1:","Sect.1 - Valve mod. 1:"]
[143,"Sectie1 - St.schuif:","Sect.1 - Sol.valve:","Sektion 1 - Ventil:","Sect.1 - Distributeur:"]
[144,"Sectie2 - Onderb. 3:","Sect.2 - Mod.valve 3:","Sektion 2 - Z-platte 3:","Sect.2 - Valve mod. 3:"]
[145,"Sectie2 - Onderb. 2:","Sect.2 - Mod.valve 2:","Sektion 2 - Z-platte 2:","Sect.2 - Valve mod. 2:"]
[146,"Sectie2 - Onderb. 1:","Sect.2 - Mod.valve 1:","Sektion 2 - Z-platte 1:","Sect.2 - Valve mod. 1:"]
[147,"Sectie2 - St.schuif:","Sect.2 - Sol.valve:","Sektion 2 - Ventil:","Sect.2 - Distributeur:"]
[148,"Sectie3 - Onderb. 3:","Sect.3 - Mod.valve 3:","Sektion 3 - Z-platte 3:","Sect.3 - Valve mod. 3:"]
[149,"Sectie3 - Onderb. 2:","Sect.3 - Mod.valve 2:","Sektion 3 - Z-platte 2:","Sect.3 - Valve mod. 2:"]
[150,"Sectie3 - Onderb. 1:","Sect.3 - Mod.valve 1:","Sektion 3 - Z-platte 1:","Sect.3 - Valve mod. 1:"]
[151,"Sectie3 - St.schuif:","Sect.3 - Sol.valve:","Sektion 3 - Ventil:","Sect.3 - Distributeur:"]
[152,"Sectie4 - Onderb. 3:","Sect.4 - Mod.valve 3:","Sektion 4 - Z-platte 3:","Sect.4 - Valve mod. 3:"]
[153,"Sectie4 - Onderb. 2:","Sect.4 - Mod.valve 2:","Sektion 4 - Z-platte 2:","Sect.4 - Valve mod. 2:"]
[154,"Sectie4 - Onderb. 1:","Sect.4 - Mod.valve 1:","Sektion 4 - Z-platte 1:","Sect.4 - Valve mod. 1:"]
[155,"Sectie4 - St.schuif:","Sect.4 - Sol.valve:","Sektion 4 - Ventil:","Sect.4 - Distributeur:"]
[156,"Lantaarnstuk:","Bell housing:","Pümpenträger:","Lanterne:"]
[157,"Stuklijst","Bill of material","Artikel Liste","Pièces détachées:"]
[158,"Aantal","Amount","Anzahl","Quantité:"]
[159,"Kostprijs","Cost price","Kostpreis","Prix de revient:"]
[160,"Klein materiaal","Small materials","Klein-Material","Materiél divers:"]
[161,"Kostprijs materiaal:","Cost price materials:","Kosten Material:","Prix de revient matériel:"]
[162,"minuten","minutes","minuten","Minutes:"]
[163,"Toeslag:","Extra charge","Zuschlag:","Supplément:"]
[164,"Verkoop materiaal:","Sales price materials:","Verkaufspreis Material:","Prix de vente:"]
[165,"Kostprijs uren","Costprice hours","Kostpreis Stunden","Prix des heures de travail:"]
[166,"Internal use only","Internal use only","Internal use only","Internal use only"]
[167,"Niet van toepassing","Not calculated","Nicht kalkuliert","Ne pas applicable"]
[178,"Prijslijst is verlopen.","Price list is not up to date.","Preise sind nicht mehr aktuell.","Liste de prix est expiré"]
[183,"Offerte","Quotation","Angebot","Offre"]
[184,"Materiaallijst","Material list","Material Liste","Liste de matériel"]
[186,"Omschrijving","Description","Umschreibung","Description"]
[187,"Annuleren","Cancel","Annullieren","Annuler"]
[188,"Publiceren","Publish","Publizieren","Publish"]
[189,"Bewerkingstijd","Worktime","Arbeidszeit","Temps de travail"]
[190,"Afstandsbediening:","Remote control:","Fernbedienung:","Commande à distance:"]
[191,"Uniparts/Inkoopprijs:","Uniparts/Purchaseprice:","Uniparts/Einkaufspreis:","Uniparts/Prix d'achat"]
[192,"Marge:","Margin:","Verdienstspanne:","Marge bénéficiaire:"]
[193,"Verkoopprijs (afgerond):","Salesprice (rounded):","Verkaufspreis (abgerundet):","Prix de vente arrondi:"]
[195,"Calculatie","Calculation","Kalkulation","Calculation"]
[196,"Materiaal","Materials","Material","Matériel"]
[197,"Verkoper","Salesman","Verkäufer","Vendeur"]
[198,"Tekening","Drawing","Zeichnung","Dessin"]
[199,"Motorzijde","Motor-side","Motor-Seite","Côté moteur"]
[200,"Tankzijde","Tank-side","Ölbehälter-Seite","Côté réservoir"]
[201,"Ongeldige Pomp/Flens combinatie!","Invalid Pump/Flange combination!","Ungültige Pumpe/Flansch-Kombination!","Blancs Pompe/Bride combinaison!"]
[202,"Opmerkingen","Remarks","Bemerkungen","Remarques"]
[203,"Opmerkingen (intern gebruik)","Remarks (internal usage)","Bemerkungen (internen Gebrauch)","Remarques (usage interne)"]
[204,"Uniparts/Inkoopprijs:","Uniparts/Purchaseprice:","Uniparts/Einkaufspreis:","Uniparts/Prix d'achat:"]
[205,"Advies Verkoopprijs:","Recommended Salesprice:","Empfohlene Verkaufspreis:","Prix ​​de vente conseillé:"]
[206,"Nettoprijs (aangepast):","Net price (adjusted):","Netto-Preis (angepasst):","Prix net (adapté):"]
[207,"Afwerking:","Finish:","Finish:","Finition:"]
[208,"Afwerking niet mogelijk/toegestaan!","Finish not possible/allowed!","Finish nicht möglich/erlaubt!","Finition pas possible/autorisé!"]